Workbook

Sheet SAM9T (3)
B1: \begin{landscape}
B2: \begin{center}
B3: \begin{table}
B4: [tbp] \centering \caption{Matriz de contabilidad social}\label{SAM}
B5: \begin{tabular}{lccccccccc}
B6: \\ \hline \\
C7: & | D7: =+'SAMP (2)'!B4 -> AgPec | E7: & | F7: =+'SAMP (2)'!C4 -> Pet | G7: & | H7: =+'SAMP (2)'!D4 -> Industria | I7: & | J7: =+'SAMP (2)'!E4 -> Servicios | K7: & | L7: =+'SAMP (2)'!F4 -> AgPec | M7: & | N7: =+'SAMP (2)'!G4 -> Pet | O7: & | P7: =+'SAMP (2)'!H4 -> Industria | Q7: & | R7: =+'SAMP (2)'!I4 -> Servicios | S7: & | T7: Calif | U7: \\ | Z7: No Calif | AA7: & | AB7: =+'SAMP (2)'!L4 -> Capital
B8: \textbf{Hogares} | C8: & | D8: =IF('SAMP (2)'!B21="","",'SAMP (2)'!B21) ->  | E8: & | F8: =IF('SAMP (2)'!C21="","",'SAMP (2)'!C21) ->  | G8: & | H8: =IF('SAMP (2)'!D21="","",'SAMP (2)'!D21) ->  | I8: & | J8: =IF('SAMP (2)'!E21="","",'SAMP (2)'!E21) ->  | K8: & | L8: =IF('SAMP (2)'!F21="","",'SAMP (2)'!F21) ->  | M8: & | N8: =IF('SAMP (2)'!G21="","",'SAMP (2)'!G21) ->  | O8: & | P8: =IF('SAMP (2)'!H21="","",'SAMP (2)'!H21) ->  | Q8: & | R8: =IF('SAMP (2)'!I21="","",'SAMP (2)'!I21) ->  | S8: & | T8: =IF('SAMP (2)'!J21="","",'SAMP (2)'!J21) -> 22377.98606 | U8: \\ | Z8: =IF('SAMP (2)'!K21="","",'SAMP (2)'!K21) -> 13543.75934 | AA8: & | AB8: =IF('SAMP (2)'!L21="","",'SAMP (2)'!L21) -> 58717.4508
B9: =+'SAMP (2)'!A22 -> H1 | C9: & | D9: =IF('SAMP (2)'!B22="","",'SAMP (2)'!B22) ->  | E9: & | F9: =IF('SAMP (2)'!C22="","",'SAMP (2)'!C22) ->  | G9: & | H9: =IF('SAMP (2)'!D22="","",'SAMP (2)'!D22) ->  | I9: & | J9: =IF('SAMP (2)'!E22="","",'SAMP (2)'!E22) ->  | K9: & | L9: =IF('SAMP (2)'!F22="","",'SAMP (2)'!F22) ->  | M9: & | N9: =IF('SAMP (2)'!G22="","",'SAMP (2)'!G22) ->  | O9: & | P9: =IF('SAMP (2)'!H22="","",'SAMP (2)'!H22) ->  | Q9: & | R9: =IF('SAMP (2)'!I22="","",'SAMP (2)'!I22) ->  | S9: & | T9: =IF('SAMP (2)'!J22="","",'SAMP (2)'!J22) -> 620.6309473 | U9: \\ | Z9: =IF('SAMP (2)'!K22="","",'SAMP (2)'!K22) -> 3517.250491 | AA9: & | AB9: =IF('SAMP (2)'!L22="","",'SAMP (2)'!L22) -> 0
B10: =+'SAMP (2)'!A23 -> H2 | C10: & | D10: =IF('SAMP (2)'!B23="","",'SAMP (2)'!B23) ->  | E10: & | F10: =IF('SAMP (2)'!C23="","",'SAMP (2)'!C23) ->  | G10: & | H10: =IF('SAMP (2)'!D23="","",'SAMP (2)'!D23) ->  | I10: & | J10: =IF('SAMP (2)'!E23="","",'SAMP (2)'!E23) ->  | K10: & | L10: =IF('SAMP (2)'!F23="","",'SAMP (2)'!F23) ->  | M10: & | N10: =IF('SAMP (2)'!G23="","",'SAMP (2)'!G23) ->  | O10: & | P10: =IF('SAMP (2)'!H23="","",'SAMP (2)'!H23) ->  | Q10: & | R10: =IF('SAMP (2)'!I23="","",'SAMP (2)'!I23) ->  | S10: & | T10: =IF('SAMP (2)'!J23="","",'SAMP (2)'!J23) -> 2518.039394 | U10: \\ | Z10: =IF('SAMP (2)'!K23="","",'SAMP (2)'!K23) -> 3096.678009 | AA10: & | AB10: =IF('SAMP (2)'!L23="","",'SAMP (2)'!L23) -> 670.6200225
B11: =+'SAMP (2)'!A24 -> H3 | C11: & | D11: =IF('SAMP (2)'!B24="","",'SAMP (2)'!B24) ->  | E11: & | F11: =IF('SAMP (2)'!C24="","",'SAMP (2)'!C24) ->  | G11: & | H11: =IF('SAMP (2)'!D24="","",'SAMP (2)'!D24) ->  | I11: & | J11: =IF('SAMP (2)'!E24="","",'SAMP (2)'!E24) ->  | K11: & | L11: =IF('SAMP (2)'!F24="","",'SAMP (2)'!F24) ->  | M11: & | N11: =IF('SAMP (2)'!G24="","",'SAMP (2)'!G24) ->  | O11: & | P11: =IF('SAMP (2)'!H24="","",'SAMP (2)'!H24) ->  | Q11: & | R11: =IF('SAMP (2)'!I24="","",'SAMP (2)'!I24) ->  | S11: & | T11: =IF('SAMP (2)'!J24="","",'SAMP (2)'!J24) -> 4296.487925 | U11: \\ | Z11: =IF('SAMP (2)'!K24="","",'SAMP (2)'!K24) -> 2403.588109 | AA11: & | AB11: =IF('SAMP (2)'!L24="","",'SAMP (2)'!L24) -> 3432.802722
B12: =+'SAMP (2)'!A25 -> H4 | C12: & | D12: =IF('SAMP (2)'!B25="","",'SAMP (2)'!B25) ->  | E12: & | F12: =IF('SAMP (2)'!C25="","",'SAMP (2)'!C25) ->  | G12: & | H12: =IF('SAMP (2)'!D25="","",'SAMP (2)'!D25) ->  | I12: & | J12: =IF('SAMP (2)'!E25="","",'SAMP (2)'!E25) ->  | K12: & | L12: =IF('SAMP (2)'!F25="","",'SAMP (2)'!F25) ->  | M12: & | N12: =IF('SAMP (2)'!G25="","",'SAMP (2)'!G25) ->  | O12: & | P12: =IF('SAMP (2)'!H25="","",'SAMP (2)'!H25) ->  | Q12: & | R12: =IF('SAMP (2)'!I25="","",'SAMP (2)'!I25) ->  | S12: & | T12: =IF('SAMP (2)'!J25="","",'SAMP (2)'!J25) -> 4719.017942 | U12: \\ | Z12: =IF('SAMP (2)'!K25="","",'SAMP (2)'!K25) -> 2137.51013 | AA12: & | AB12: =IF('SAMP (2)'!L25="","",'SAMP (2)'!L25) -> 9425.988111
B13: =+'SAMP (2)'!A26 -> H6 | C13: & | D13: =IF('SAMP (2)'!B26="","",'SAMP (2)'!B26) ->  | E13: & | F13: =IF('SAMP (2)'!C26="","",'SAMP (2)'!C26) ->  | G13: & | H13: =IF('SAMP (2)'!D26="","",'SAMP (2)'!D26) ->  | I13: & | J13: =IF('SAMP (2)'!E26="","",'SAMP (2)'!E26) ->  | K13: & | L13: =IF('SAMP (2)'!F26="","",'SAMP (2)'!F26) ->  | M13: & | N13: =IF('SAMP (2)'!G26="","",'SAMP (2)'!G26) ->  | O13: & | P13: =IF('SAMP (2)'!H26="","",'SAMP (2)'!H26) ->  | Q13: & | R13: =IF('SAMP (2)'!I26="","",'SAMP (2)'!I26) ->  | S13: & | T13: =IF('SAMP (2)'!J26="","",'SAMP (2)'!J26) -> 10223.80985 | U13: \\ | Z13: =IF('SAMP (2)'!K26="","",'SAMP (2)'!K26) -> 2388.732606 | AA13: & | AB13: =IF('SAMP (2)'!L26="","",'SAMP (2)'!L26) -> 45188.03995
B14: \textbf{Gobierno} | C14: & | D14: =IF('SAMP (2)'!B27="","",'SAMP (2)'!B27) -> 20.46820485 | E14: & | F14: =IF('SAMP (2)'!C27="","",'SAMP (2)'!C27) -> 1497.420682 | G14: & | H14: =IF('SAMP (2)'!D27="","",'SAMP (2)'!D27) -> 642.586047 | I14: & | J14: =IF('SAMP (2)'!E27="","",'SAMP (2)'!E27) -> 979.58861 | K14: & | L14: =IF('SAMP (2)'!F27="","",'SAMP (2)'!F27) ->  | M14: & | O14: & | P14: =IF('SAMP (2)'!H27="","",'SAMP (2)'!H27) -> 1243.305577 | Q14: & | R14: =IF('SAMP (2)'!I27="","",'SAMP (2)'!I27) -> 816.283294 | S14: & | T14: =IF('SAMP (2)'!J27="","",'SAMP (2)'!J27) ->  | U14: \\ | Z14: =IF('SAMP (2)'!K27="","",'SAMP (2)'!K27) ->  | AA14: & | AB14: =IF('SAMP (2)'!L27="","",'SAMP (2)'!L27) -> 
B15: =+'SAMP (2)'!A28 -> Impuestos indirectos | C15: & | D15: =IF('SAMP (2)'!B28="","",'SAMP (2)'!B28) -> 20.46820485 | E15: & | F15: =IF('SAMP (2)'!C28="","",'SAMP (2)'!C28) -> 1497.420682 | G15: & | H15: =IF('SAMP (2)'!D28="","",'SAMP (2)'!D28) -> 642.586047 | I15: & | J15: =IF('SAMP (2)'!E28="","",'SAMP (2)'!E28) -> 979.58861 | K15: & | M15: & | O15: & | P15: =IF('SAMP (2)'!H28="","",'SAMP (2)'!H28) -> 1243.305577 | Q15: & | R15: =IF('SAMP (2)'!I28="","",'SAMP (2)'!I28) -> 816.283294 | S15: & | T15: =IF('SAMP (2)'!J28="","",'SAMP (2)'!J28) ->  | U15: \\ | Z15: =IF('SAMP (2)'!K28="","",'SAMP (2)'!K28) ->  | AA15: & | AB15: =IF('SAMP (2)'!L28="","",'SAMP (2)'!L28) -> 
B16: =+'SAMP (2)'!A29 -> Gobierno federal | C16: & | D16: =IF('SAMP (2)'!B29="","",'SAMP (2)'!B29) ->  | E16: & | F16: =IF('SAMP (2)'!C29="","",'SAMP (2)'!C29) -> 70543.15138 | G16: & | H16: =IF('SAMP (2)'!D29="","",'SAMP (2)'!D29) ->  | I16: & | J16: =IF('SAMP (2)'!E29="","",'SAMP (2)'!E29) ->  | K16: & | L16: =IF('SAMP (2)'!F29="","",'SAMP (2)'!F29) ->  | M16: & | N16: =IF('SAMP (2)'!G29="","",'SAMP (2)'!G29) ->  | O16: & | P16: =IF('SAMP (2)'!H29="","",'SAMP (2)'!H29) ->  | Q16: & | R16: =IF('SAMP (2)'!I29="","",'SAMP (2)'!I29) ->  | S16: & | T16: =IF('SAMP (2)'!J29="","",'SAMP (2)'!J29) ->  | U16: \\ | Z16: =IF('SAMP (2)'!K29="","",'SAMP (2)'!K29) ->  | AA16: & | AB16: =IF('SAMP (2)'!L29="","",'SAMP (2)'!L29) -> 
B17: =+'SAMP (2)'!A30 -> Ganacias de petroleo | C17: & | D17: =IF('SAMP (2)'!B30="","",'SAMP (2)'!B30) ->  | E17: & | F17: =IF('SAMP (2)'!C30="","",'SAMP (2)'!C30) -> 70543.15138 | G17: & | H17: =IF('SAMP (2)'!D30="","",'SAMP (2)'!D30) ->  | I17: & | J17: =IF('SAMP (2)'!E30="","",'SAMP (2)'!E30) ->  | K17: & | L17: =IF('SAMP (2)'!F30="","",'SAMP (2)'!F30) ->  | M17: & | N17: =IF('SAMP (2)'!G30="","",'SAMP (2)'!G30) ->  | O17: & | P17: =IF('SAMP (2)'!H30="","",'SAMP (2)'!H30) ->  | Q17: & | R17: =IF('SAMP (2)'!I30="","",'SAMP (2)'!I30) ->  | S17: & | T17: =IF('SAMP (2)'!J30="","",'SAMP (2)'!J30) ->  | U17: \\ | Z17: =IF('SAMP (2)'!K30="","",'SAMP (2)'!K30) ->  | AA17: & | AB17: =IF('SAMP (2)'!L30="","",'SAMP (2)'!L30) -> 
B18: \textbf{Ahorros} | C18: & | D18: =IF('SAMP (2)'!B31="","",'SAMP (2)'!B31) ->  | E18: & | F18: =IF('SAMP (2)'!C31="","",'SAMP (2)'!C31) ->  | G18: & | H18: =IF('SAMP (2)'!D31="","",'SAMP (2)'!D31) ->  | I18: & | J18: =IF('SAMP (2)'!E31="","",'SAMP (2)'!E31) ->  | K18: & | L18: =IF('SAMP (2)'!F31="","",'SAMP (2)'!F31) ->  | M18: & | N18: =IF('SAMP (2)'!G31="","",'SAMP (2)'!G31) ->  | O18: & | P18: =IF('SAMP (2)'!H31="","",'SAMP (2)'!H31) ->  | Q18: & | R18: =IF('SAMP (2)'!I31="","",'SAMP (2)'!I31) ->  | S18: & | T18: =IF('SAMP (2)'!J31="","",'SAMP (2)'!J31) ->  | U18: \\ | Z18: =IF('SAMP (2)'!K31="","",'SAMP (2)'!K31) ->  | AA18: & | AB18: =IF('SAMP (2)'!L31="","",'SAMP (2)'!L31) -> 
B19: \textbf{Externo} | C19: & | D19: =IF('SAMP (2)'!B32="","",'SAMP (2)'!B32) ->  | E19: & | F19: =IF('SAMP (2)'!C32="","",'SAMP (2)'!C32) ->  | G19: & | H19: =IF('SAMP (2)'!D32="","",'SAMP (2)'!D32) ->  | I19: & | J19: =IF('SAMP (2)'!E32="","",'SAMP (2)'!E32) ->  | K19: & | L19: =IF('SAMP (2)'!F32="","",'SAMP (2)'!F32) -> 10518.02495 | M19: & | N19: =IF('SAMP (2)'!G32="","",'SAMP (2)'!G32) -> 0 | O19: & | P19: =IF('SAMP (2)'!H32="","",'SAMP (2)'!H32) -> 24915.86435 | Q19: & | R19: =IF('SAMP (2)'!I32="","",'SAMP (2)'!I32) -> 22603.76173 | S19: & | T19: =IF('SAMP (2)'!J32="","",'SAMP (2)'!J32) ->  | U19: \\ | Z19: =IF('SAMP (2)'!K32="","",'SAMP (2)'!K32) ->  | AA19: & | AB19: =IF('SAMP (2)'!L32="","",'SAMP (2)'!L32) -> 
B20: =+'SAMP (2)'!A33 -> Resto del mundo | C20: & | D20: =IF('SAMP (2)'!B33="","",'SAMP (2)'!B33) ->  | E20: & | F20: =IF('SAMP (2)'!C33="","",'SAMP (2)'!C33) ->  | G20: & | H20: =IF('SAMP (2)'!D33="","",'SAMP (2)'!D33) ->  | I20: & | J20: =IF('SAMP (2)'!E33="","",'SAMP (2)'!E33) ->  | K20: & | L20: =IF('SAMP (2)'!F33="","",'SAMP (2)'!F33) -> 171.4503086 | M20: & | N20: =IF('SAMP (2)'!G33="","",'SAMP (2)'!G33) -> 0 | O20: & | P20: =IF('SAMP (2)'!H33="","",'SAMP (2)'!H33) -> 58.78173504 | Q20: & | R20: =IF('SAMP (2)'!I33="","",'SAMP (2)'!I33) ->  | S20: & | T20: =IF('SAMP (2)'!J33="","",'SAMP (2)'!J33) ->  | U20: \\ | Z20: =IF('SAMP (2)'!K33="","",'SAMP (2)'!K33) ->  | AA20: & | AB20: =IF('SAMP (2)'!L33="","",'SAMP (2)'!L33) -> 
B21: =+'SAMP (2)'!A34 -> Resto del Mexico | C21: & | D21: =IF('SAMP (2)'!B34="","",'SAMP (2)'!B34) ->  | E21: & | F21: =IF('SAMP (2)'!C34="","",'SAMP (2)'!C34) ->  | G21: & | H21: =IF('SAMP (2)'!D34="","",'SAMP (2)'!D34) ->  | I21: & | J21: =IF('SAMP (2)'!E34="","",'SAMP (2)'!E34) ->  | K21: & | L21: =IF('SAMP (2)'!F34="","",'SAMP (2)'!F34) -> 10346.57464 | M21: & | N21: =IF('SAMP (2)'!G34="","",'SAMP (2)'!G34) -> 0 | O21: & | P21: =IF('SAMP (2)'!H34="","",'SAMP (2)'!H34) -> 24857.08262 | Q21: & | R21: =IF('SAMP (2)'!I34="","",'SAMP (2)'!I34) -> 22603.76173 | S21: & | T21: =IF('SAMP (2)'!J34="","",'SAMP (2)'!J34) ->  | U21: \\ | Z21: =IF('SAMP (2)'!K34="","",'SAMP (2)'!K34) ->  | AA21: & | AB21: =IF('SAMP (2)'!L34="","",'SAMP (2)'!L34) -> 
B22: \textbf{Total} | C22: & | D22: =IF('SAMP (2)'!B36="","",'SAMP (2)'!B36) -> 6784.059096 | E22: & | F22: =IF('SAMP (2)'!C36="","",'SAMP (2)'!C36) -> 77980.04402 | G22: & | H22: =IF('SAMP (2)'!D36="","",'SAMP (2)'!D36) -> 50355.64547 | I22: & | J22: =IF('SAMP (2)'!E36="","",'SAMP (2)'!E36) -> 102608.2769 | K22: & | L22: =IF('SAMP (2)'!F36="","",'SAMP (2)'!F36) -> 19183.4439 | M22: & | N22: =IF('SAMP (2)'!G36="","",'SAMP (2)'!G36) -> 78024.6103 | O22: & | P22: =IF('SAMP (2)'!H36="","",'SAMP (2)'!H36) -> 92935.87942 | Q22: & | R22: =IF('SAMP (2)'!I36="","",'SAMP (2)'!I36) -> 125603.3318 | S22: & | T22: =IF('SAMP (2)'!J36="","",'SAMP (2)'!J36) -> 22377.98606 | U22: \\ | Z22: =IF('SAMP (2)'!K36="","",'SAMP (2)'!K36) -> 13543.75934 | AA22: & | AB22: =IF('SAMP (2)'!L36="","",'SAMP (2)'!L36) -> 58717.4508
B23: \\ \hline \\
B24: \multicolumn{8}{l}{\textit{Fuente}: C\'{a}lculos de los autores. \citet{INEGI13}-ver cuadro \ref{cnT}. Nota: 1. 2003.} \\
B25: \end{tabular}
B26: \end{table}
B27: \end{center}
B28: \end{landscape}

Sheet ref2T
B3: \begin{table} | C3: [htbp] \centering
B4: \caption{Inversión en el sector petrolero$^{1}$ )} | C4: \label{ref2T}
B5: \begin{tabular}{lccccc}
B6: \\
B7: \hline \hline \\
C8: & | D8: Inversión | E8: & | F8: Producción | H8: Saldo | I8: & | J8: Saldo menos | K8: & | L8: Diferencia | M8: \\
C9: & | D9: Extra | E9: & | F9: Extra | G9: & | H9: neto $^{2}$ | I9: & | J9: Extran$^{3}$ | K9: & | L9: Gini$^{4}$ | M9: \\
B10: 0 | C10: & | D10: 0 | E10: & | F10: 0 | G10: & | H10: 0 | I10: & | J10: 0 | K10: & | L10: =+[1]modelo!$IC9 -> 0 | M10: \\
B11: 1 | C11: & | D11: 0.4 | E11: & | F11: 2.7 | G11: & | H11: 2.4 | I11: & | J11: 1.6 | K11: & | L11: =+[1]modelo!$IC10 -> 0.0001053295033 | M11: \\ | N11: =+L11*1000 -> 0.1053295033
B12: 2 | C12: & | D12: 0.8 | E12: & | F12: 5.7 | G12: & | H12: 4.9 | I12: & | J12: 3.3 | K12: & | L12: =+[1]modelo!$IC11 -> 0.0001614201484 | M12: \\ | N12: =+L12*1000 -> 0.1614201484
B13: 3 | C13: & | D13: 1.2 | E13: & | F13: 8.7 | G13: & | H13: 7.5 | I13: & | J13: 5.1 | K13: & | L13: =+[1]modelo!$IC12 -> 0.0001739718806 | M13: \\ | N13: 0.1739718806
B14: 4 | C14: & | D14: 1.7 | E14: & | F14: 12 | G14: & | H14: 10.2 | I14: & | J14: 6.9 | K14: & | L14: =+[1]modelo!$IC13 -> 0.0001483619485 | M14: \\ | N14: 0.1483619485
B15: 5 | C15: & | D15: 2.3 | E15: & | F15: 15.4 | G15: & | H15: 13.2 | I15: & | J15: 8.9 | K15: & | L15: =+[1]modelo!$IC14 -> 8.959035125e-05 | M15: \\ | N15: 0.08959035125
B16: 6 | C16: & | D16: 2.9 | E16: & | F16: 19.1 | G16: & | H16: 16.2 | I16: & | J16: 11 | K16: & | L16: =+[1]modelo!$IC15 -> 2.336974739e-06 | M16: \\ | N16: 0.002336974739
B17: 7 | C17: & | D17: 3.5 | E17: & | F17: 22.9 | G17: & | H17: 19.4 | I17: & | J17: 13.1 | K17: & | L17: =+[1]modelo!$IC16 -> -0.0001090460823 | M17: \\ | N17: -0.1090460823
B18: 8 | C18: & | D18: 4.2 | E18: & | F18: 27 | G18: & | H18: 22.8 | I18: & | J18: 15.4 | K18: & | L18: =+[1]modelo!$IC17 -> -0.0002405325637 | M18: \\ | N18: -0.2405325637
B19: 9 | C19: & | D19: 4.9 | E19: & | F19: 31.2 | G19: & | H19: 26.3 | I19: & | J19: 17.8 | K19: & | L19: =+[1]modelo!$IC18 -> -0.0003884175521 | M19: \\ | N19: -0.3884175521
B20: 10 | C20: & | D20: 5.8 | E20: & | F20: 35.8 | G20: & | H20: 30 | I20: & | J20: 20.4 | K20: & | L20: =+[1]modelo!$IC19 -> -0.0005493103436 | M20: \\ | N20: -0.5493103436
B21: 11 | C21: & | D21: 6.7 | E21: & | F21: 40.5 | G21: & | H21: 33.9 | I21: & | J21: 23 | K21: & | L21: =+[1]modelo!$IC20 -> -0.0007201251006 | M21: \\ | N21: -0.7201251006
B22: 12 | C22: & | D22: 7.6 | E22: & | F22: 45.5 | G22: & | H22: 37.9 | I22: & | J22: 25.8 | K22: & | L22: =+[1]modelo!$IC21 -> -0.0008980696451 | M22: \\ | N22: -0.8980696451
B23: 13 | C23: & | D23: 8.7 | E23: & | F23: 50.8 | G23: & | H23: 42.1 | I23: & | J23: 28.7 | K23: & | L23: =+[1]modelo!$IC22 -> -0.001080632738 | M23: \\ | N23: -1.080632738
B24: 14 | C24: & | D24: 9.9 | E24: & | F24: 56.4 | G24: & | H24: 46.5 | I24: & | J24: 31.7 | K24: & | L24: =+[1]modelo!$IC23 -> -0.00126557017 | M24: \\ | N24: -1.26557017
B25: 15 | C25: & | D25: 11.1 | E25: & | F25: 62.3 | G25: & | H25: 51.2 | I25: & | J25: 34.9 | K25: & | L25: =+[1]modelo!$IC24 -> -0.001450889963 | M25: \\ | N25: -1.450889963
B26: 16 | C26: & | D26: 12.5 | E26: & | F26: 68.5 | G26: & | H26: 56 | I26: & | J26: 38.3 | K26: & | L26: =+[1]modelo!$IC25 -> -0.001634836961 | M26: \\ | N26: -1.634836961
B27: 17 | C27: & | D27: 14 | E27: & | F27: 75 | G27: & | H27: 61 | I27: & | J27: 41.7 | K27: & | L27: =+[1]modelo!$IC26 -> -0.001815877041 | M27: \\ | N27: -1.815877041
B28: 18 | C28: & | D28: 15.7 | E28: & | F28: 81.9 | G28: & | H28: 66.2 | I28: & | J28: 45.4 | K28: & | L28: =+[1]modelo!$IC27 -> -0.001992681183 | M28: \\ | N28: -1.992681183
B29: 19 | C29: & | D29: 17.5 | E29: & | F29: 89.1 | G29: & | H29: 71.7 | I29: & | J29: 49.2 | K29: & | L29: =+[1]modelo!$IC28 -> -0.002164109574 | M29: \\ | N29: -2.164109574
B30: 20 | C30: & | D30: 19.4 | E30: & | F30: 96.7 | G30: & | H30: 77.3 | I30: & | J30: 53.2 | K30: & | L30: =+[1]modelo!$IC29 -> -0.00232919591 | M30: \\ | N30: -2.32919591
B31: \\
B32: \hline \\
B33: \multicolumn{6}{l}{\textit{Fuente}: Cálculos de los autores. Nota 1.}\\
B34: \multicolumn{6}{l}{Mil millones de pesos de 2003. 2. Columna 2 menos 1.} \\
B35: \multicolumn{6}{l}{3. Bajo el supuesto que 50\% de la inversión }\\
B36: \multicolumn{6}{l}{pagado por los extranjeros en cambio por 35\% de las}\\
B37: \multicolumn{6}{l}{4. Porciento }\\
B38: \multicolumn{6}{l}{exportaciones.} \\
B39: \end{tabular}
B40: \end{table}
B41: \end{center}

Sheet SAMP (2)
B2: Produccion | F2: Empresas | J2: Factores de Produccion | N2: Hogares-Qunitiles | S2: Gob | U2: Invers | X2: Extranjeros
Z3: Total
B4: AgPec | C4: Pet | D4: Industria | E4: Servicios | F4: AgPec | G4: Pet | H4: Industria | I4: Servicios | J4: Ls | K4: Lu | L4: Capital | M4: Margen | U4: Privado | V4: Publico | W4: Publico | X4: Expt | Y4: Expt Mex
N5: 1 | O5: 2 | P5: 3 | Q5: 4 | R5: 5 | S5: Local | T5: Federal | V5: Local | W5: Federal | X5: XRM | Y5: XRM
A6: Bienes | F6: 8665.418951 | G6: 78024.6103 | H6: 66776.70949 | I6: 102183.2868 | Z6: 255650.0255
A7: AgPec | F7: 6784.059096 | G7: 0 | H7: 0 | I7: 0 | Z7: 6784.059096
A8: Pet | F8: 0 | G8: 77980.04402 | H8: 0 | I8: 0 | Z8: 77980.04402
A9: Industria | F9: 0 | G9: 0 | H9: 50164.00836 | I9: 191.6371119 | Z9: 50355.64547
A10: Servicios | F10: 0 | G10: 0 | H10: 616.627263 | I10: 101991.6497 | Z10: 102608.2769
A11: Margen | F11: 1881.359855 | G11: 44.56627476 | H11: 15996.07387 | I11: 0 | Z11: 17922
A12: Empresas | B12: 2559.059096 | C12: 3357.04402 | D12: 28842.95105 | E12: 34646.56024 | M12: 17922 | N12: 3951.213015 | O12: 5743.301745 | P12: 8903.439267 | Q12: 13803.64996 | R12: 37580.82545 | S12: 10072.32547 | T12: 16697.436 | U12: 8714.036044 | V12: 7589.843387 | W12: 4217.629213 | X12: 32523.35031 | Y12: 78622.60117 | Z12: 315747.2654
A13: AgPec | B13: 362.0474097 | C13: 0 | D13: 13365.97671 | E13: 561.961423 | N13: 344.6383935 | O13: 472.2624614 | P13: 470.6951047 | Q13: 547.1660928 | R13: 591.9124826 | S13: 0 | T13: 0 | U13: 75.38890074 | V13: 65.66302307 | W13: 36.4885374 | X13: 0 | Y13: 2289.243365 | Z13: 19183.4439 | AA13: 0 | AC13: 0.0291168612
A14: Pet | B14: 0 | C14: 0 | D14: 0 | E14: 0 | N14: 0 | O14: 0 | P14: 0 | Q14: 0 | R14: 0 | S14: 0 | T14: 0 | U14: 0 | V14: 0 | W14: 0 | X14: 32435.15138 | Y14: 45589.45892 | Z14: 78024.6103 | AA14: 1130.294999 | AC14: 0.5798518268 | AD14: 0.9638852158
A15: Industria | B15: 2052.94672 | C15: 358.5071617 | D15: 11115.68487 | E15: 18840.80696 | N15: 1920.380913 | O15: 3278.437614 | P15: 4524.32278 | Q15: 6052.266273 | R15: 10474.2444 | S15: 0 | T15: 0 | U15: 1713.965142 | V15: 1492.847509 | W15: 829.5661639 | X15: 88.19893394 | Y15: 30193.70398 | Z15: 92935.87942 | AC15: 0.384033389
A16: Servicios | B16: 144.0649657 | C16: 2998.536859 | D16: 4361.289469 | E16: 15243.79185 | M16: 17922 | N16: 1686.193709 | O16: 1992.60167 | P16: 3908.421382 | Q16: 7204.217594 | R16: 26514.66856 | S16: 10072.32547 | T16: 16697.436 | U16: 6924.682001 | V16: 6031.332855 | W16: 3351.574511 | X16: 0 | Y16: 550.1949118 | Z16: 125603.3318 | AC16: 0.006997923035
A17: Factores | B17: 4204.531795 | C17: 2582.427938 | D17: 20870.10838 | E17: 66982.1281 | Z17: 94639.1962
A18: Ls | B18: 365.2152015 | C18: 1807.699556 | D18: 6485.63213 | E18: 13719.43917 | Z18: 22377.98606
A19: Lu | B19: 1460.860806 | C19: 774.7283813 | D19: 2161.877377 | E19: 9146.29278 | Z19: 13543.75934
A20: Capital | B20: 2378.455788 | C20: -6.366462912e-12 | D20: 12222.59887 | E20: 44116.39615 | Z20: 58717.4508
A21: Hogares | J21: 22377.98606 | K21: 13543.75934 | L21: 58717.4508 | S21: 947.8864051 | T21: 680.2250895 | X21: 201.1164714 | Y21: 1700.562724 | Z21: 98168.98689
A22: H1 | J22: 620.6309473 | K22: 3517.250491 | L22: 0 | S22: 155.2198003 | T22: 8.428512352 | X22: 9.645642586 | Y22: 21.07128088 | Z22: 4332.246674
A23: H2 | J23: 2518.039394 | K23: 3096.678009 | L23: 670.6200225 | S23: 295.60468 | T23: 15.34468145 | X23: 29.75127607 | Y23: 38.36170362 | Z23: 6664.399766
A24: H3 | J24: 4296.487925 | K24: 2403.588109 | L24: 3432.802722 | S24: 261.2930534 | T24: 97.31382862 | X24: 69.13942483 | Y24: 243.2845716 | Z24: 10803.90963
A25: H4 | J25: 4719.017942 | K25: 2137.51013 | L25: 9425.988111 | S25: 151.8609267 | T25: 163.8697786 | X25: 1.503412275 | Y25: 409.6744464 | Z25: 17009.42475
A26: H6 | J26: 10223.80985 | K26: 2388.732606 | L26: 45188.03995 | S26: 83.90794474 | T26: 395.2682885 | X26: 91.07671561 | Y26: 988.1707213 | Z26: 59359.00607
A27: Gobierno local | B27: 20.46820485 | C27: 1497.420682 | D27: 642.586047 | E27: 979.58861 | G27: 0 | H27: 1243.305577 | I27: 816.283294 | Z27: 5199.652415
A28: Impuestos indirectos | B28: 20.46820485 | C28: 1497.420682 | D28: 642.586047 | E28: 979.58861 | F28: 0 | G28: 0 | H28: 1243.305577 | I28: 816.283294 | Z28: 5199.652415
A29: Gobierno federal | C29: 70543.15138 | Z29: 70543.15138
A30: Ganacias de petroleo | C30: 70543.15138 | Z30: 70543.15138
A31: Ahorros | N31: 381.0336585 | O31: 921.0980212 | P31: 1900.470367 | Q31: 3205.774787 | R31: 21778.18063 | S31: -5820.55946 | T31: 53165.49029 | X31: -32494.23474 | Y31: -22515.7449 | Z31: 20521.50864
A32: Externo | F32: 10518.02495 | G32: 0 | H32: 24915.86435 | I32: 22603.76173 | Z32: 58037.65103
A33: Resto del mundo | F33: 171.4503086 | G33: 0 | H33: 58.78173504 | Z33: 230.2320436
A34: Resto del Mexico | F34: 10346.57464 | G34: 0 | H34: 24857.08262 | I34: 22603.76173 | Z34: 57807.41899
A36: Total | B36: 6784.059096 | C36: 77980.04402 | D36: 50355.64547 | E36: 102608.2769 | F36: 19183.4439 | G36: 78024.6103 | H36: 92935.87942 | I36: 125603.3318 | J36: 22377.98606 | K36: 13543.75934 | L36: 58717.4508 | M36: 17922 | N36: 4332.246674 | O36: 6664.399766 | P36: 10803.90963 | Q36: 17009.42475 | R36: 59359.00607 | S36: 5199.652415 | T36: 70543.15138 | U36: 8714.036044 | V36: 7589.843387 | W36: 4217.629213 | X36: 230.2320436 | Y36: 57807.41899

Sheet SAMP
B2: Produccion | F2: Empresas | J2: Factores de Produccion | N2: Hogares-Qunitiles | S2: Gob | U2: Invers | X2: Extranjeros
Z3: Total
B4: AgPec | C4: Pet | D4: Industria | E4: Servicios | F4: AgPec | G4: Pet | H4: Industria | I4: Servicios | J4: Ls | K4: Lu | L4: Capital | M4: Margen | U4: Privado | V4: Publico | W4: Publico | X4: Expt | Y4: Expt Mex
N5: 1 | O5: 2 | P5: 3 | Q5: 4 | R5: 5 | S5: Local | T5: Federal | V5: Local | W5: Federal | X5: XRM | Y5: XRM
A6: Bienes | F6: 8665.418951 | G6: 78024.6103 | H6: 66776.70949 | I6: 102183.2868 | Z6: 255650.0255
A7: AgPec | F7: 6784.059096 | G7: 0 | H7: 0 | I7: 0 | Z7: 6784.059096
A8: Pet | F8: 0 | G8: 77980.04402 | H8: 0 | I8: 0 | Z8: 77980.04402
A9: Industria | F9: 0 | G9: 0 | H9: 50164.00836 | I9: 191.6371119 | Z9: 50355.64547
A10: Servicios | F10: 0 | G10: 0 | H10: 616.627263 | I10: 101991.6497 | Z10: 102608.2769
A11: Margen | F11: 1881.359855 | G11: 44.56627476 | H11: 15996.07387 | I11: 0 | Z11: 17922
A12: Empresas | B12: 2559.059096 | C12: 3357.04402 | D12: 28842.95105 | E12: 34646.56024 | M12: 17922 | N12: 3951.213015 | O12: 5743.301745 | P12: 8903.439267 | Q12: 13803.64996 | R12: 37580.82545 | S12: 10072.32547 | T12: 16697.436 | U12: 8714.036044 | V12: 7589.843387 | W12: 4217.629213 | X12: 32523.35031 | Y12: 78622.60117 | Z12: 315747.2654
A13: AgPec | B13: 362.0474097 | C13: 0 | D13: 13365.97671 | E13: 561.961423 | N13: 344.6383935 | O13: 472.2624614 | P13: 470.6951047 | Q13: 547.1660928 | R13: 591.9124826 | S13: 0 | T13: 0 | U13: 75.38890074 | V13: 65.66302307 | W13: 36.4885374 | X13: 0 | Y13: 2289.243365 | Z13: 19183.4439 | AA13: 0 | AC13: 0.0291168612
A14: Pet | B14: 0 | C14: 0 | D14: 0 | E14: 0 | N14: 0 | O14: 0 | P14: 0 | Q14: 0 | R14: 0 | S14: 0 | T14: 0 | U14: 0 | V14: 0 | W14: 0 | X14: 32435.15138 | Y14: 45589.45892 | Z14: 78024.6103 | AA14: 1130.294999 | AC14: 0.5798518268 | AD14: 0.9638852158
A15: Industria | B15: 2052.94672 | C15: 358.5071617 | D15: 11115.68487 | E15: 18840.80696 | N15: 1920.380913 | O15: 3278.437614 | P15: 4524.32278 | Q15: 6052.266273 | R15: 10474.2444 | S15: 0 | T15: 0 | U15: 1713.965142 | V15: 1492.847509 | W15: 829.5661639 | X15: 88.19893394 | Y15: 30193.70398 | Z15: 92935.87942 | AC15: 0.384033389
A16: Servicios | B16: 144.0649657 | C16: 2998.536859 | D16: 4361.289469 | E16: 15243.79185 | M16: 17922 | N16: 1686.193709 | O16: 1992.60167 | P16: 3908.421382 | Q16: 7204.217594 | R16: 26514.66856 | S16: 10072.32547 | T16: 16697.436 | U16: 6924.682001 | V16: 6031.332855 | W16: 3351.574511 | X16: 0 | Y16: 550.1949118 | Z16: 125603.3318 | AC16: 0.006997923035
A17: Factores | B17: 4204.531795 | C17: 2582.427938 | D17: 20870.10838 | E17: 66982.1281 | Z17: 94639.1962
A18: Ls | B18: 365.2152015 | C18: 1807.699556 | D18: 6485.63213 | E18: 13719.43917 | Z18: 22377.98606
A19: Lu | B19: 1460.860806 | C19: 774.7283813 | D19: 2161.877377 | E19: 9146.29278 | Z19: 13543.75934
A20: Capital | B20: 2378.455788 | C20: -6.366462912e-12 | D20: 12222.59887 | E20: 44116.39615 | Z20: 58717.4508
A21: Hogares | J21: 22377.98606 | K21: 13543.75934 | L21: 58717.4508 | S21: 947.8864051 | T21: 680.2250895 | X21: 201.1164714 | Y21: 1700.562724 | Z21: 98168.98689
A22: H1 | J22: 620.6309473 | K22: 3517.250491 | L22: 0 | S22: 155.2198003 | T22: 8.428512352 | X22: 9.645642586 | Y22: 21.07128088 | Z22: 4332.246674
A23: H2 | J23: 2518.039394 | K23: 3096.678009 | L23: 670.6200225 | S23: 295.60468 | T23: 15.34468145 | X23: 29.75127607 | Y23: 38.36170362 | Z23: 6664.399766
A24: H3 | J24: 4296.487925 | K24: 2403.588109 | L24: 3432.802722 | S24: 261.2930534 | T24: 97.31382862 | X24: 69.13942483 | Y24: 243.2845716 | Z24: 10803.90963
A25: H4 | J25: 4719.017942 | K25: 2137.51013 | L25: 9425.988111 | S25: 151.8609267 | T25: 163.8697786 | X25: 1.503412275 | Y25: 409.6744464 | Z25: 17009.42475
A26: H6 | J26: 10223.80985 | K26: 2388.732606 | L26: 45188.03995 | S26: 83.90794474 | T26: 395.2682885 | X26: 91.07671561 | Y26: 988.1707213 | Z26: 59359.00607
A27: Gobierno local | B27: 20.46820485 | C27: 1497.420682 | D27: 642.586047 | E27: 979.58861 | G27: 0 | H27: 1243.305577 | I27: 816.283294 | Z27: 5199.652415
A28: Impuestos indirectos | B28: 20.46820485 | C28: 1497.420682 | D28: 642.586047 | E28: 979.58861 | F28: 0 | G28: 0 | H28: 1243.305577 | I28: 816.283294 | Z28: 5199.652415
A29: Gobierno federal | C29: 70543.15138 | Z29: 70543.15138
A30: Ganacias de petroleo | C30: 70543.15138 | Z30: 70543.15138
A31: Ahorros | N31: 381.0336585 | O31: 921.0980212 | P31: 1900.470367 | Q31: 3205.774787 | R31: 21778.18063 | S31: -5820.55946 | T31: 53165.49029 | X31: -32494.23474 | Y31: -22515.7449 | Z31: 20521.50864
A32: Externo | F32: 10518.02495 | G32: 0 | H32: 24915.86435 | I32: 22603.76173 | Z32: 58037.65103
A33: Resto del mundo | F33: 171.4503086 | G33: 0 | H33: 58.78173504 | Z33: 230.2320436
A34: Resto del Mexico | F34: 10346.57464 | G34: 0 | H34: 24857.08262 | I34: 22603.76173 | Z34: 57807.41899
A36: Total | B36: 6784.059096 | C36: 77980.04402 | D36: 50355.64547 | E36: 102608.2769 | F36: 19183.4439 | G36: 78024.6103 | H36: 92935.87942 | I36: 125603.3318 | J36: 22377.98606 | K36: 13543.75934 | L36: 58717.4508 | M36: 17922 | N36: 4332.246674 | O36: 6664.399766 | P36: 10803.90963 | Q36: 17009.42475 | R36: 59359.00607 | S36: 5199.652415 | T36: 70543.15138 | U36: 8714.036044 | V36: 7589.843387 | W36: 4217.629213 | X36: 230.2320436 | Y36: 57807.41899

Sheet SAM9T (2)
Z7: No Calif | AA7: & | AB7: =+SAMP!L4 -> Capital
Z8: =IF(SAMP!K21="","",SAMP!K21) -> 13543.75934 | AA8: & | AB8: =IF(SAMP!L21="","",SAMP!L21) -> 58717.4508
Z9: =IF(SAMP!K22="","",SAMP!K22) -> 3517.250491 | AA9: & | AB9: =IF(SAMP!L22="","",SAMP!L22) -> 0
Z10: =IF(SAMP!K23="","",SAMP!K23) -> 3096.678009 | AA10: & | AB10: =IF(SAMP!L23="","",SAMP!L23) -> 670.6200225
Z11: =IF(SAMP!K24="","",SAMP!K24) -> 2403.588109 | AA11: & | AB11: =IF(SAMP!L24="","",SAMP!L24) -> 3432.802722
Z12: =IF(SAMP!K25="","",SAMP!K25) -> 2137.51013 | AA12: & | AB12: =IF(SAMP!L25="","",SAMP!L25) -> 9425.988111
Z13: =IF(SAMP!K26="","",SAMP!K26) -> 2388.732606 | AA13: & | AB13: =IF(SAMP!L26="","",SAMP!L26) -> 45188.03995
Z14: =IF(SAMP!K27="","",SAMP!K27) ->  | AA14: & | AB14: =IF(SAMP!L27="","",SAMP!L27) -> 
Z15: =IF(SAMP!K28="","",SAMP!K28) ->  | AA15: & | AB15: =IF(SAMP!L28="","",SAMP!L28) -> 
Z16: =IF(SAMP!K29="","",SAMP!K29) ->  | AA16: & | AB16: =IF(SAMP!L29="","",SAMP!L29) -> 
Z17: =IF(SAMP!K30="","",SAMP!K30) ->  | AA17: & | AB17: =IF(SAMP!L30="","",SAMP!L30) -> 
Z18: =IF(SAMP!K31="","",SAMP!K31) ->  | AA18: & | AB18: =IF(SAMP!L31="","",SAMP!L31) -> 
Z19: =IF(SAMP!K32="","",SAMP!K32) ->  | AA19: & | AB19: =IF(SAMP!L32="","",SAMP!L32) -> 
Z20: =IF(SAMP!K33="","",SAMP!K33) ->  | AA20: & | AB20: =IF(SAMP!L33="","",SAMP!L33) -> 
Z21: =IF(SAMP!K34="","",SAMP!K34) ->  | AA21: & | AB21: =IF(SAMP!L34="","",SAMP!L34) -> 
Z22: =IF(SAMP!K36="","",SAMP!K36) -> 13543.75934 | AA22: & | AB22: =IF(SAMP!L36="","",SAMP!L36) -> 58717.4508

Sheet SAM9T
B1: \begin{landscape}
B2: \begin{center}
B3: \begin{table}
B4: [tbp] \centering \caption{Matriz de contabilidad social}\label{SAM9T}
B5: \begin{tabular}{lccccccccc}
B6: \\ \hline \\
A7: =COUNTIF(B9:BW9,"&") -> 11 | C7: & | D7: =+SAMP!B4 -> AgPec | E7: & | F7: =+SAMP!C4 -> Pet | G7: & | H7: =+SAMP!D4 -> Industria | I7: & | J7: =+SAMP!E4 -> Servicios | K7: & | L7: =+SAMP!F4 -> AgPec | M7: & | N7: =+SAMP!G4 -> Pet | O7: & | P7: =+SAMP!H4 -> Industria | Q7: & | R7: =+SAMP!I4 -> Servicios | S7: & | T7: Calif | U7: \\ | AB7: & | AC7: No Calif | AD7: & | AE7: =+SAMP!L4 -> Capital
B8: \textbf{Bienes} | C8: & | D8: =IF(SAMP!B6="","",SAMP!B6) ->  | E8: & | F8: =IF(SAMP!C6="","",SAMP!C6) ->  | G8: & | H8: =IF(SAMP!D6="","",SAMP!D6) ->  | I8: & | J8: =IF(SAMP!E6="","",SAMP!E6) ->  | K8: & | L8: =IF(SAMP!F6="","",SAMP!F6) -> 8665.418951 | M8: & | N8: =IF(SAMP!G6="","",SAMP!G6) -> 78024.6103 | O8: & | P8: =IF(SAMP!H6="","",SAMP!H6) -> 66776.70949 | Q8: & | R8: =IF(SAMP!I6="","",SAMP!I6) -> 102183.2868 | S8: & | T8: =IF(SAMP!J6="","",SAMP!J6) ->  | U8: \\ | AB8: & | AC8: =IF(SAMP!K6="","",SAMP!K6) ->  | AD8: & | AE8: =IF(SAMP!L6="","",SAMP!L6) -> 
B9: AgPec | C9: & | D9: =IF(SAMP!B7="","",SAMP!B7) ->  | E9: & | F9: =IF(SAMP!C7="","",SAMP!C7) ->  | G9: & | H9: =IF(SAMP!D7="","",SAMP!D7) ->  | I9: & | J9: =IF(SAMP!E7="","",SAMP!E7) ->  | K9: & | L9: =IF(SAMP!F7="","",SAMP!F7) -> 6784.059096 | M9: & | O9: & | Q9: & | S9: & | T9: =IF(SAMP!J7="","",SAMP!J7) ->  | U9: \\ | AB9: & | AC9: =IF(SAMP!K7="","",SAMP!K7) ->  | AD9: & | AE9: =IF(SAMP!L7="","",SAMP!L7) -> 
B10: Pet | C10: & | D10: =IF(SAMP!B8="","",SAMP!B8) ->  | E10: & | F10: =IF(SAMP!C8="","",SAMP!C8) ->  | G10: & | H10: =IF(SAMP!D8="","",SAMP!D8) ->  | I10: & | J10: =IF(SAMP!E8="","",SAMP!E8) ->  | K10: & | M10: & | N10: =IF(SAMP!G8="","",SAMP!G8) -> 77980.04402 | O10: & | Q10: & | S10: & | T10: =IF(SAMP!J8="","",SAMP!J8) ->  | U10: \\ | AB10: & | AC10: =IF(SAMP!K8="","",SAMP!K8) ->  | AD10: & | AE10: =IF(SAMP!L8="","",SAMP!L8) -> 
B11: Industria | C11: & | D11: =IF(SAMP!B9="","",SAMP!B9) ->  | E11: & | F11: =IF(SAMP!C9="","",SAMP!C9) ->  | G11: & | H11: =IF(SAMP!D9="","",SAMP!D9) ->  | I11: & | J11: =IF(SAMP!E9="","",SAMP!E9) ->  | K11: & | M11: & | O11: & | P11: =IF(SAMP!H9="","",SAMP!H9) -> 50164.00836 | Q11: & | R11: =IF(SAMP!I9="","",SAMP!I9) -> 191.6371119 | S11: & | T11: =IF(SAMP!J9="","",SAMP!J9) ->  | U11: \\ | AB11: & | AC11: =IF(SAMP!K9="","",SAMP!K9) ->  | AD11: & | AE11: =IF(SAMP!L9="","",SAMP!L9) -> 
B12: Servicios | C12: & | D12: =IF(SAMP!B10="","",SAMP!B10) ->  | E12: & | F12: =IF(SAMP!C10="","",SAMP!C10) ->  | G12: & | H12: =IF(SAMP!D10="","",SAMP!D10) ->  | I12: & | J12: =IF(SAMP!E10="","",SAMP!E10) ->  | K12: & | M12: & | O12: & | P12: =IF(SAMP!H10="","",SAMP!H10) -> 616.627263 | Q12: & | R12: =IF(SAMP!I10="","",SAMP!I10) -> 101991.6497 | S12: & | T12: =IF(SAMP!J10="","",SAMP!J10) ->  | U12: \\ | AB12: & | AC12: =IF(SAMP!K10="","",SAMP!K10) ->  | AD12: & | AE12: =IF(SAMP!L10="","",SAMP!L10) -> 
B13: Margen | C13: & | D13: =IF(SAMP!B11="","",SAMP!B11) ->  | E13: & | F13: =IF(SAMP!C11="","",SAMP!C11) ->  | G13: & | H13: =IF(SAMP!D11="","",SAMP!D11) ->  | I13: & | J13: =IF(SAMP!E11="","",SAMP!E11) ->  | K13: & | L13: =IF(SAMP!F11="","",SAMP!F11) -> 1881.359855 | M13: & | N13: =IF(SAMP!G11="","",SAMP!G11) -> 44.56627476 | O13: & | P13: =IF(SAMP!H11="","",SAMP!H11) -> 15996.07387 | Q13: & | S13: & | T13: =IF(SAMP!J11="","",SAMP!J11) ->  | U13: \\ | AB13: & | AC13: =IF(SAMP!K11="","",SAMP!K11) ->  | AD13: & | AE13: =IF(SAMP!L11="","",SAMP!L11) -> 
B14: \textbf{Empresas} | C14: & | D14: =IF(SAMP!B12="","",SAMP!B12) -> 2559.059096 | E14: & | F14: =IF(SAMP!C12="","",SAMP!C12) -> 3357.04402 | G14: & | H14: =IF(SAMP!D12="","",SAMP!D12) -> 28842.95105 | I14: & | J14: =IF(SAMP!E12="","",SAMP!E12) -> 34646.56024 | K14: & | L14: =IF(SAMP!F12="","",SAMP!F12) ->  | M14: & | N14: =IF(SAMP!G12="","",SAMP!G12) ->  | O14: & | P14: =IF(SAMP!H12="","",SAMP!H12) ->  | Q14: & | R14: =IF(SAMP!I12="","",SAMP!I12) ->  | S14: & | T14: =IF(SAMP!J12="","",SAMP!J12) ->  | U14: \\ | AB14: & | AC14: =IF(SAMP!K12="","",SAMP!K12) ->  | AD14: & | AE14: =IF(SAMP!L12="","",SAMP!L12) -> 
B15: AgPec | C15: & | D15: =IF(SAMP!B13="","",SAMP!B13) -> 362.0474097 | E15: & | G15: & | H15: =IF(SAMP!D13="","",SAMP!D13) -> 13365.97671 | I15: & | J15: =IF(SAMP!E13="","",SAMP!E13) -> 561.961423 | K15: & | L15: =IF(SAMP!F13="","",SAMP!F13) ->  | M15: & | N15: =IF(SAMP!G13="","",SAMP!G13) ->  | O15: & | P15: =IF(SAMP!H13="","",SAMP!H13) ->  | Q15: & | R15: =IF(SAMP!I13="","",SAMP!I13) ->  | S15: & | T15: =IF(SAMP!J13="","",SAMP!J13) ->  | U15: \\ | AB15: & | AC15: =IF(SAMP!K13="","",SAMP!K13) ->  | AD15: & | AE15: =IF(SAMP!L13="","",SAMP!L13) -> 
B16: Pet | C16: & | E16: & | G16: & | I16: & | K16: & | L16: =IF(SAMP!F14="","",SAMP!F14) ->  | M16: & | N16: =IF(SAMP!G14="","",SAMP!G14) ->  | O16: & | P16: =IF(SAMP!H14="","",SAMP!H14) ->  | Q16: & | R16: =IF(SAMP!I14="","",SAMP!I14) ->  | S16: & | T16: =IF(SAMP!J14="","",SAMP!J14) ->  | U16: \\ | AB16: & | AC16: =IF(SAMP!K14="","",SAMP!K14) ->  | AD16: & | AE16: =IF(SAMP!L14="","",SAMP!L14) -> 
B17: Industria | C17: & | D17: =IF(SAMP!B15="","",SAMP!B15) -> 2052.94672 | E17: & | F17: =IF(SAMP!C15="","",SAMP!C15) -> 358.5071617 | G17: & | H17: =IF(SAMP!D15="","",SAMP!D15) -> 11115.68487 | I17: & | J17: =IF(SAMP!E15="","",SAMP!E15) -> 18840.80696 | K17: & | L17: =IF(SAMP!F15="","",SAMP!F15) ->  | M17: & | N17: =IF(SAMP!G15="","",SAMP!G15) ->  | O17: & | P17: =IF(SAMP!H15="","",SAMP!H15) ->  | Q17: & | R17: =IF(SAMP!I15="","",SAMP!I15) ->  | S17: & | T17: =IF(SAMP!J15="","",SAMP!J15) ->  | U17: \\ | AB17: & | AC17: =IF(SAMP!K15="","",SAMP!K15) ->  | AD17: & | AE17: =IF(SAMP!L15="","",SAMP!L15) -> 
B18: Servicios | C18: & | D18: =IF(SAMP!B16="","",SAMP!B16) -> 144.0649657 | E18: & | F18: =IF(SAMP!C16="","",SAMP!C16) -> 2998.536859 | G18: & | H18: =IF(SAMP!D16="","",SAMP!D16) -> 4361.289469 | I18: & | J18: =IF(SAMP!E16="","",SAMP!E16) -> 15243.79185 | K18: & | L18: =IF(SAMP!F16="","",SAMP!F16) ->  | M18: & | N18: =IF(SAMP!G16="","",SAMP!G16) ->  | O18: & | P18: =IF(SAMP!H16="","",SAMP!H16) ->  | Q18: & | R18: =IF(SAMP!I16="","",SAMP!I16) ->  | S18: & | T18: =IF(SAMP!J16="","",SAMP!J16) ->  | U18: \\ | AB18: & | AC18: =IF(SAMP!K16="","",SAMP!K16) ->  | AD18: & | AE18: =IF(SAMP!L16="","",SAMP!L16) -> 
B19: \textbf{Factores} | C19: & | D19: =IF(SAMP!B17="","",SAMP!B17) -> 4204.531795 | E19: & | F19: =IF(SAMP!C17="","",SAMP!C17) -> 2582.427938 | G19: & | H19: =IF(SAMP!D17="","",SAMP!D17) -> 20870.10838 | I19: & | J19: =IF(SAMP!E17="","",SAMP!E17) -> 66982.1281 | K19: & | L19: =IF(SAMP!F17="","",SAMP!F17) ->  | M19: & | N19: =IF(SAMP!G17="","",SAMP!G17) ->  | O19: & | P19: =IF(SAMP!H17="","",SAMP!H17) ->  | Q19: & | R19: =IF(SAMP!I17="","",SAMP!I17) ->  | S19: & | T19: =IF(SAMP!J17="","",SAMP!J17) ->  | U19: \\ | AB19: & | AC19: =IF(SAMP!K17="","",SAMP!K17) ->  | AD19: & | AE19: =IF(SAMP!L17="","",SAMP!L17) -> 
B20: Ls | C20: & | D20: =IF(SAMP!B18="","",SAMP!B18) -> 365.2152015 | E20: & | F20: =IF(SAMP!C18="","",SAMP!C18) -> 1807.699556 | G20: & | H20: =IF(SAMP!D18="","",SAMP!D18) -> 6485.63213 | I20: & | J20: =IF(SAMP!E18="","",SAMP!E18) -> 13719.43917 | K20: & | L20: =IF(SAMP!F18="","",SAMP!F18) ->  | M20: & | N20: =IF(SAMP!G18="","",SAMP!G18) ->  | O20: & | P20: =IF(SAMP!H18="","",SAMP!H18) ->  | Q20: & | R20: =IF(SAMP!I18="","",SAMP!I18) ->  | S20: & | T20: =IF(SAMP!J18="","",SAMP!J18) ->  | U20: \\ | AB20: & | AC20: =IF(SAMP!K18="","",SAMP!K18) ->  | AD20: & | AE20: =IF(SAMP!L18="","",SAMP!L18) -> 
B21: Lu | C21: & | D21: =IF(SAMP!B19="","",SAMP!B19) -> 1460.860806 | E21: & | F21: =IF(SAMP!C19="","",SAMP!C19) -> 774.7283813 | G21: & | H21: =IF(SAMP!D19="","",SAMP!D19) -> 2161.877377 | I21: & | J21: =IF(SAMP!E19="","",SAMP!E19) -> 9146.29278 | K21: & | L21: =IF(SAMP!F19="","",SAMP!F19) ->  | M21: & | N21: =IF(SAMP!G19="","",SAMP!G19) ->  | O21: & | P21: =IF(SAMP!H19="","",SAMP!H19) ->  | Q21: & | R21: =IF(SAMP!I19="","",SAMP!I19) ->  | S21: & | T21: =IF(SAMP!J19="","",SAMP!J19) ->  | U21: \\ | AB21: & | AC21: =IF(SAMP!K19="","",SAMP!K19) ->  | AD21: & | AE21: =IF(SAMP!L19="","",SAMP!L19) -> 
B22: Capital | C22: & | D22: =IF(SAMP!B20="","",SAMP!B20) -> 2378.455788 | E22: & | G22: & | H22: =IF(SAMP!D20="","",SAMP!D20) -> 12222.59887 | I22: & | J22: =IF(SAMP!E20="","",SAMP!E20) -> 44116.39615 | K22: & | L22: =IF(SAMP!F20="","",SAMP!F20) ->  | M22: & | N22: =IF(SAMP!G20="","",SAMP!G20) ->  | O22: & | P22: =IF(SAMP!H20="","",SAMP!H20) ->  | Q22: & | R22: =IF(SAMP!I20="","",SAMP!I20) ->  | S22: & | T22: =IF(SAMP!J20="","",SAMP!J20) ->  | U22: \\ | AB22: & | AC22: =IF(SAMP!K20="","",SAMP!K20) ->  | AD22: & | AE22: =IF(SAMP!L20="","",SAMP!L20) -> 
B23: \\ \hline \\
B24: \multicolumn{8}{l}{\textit{Fuente}: C\'{a}lculos de los autores. \citet{INEGI13}-ver cuadro \ref{cnT}. Nota: 1. 2003.} \\
B25: \end{tabular}
B26: \end{table}
B27: \end{center}
B28: \end{landscape}
B30: \begin{landscape}
B31: \begin{center}
B32: \begin{table}
B33: [tbp] \centering \caption{Matriz de contabilidad social-con't p2 de 6}\label{SAM2}
B34: \begin{tabular}{lccccccccc}
B35: \\ \hline \\
C36: & | D36: =+SAMP!B4 -> AgPec | E36: & | F36: =+SAMP!C4 -> Pet | G36: & | H36: =+SAMP!D4 -> Industria | I36: & | J36: =+SAMP!E4 -> Servicios | K36: & | L36: =+SAMP!F4 -> AgPec | M36: & | N36: =+SAMP!G4 -> Pet | O36: & | P36: =+SAMP!H4 -> Industria | Q36: & | R36: =+SAMP!I4 -> Servicios | S36: & | T36: Calif | U36: \\
B37: \textbf{Hogares} | C37: & | D37: =IF(SAMP!B21="","",SAMP!B21) ->  | E37: & | F37: =IF(SAMP!C21="","",SAMP!C21) ->  | G37: & | H37: =IF(SAMP!D21="","",SAMP!D21) ->  | I37: & | J37: =IF(SAMP!E21="","",SAMP!E21) ->  | K37: & | L37: =IF(SAMP!F21="","",SAMP!F21) ->  | M37: & | N37: =IF(SAMP!G21="","",SAMP!G21) ->  | O37: & | P37: =IF(SAMP!H21="","",SAMP!H21) ->  | Q37: & | R37: =IF(SAMP!I21="","",SAMP!I21) ->  | S37: & | T37: =IF(SAMP!J21="","",SAMP!J21) -> 22377.98606 | U37: \\
B38: H1 | C38: & | D38: =IF(SAMP!B22="","",SAMP!B22) ->  | E38: & | F38: =IF(SAMP!C22="","",SAMP!C22) ->  | G38: & | H38: =IF(SAMP!D22="","",SAMP!D22) ->  | I38: & | J38: =IF(SAMP!E22="","",SAMP!E22) ->  | K38: & | L38: =IF(SAMP!F22="","",SAMP!F22) ->  | M38: & | N38: =IF(SAMP!G22="","",SAMP!G22) ->  | O38: & | P38: =IF(SAMP!H22="","",SAMP!H22) ->  | Q38: & | R38: =IF(SAMP!I22="","",SAMP!I22) ->  | S38: & | T38: =IF(SAMP!J22="","",SAMP!J22) -> 620.6309473 | U38: \\
B39: H2 | C39: & | D39: =IF(SAMP!B23="","",SAMP!B23) ->  | E39: & | F39: =IF(SAMP!C23="","",SAMP!C23) ->  | G39: & | H39: =IF(SAMP!D23="","",SAMP!D23) ->  | I39: & | J39: =IF(SAMP!E23="","",SAMP!E23) ->  | K39: & | L39: =IF(SAMP!F23="","",SAMP!F23) ->  | M39: & | N39: =IF(SAMP!G23="","",SAMP!G23) ->  | O39: & | P39: =IF(SAMP!H23="","",SAMP!H23) ->  | Q39: & | R39: =IF(SAMP!I23="","",SAMP!I23) ->  | S39: & | T39: =IF(SAMP!J23="","",SAMP!J23) -> 2518.039394 | U39: \\
B40: H3 | C40: & | D40: =IF(SAMP!B24="","",SAMP!B24) ->  | E40: & | F40: =IF(SAMP!C24="","",SAMP!C24) ->  | G40: & | H40: =IF(SAMP!D24="","",SAMP!D24) ->  | I40: & | J40: =IF(SAMP!E24="","",SAMP!E24) ->  | K40: & | L40: =IF(SAMP!F24="","",SAMP!F24) ->  | M40: & | N40: =IF(SAMP!G24="","",SAMP!G24) ->  | O40: & | P40: =IF(SAMP!H24="","",SAMP!H24) ->  | Q40: & | R40: =IF(SAMP!I24="","",SAMP!I24) ->  | S40: & | T40: =IF(SAMP!J24="","",SAMP!J24) -> 4296.487925 | U40: \\
B41: H4 | C41: & | D41: =IF(SAMP!B25="","",SAMP!B25) ->  | E41: & | F41: =IF(SAMP!C25="","",SAMP!C25) ->  | G41: & | H41: =IF(SAMP!D25="","",SAMP!D25) ->  | I41: & | J41: =IF(SAMP!E25="","",SAMP!E25) ->  | K41: & | L41: =IF(SAMP!F25="","",SAMP!F25) ->  | M41: & | N41: =IF(SAMP!G25="","",SAMP!G25) ->  | O41: & | P41: =IF(SAMP!H25="","",SAMP!H25) ->  | Q41: & | R41: =IF(SAMP!I25="","",SAMP!I25) ->  | S41: & | T41: =IF(SAMP!J25="","",SAMP!J25) -> 4719.017942 | U41: \\
B42: H6 | C42: & | D42: =IF(SAMP!B26="","",SAMP!B26) ->  | E42: & | F42: =IF(SAMP!C26="","",SAMP!C26) ->  | G42: & | H42: =IF(SAMP!D26="","",SAMP!D26) ->  | I42: & | J42: =IF(SAMP!E26="","",SAMP!E26) ->  | K42: & | L42: =IF(SAMP!F26="","",SAMP!F26) ->  | M42: & | N42: =IF(SAMP!G26="","",SAMP!G26) ->  | O42: & | P42: =IF(SAMP!H26="","",SAMP!H26) ->  | Q42: & | R42: =IF(SAMP!I26="","",SAMP!I26) ->  | S42: & | T42: =IF(SAMP!J26="","",SAMP!J26) -> 10223.80985 | U42: \\
B43: \textbf{Gobierno} | C43: & | D43: =IF(SAMP!B27="","",SAMP!B27) -> 20.46820485 | E43: & | F43: =IF(SAMP!C27="","",SAMP!C27) -> 1497.420682 | G43: & | H43: =IF(SAMP!D27="","",SAMP!D27) -> 642.586047 | I43: & | J43: =IF(SAMP!E27="","",SAMP!E27) -> 979.58861 | K43: & | L43: =IF(SAMP!F27="","",SAMP!F27) ->  | M43: & | O43: & | P43: =IF(SAMP!H27="","",SAMP!H27) -> 1243.305577 | Q43: & | R43: =IF(SAMP!I27="","",SAMP!I27) -> 816.283294 | S43: & | T43: =IF(SAMP!J27="","",SAMP!J27) ->  | U43: \\
B44: Impuestos indirectos | C44: & | D44: =IF(SAMP!B28="","",SAMP!B28) -> 20.46820485 | E44: & | F44: =IF(SAMP!C28="","",SAMP!C28) -> 1497.420682 | G44: & | H44: =IF(SAMP!D28="","",SAMP!D28) -> 642.586047 | I44: & | J44: =IF(SAMP!E28="","",SAMP!E28) -> 979.58861 | K44: & | M44: & | O44: & | P44: =IF(SAMP!H28="","",SAMP!H28) -> 1243.305577 | Q44: & | R44: =IF(SAMP!I28="","",SAMP!I28) -> 816.283294 | S44: & | T44: =IF(SAMP!J28="","",SAMP!J28) ->  | U44: \\
B45: Gobierno federal | C45: & | D45: =IF(SAMP!B29="","",SAMP!B29) ->  | E45: & | F45: =IF(SAMP!C29="","",SAMP!C29) -> 70543.15138 | G45: & | H45: =IF(SAMP!D29="","",SAMP!D29) ->  | I45: & | J45: =IF(SAMP!E29="","",SAMP!E29) ->  | K45: & | L45: =IF(SAMP!F29="","",SAMP!F29) ->  | M45: & | N45: =IF(SAMP!G29="","",SAMP!G29) ->  | O45: & | P45: =IF(SAMP!H29="","",SAMP!H29) ->  | Q45: & | R45: =IF(SAMP!I29="","",SAMP!I29) ->  | S45: & | T45: =IF(SAMP!J29="","",SAMP!J29) ->  | U45: \\
B46: Ganacias de petroleo | C46: & | D46: =IF(SAMP!B30="","",SAMP!B30) ->  | E46: & | F46: =IF(SAMP!C30="","",SAMP!C30) -> 70543.15138 | G46: & | H46: =IF(SAMP!D30="","",SAMP!D30) ->  | I46: & | J46: =IF(SAMP!E30="","",SAMP!E30) ->  | K46: & | L46: =IF(SAMP!F30="","",SAMP!F30) ->  | M46: & | N46: =IF(SAMP!G30="","",SAMP!G30) ->  | O46: & | P46: =IF(SAMP!H30="","",SAMP!H30) ->  | Q46: & | R46: =IF(SAMP!I30="","",SAMP!I30) ->  | S46: & | T46: =IF(SAMP!J30="","",SAMP!J30) ->  | U46: \\
B47: \textbf{Ahorros} | C47: & | D47: =IF(SAMP!B31="","",SAMP!B31) ->  | E47: & | F47: =IF(SAMP!C31="","",SAMP!C31) ->  | G47: & | H47: =IF(SAMP!D31="","",SAMP!D31) ->  | I47: & | J47: =IF(SAMP!E31="","",SAMP!E31) ->  | K47: & | L47: =IF(SAMP!F31="","",SAMP!F31) ->  | M47: & | N47: =IF(SAMP!G31="","",SAMP!G31) ->  | O47: & | P47: =IF(SAMP!H31="","",SAMP!H31) ->  | Q47: & | R47: =IF(SAMP!I31="","",SAMP!I31) ->  | S47: & | T47: =IF(SAMP!J31="","",SAMP!J31) ->  | U47: \\
B48: \textbf{Externo} | C48: & | D48: =IF(SAMP!B32="","",SAMP!B32) ->  | E48: & | F48: =IF(SAMP!C32="","",SAMP!C32) ->  | G48: & | H48: =IF(SAMP!D32="","",SAMP!D32) ->  | I48: & | J48: =IF(SAMP!E32="","",SAMP!E32) ->  | K48: & | L48: =IF(SAMP!F32="","",SAMP!F32) -> 10518.02495 | M48: & | N48: =IF(SAMP!G32="","",SAMP!G32) -> 0 | O48: & | P48: =IF(SAMP!H32="","",SAMP!H32) -> 24915.86435 | Q48: & | R48: =IF(SAMP!I32="","",SAMP!I32) -> 22603.76173 | S48: & | T48: =IF(SAMP!J32="","",SAMP!J32) ->  | U48: \\
B49: Resto del mundo | C49: & | D49: =IF(SAMP!B33="","",SAMP!B33) ->  | E49: & | F49: =IF(SAMP!C33="","",SAMP!C33) ->  | G49: & | H49: =IF(SAMP!D33="","",SAMP!D33) ->  | I49: & | J49: =IF(SAMP!E33="","",SAMP!E33) ->  | K49: & | L49: =IF(SAMP!F33="","",SAMP!F33) -> 171.4503086 | M49: & | N49: =IF(SAMP!G33="","",SAMP!G33) -> 0 | O49: & | P49: =IF(SAMP!H33="","",SAMP!H33) -> 58.78173504 | Q49: & | R49: =IF(SAMP!I33="","",SAMP!I33) ->  | S49: & | T49: =IF(SAMP!J33="","",SAMP!J33) ->  | U49: \\
B50: Resto del Mexico | C50: & | D50: =IF(SAMP!B34="","",SAMP!B34) ->  | E50: & | F50: =IF(SAMP!C34="","",SAMP!C34) ->  | G50: & | H50: =IF(SAMP!D34="","",SAMP!D34) ->  | I50: & | J50: =IF(SAMP!E34="","",SAMP!E34) ->  | K50: & | L50: =IF(SAMP!F34="","",SAMP!F34) -> 10346.57464 | M50: & | N50: =IF(SAMP!G34="","",SAMP!G34) -> 0 | O50: & | P50: =IF(SAMP!H34="","",SAMP!H34) -> 24857.08262 | Q50: & | R50: =IF(SAMP!I34="","",SAMP!I34) -> 22603.76173 | S50: & | T50: =IF(SAMP!J34="","",SAMP!J34) ->  | U50: \\
B51: \textbf{Total} | C51: & | D51: =IF(SAMP!B36="","",SAMP!B36) -> 6784.059096 | E51: & | F51: =IF(SAMP!C36="","",SAMP!C36) -> 77980.04402 | G51: & | H51: =IF(SAMP!D36="","",SAMP!D36) -> 50355.64547 | I51: & | J51: =IF(SAMP!E36="","",SAMP!E36) -> 102608.2769 | K51: & | L51: =IF(SAMP!F36="","",SAMP!F36) -> 19183.4439 | M51: & | N51: =IF(SAMP!G36="","",SAMP!G36) -> 78024.6103 | O51: & | P51: =IF(SAMP!H36="","",SAMP!H36) -> 92935.87942 | Q51: & | R51: =IF(SAMP!I36="","",SAMP!I36) -> 125603.3318 | S51: & | T51: =IF(SAMP!J36="","",SAMP!J36) -> 22377.98606 | U51: \\
B52: \\ \hline \\
B53: \multicolumn{8}{l}{\textit{Fuente}: C\'{a}lculos de los autores. \citet{INEGI13}-ver cuadro \ref{cnT}. Nota: 1. 2003.} \\
B54: \end{tabular}
B55: \end{table}
B56: \end{center}
B57: \end{landscape}
B59: \begin{landscape}
B60: \begin{center}
B61: \begin{table}
B62: [tbp] \centering \caption{Matriz de contabilidad social-con't p3 de 6}\label{SAM3}
B63: \begin{tabular}{lccccccccc}
B64: \\ \hline \\
C65: & | D65: No calif | E65: & | F65: =+SAMP!L4 -> Capital | G65: & | H65: =+SAMP!M4 -> Margen | I65: & | J65: H1 | K65: & | L65: H2 | M65: & | N65: H3 | O65: & | P65: H4 | Q65: & | R65: H5 | S65: & | T65: Gob-Local | U65: \\
B66: \textbf{Bienes} | C66: & | D66: =IF(SAMP!K6="","",SAMP!K6) ->  | E66: & | F66: =IF(SAMP!L6="","",SAMP!L6) ->  | G66: & | H66: =IF(SAMP!M6="","",SAMP!M6) ->  | I66: & | J66: =IF(SAMP!N6="","",SAMP!N6) ->  | K66: & | L66: =IF(SAMP!O6="","",SAMP!O6) ->  | M66: & | N66: =IF(SAMP!P6="","",SAMP!P6) ->  | O66: & | P66: =IF(SAMP!Q6="","",SAMP!Q6) ->  | Q66: & | R66: =IF(SAMP!R6="","",SAMP!R6) ->  | S66: & | T66: =IF(SAMP!S6="","",SAMP!S6) ->  | U66: \\
B67: AgPec | C67: & | D67: =IF(SAMP!K7="","",SAMP!K7) ->  | E67: & | F67: =IF(SAMP!L7="","",SAMP!L7) ->  | G67: & | H67: =IF(SAMP!M7="","",SAMP!M7) ->  | I67: & | J67: =IF(SAMP!N7="","",SAMP!N7) ->  | K67: & | L67: =IF(SAMP!O7="","",SAMP!O7) ->  | M67: & | N67: =IF(SAMP!P7="","",SAMP!P7) ->  | O67: & | P67: =IF(SAMP!Q7="","",SAMP!Q7) ->  | Q67: & | R67: =IF(SAMP!R7="","",SAMP!R7) ->  | S67: & | T67: =IF(SAMP!S7="","",SAMP!S7) ->  | U67: \\
B68: Pet | C68: & | D68: =IF(SAMP!K8="","",SAMP!K8) ->  | E68: & | F68: =IF(SAMP!L8="","",SAMP!L8) ->  | G68: & | H68: =IF(SAMP!M8="","",SAMP!M8) ->  | I68: & | J68: =IF(SAMP!N8="","",SAMP!N8) ->  | K68: & | L68: =IF(SAMP!O8="","",SAMP!O8) ->  | M68: & | N68: =IF(SAMP!P8="","",SAMP!P8) ->  | O68: & | P68: =IF(SAMP!Q8="","",SAMP!Q8) ->  | Q68: & | R68: =IF(SAMP!R8="","",SAMP!R8) ->  | S68: & | T68: =IF(SAMP!S8="","",SAMP!S8) ->  | U68: \\
B69: Industria | C69: & | D69: =IF(SAMP!K9="","",SAMP!K9) ->  | E69: & | F69: =IF(SAMP!L9="","",SAMP!L9) ->  | G69: & | H69: =IF(SAMP!M9="","",SAMP!M9) ->  | I69: & | J69: =IF(SAMP!N9="","",SAMP!N9) ->  | K69: & | L69: =IF(SAMP!O9="","",SAMP!O9) ->  | M69: & | N69: =IF(SAMP!P9="","",SAMP!P9) ->  | O69: & | P69: =IF(SAMP!Q9="","",SAMP!Q9) ->  | Q69: & | R69: =IF(SAMP!R9="","",SAMP!R9) ->  | S69: & | T69: =IF(SAMP!S9="","",SAMP!S9) ->  | U69: \\
B70: Servicios | C70: & | D70: =IF(SAMP!K10="","",SAMP!K10) ->  | E70: & | F70: =IF(SAMP!L10="","",SAMP!L10) ->  | G70: & | H70: =IF(SAMP!M10="","",SAMP!M10) ->  | I70: & | J70: =IF(SAMP!N10="","",SAMP!N10) ->  | K70: & | L70: =IF(SAMP!O10="","",SAMP!O10) ->  | M70: & | N70: =IF(SAMP!P10="","",SAMP!P10) ->  | O70: & | P70: =IF(SAMP!Q10="","",SAMP!Q10) ->  | Q70: & | R70: =IF(SAMP!R10="","",SAMP!R10) ->  | S70: & | T70: =IF(SAMP!S10="","",SAMP!S10) ->  | U70: \\
B71: Margen | C71: & | D71: =IF(SAMP!K11="","",SAMP!K11) ->  | E71: & | F71: =IF(SAMP!L11="","",SAMP!L11) ->  | G71: & | H71: =IF(SAMP!M11="","",SAMP!M11) ->  | I71: & | J71: =IF(SAMP!N11="","",SAMP!N11) ->  | K71: & | L71: =IF(SAMP!O11="","",SAMP!O11) ->  | M71: & | N71: =IF(SAMP!P11="","",SAMP!P11) ->  | O71: & | P71: =IF(SAMP!Q11="","",SAMP!Q11) ->  | Q71: & | R71: =IF(SAMP!R11="","",SAMP!R11) ->  | S71: & | T71: =IF(SAMP!S11="","",SAMP!S11) ->  | U71: \\
B72: \textbf{Empresas} | C72: & | D72: =IF(SAMP!K12="","",SAMP!K12) ->  | E72: & | F72: =IF(SAMP!L12="","",SAMP!L12) ->  | G72: & | H72: =IF(SAMP!M12="","",SAMP!M12) -> 17922 | I72: & | J72: =IF(SAMP!N12="","",SAMP!N12) -> 3951.213015 | K72: & | L72: =IF(SAMP!O12="","",SAMP!O12) -> 5743.301745 | M72: & | N72: =IF(SAMP!P12="","",SAMP!P12) -> 8903.439267 | O72: & | P72: =IF(SAMP!Q12="","",SAMP!Q12) -> 13803.64996 | Q72: & | R72: =IF(SAMP!R12="","",SAMP!R12) -> 37580.82545 | S72: & | T72: =IF(SAMP!S12="","",SAMP!S12) -> 10072.32547 | U72: \\
B73: AgPec | C73: & | D73: =IF(SAMP!K13="","",SAMP!K13) ->  | E73: & | F73: =IF(SAMP!L13="","",SAMP!L13) ->  | G73: & | H73: =IF(SAMP!M13="","",SAMP!M13) ->  | I73: & | J73: =IF(SAMP!N13="","",SAMP!N13) -> 344.6383935 | K73: & | L73: =IF(SAMP!O13="","",SAMP!O13) -> 472.2624614 | M73: & | N73: =IF(SAMP!P13="","",SAMP!P13) -> 470.6951047 | O73: & | P73: =IF(SAMP!Q13="","",SAMP!Q13) -> 547.1660928 | Q73: & | R73: =IF(SAMP!R13="","",SAMP!R13) -> 591.9124826 | S73: & | T73: =IF(SAMP!S13="","",SAMP!S13) -> 0 | U73: \\
B74: Pet | C74: & | D74: =IF(SAMP!K14="","",SAMP!K14) ->  | E74: & | F74: =IF(SAMP!L14="","",SAMP!L14) ->  | G74: & | H74: =IF(SAMP!M14="","",SAMP!M14) ->  | I74: & | J74: =IF(SAMP!N14="","",SAMP!N14) -> 0 | K74: & | L74: =IF(SAMP!O14="","",SAMP!O14) -> 0 | M74: & | N74: =IF(SAMP!P14="","",SAMP!P14) -> 0 | O74: & | P74: =IF(SAMP!Q14="","",SAMP!Q14) -> 0 | Q74: & | R74: =IF(SAMP!R14="","",SAMP!R14) -> 0 | S74: & | T74: =IF(SAMP!S14="","",SAMP!S14) -> 0 | U74: \\
B75: Industria | C75: & | D75: =IF(SAMP!K15="","",SAMP!K15) ->  | E75: & | F75: =IF(SAMP!L15="","",SAMP!L15) ->  | G75: & | H75: =IF(SAMP!M15="","",SAMP!M15) ->  | I75: & | J75: =IF(SAMP!N15="","",SAMP!N15) -> 1920.380913 | K75: & | L75: =IF(SAMP!O15="","",SAMP!O15) -> 3278.437614 | M75: & | N75: =IF(SAMP!P15="","",SAMP!P15) -> 4524.32278 | O75: & | P75: =IF(SAMP!Q15="","",SAMP!Q15) -> 6052.266273 | Q75: & | R75: =IF(SAMP!R15="","",SAMP!R15) -> 10474.2444 | S75: & | T75: =IF(SAMP!S15="","",SAMP!S15) -> 0 | U75: \\
B76: Servicios | C76: & | D76: =IF(SAMP!K16="","",SAMP!K16) ->  | E76: & | F76: =IF(SAMP!L16="","",SAMP!L16) ->  | G76: & | H76: =IF(SAMP!M16="","",SAMP!M16) -> 17922 | I76: & | J76: =IF(SAMP!N16="","",SAMP!N16) -> 1686.193709 | K76: & | L76: =IF(SAMP!O16="","",SAMP!O16) -> 1992.60167 | M76: & | N76: =IF(SAMP!P16="","",SAMP!P16) -> 3908.421382 | O76: & | P76: =IF(SAMP!Q16="","",SAMP!Q16) -> 7204.217594 | Q76: & | R76: =IF(SAMP!R16="","",SAMP!R16) -> 26514.66856 | S76: & | T76: =IF(SAMP!S16="","",SAMP!S16) -> 10072.32547 | U76: \\
B77: \textbf{Factores} | C77: & | D77: =IF(SAMP!K17="","",SAMP!K17) ->  | E77: & | F77: =IF(SAMP!L17="","",SAMP!L17) ->  | G77: & | H77: =IF(SAMP!M17="","",SAMP!M17) ->  | I77: & | J77: =IF(SAMP!N17="","",SAMP!N17) ->  | K77: & | L77: =IF(SAMP!O17="","",SAMP!O17) ->  | M77: & | N77: =IF(SAMP!P17="","",SAMP!P17) ->  | O77: & | P77: =IF(SAMP!Q17="","",SAMP!Q17) ->  | Q77: & | R77: =IF(SAMP!R17="","",SAMP!R17) ->  | S77: & | T77: =IF(SAMP!S17="","",SAMP!S17) ->  | U77: \\
B78: Ls | C78: & | D78: =IF(SAMP!K18="","",SAMP!K18) ->  | E78: & | F78: =IF(SAMP!L18="","",SAMP!L18) ->  | G78: & | H78: =IF(SAMP!M18="","",SAMP!M18) ->  | I78: & | J78: =IF(SAMP!N18="","",SAMP!N18) ->  | K78: & | L78: =IF(SAMP!O18="","",SAMP!O18) ->  | M78: & | N78: =IF(SAMP!P18="","",SAMP!P18) ->  | O78: & | P78: =IF(SAMP!Q18="","",SAMP!Q18) ->  | Q78: & | R78: =IF(SAMP!R18="","",SAMP!R18) ->  | S78: & | T78: =IF(SAMP!S18="","",SAMP!S18) ->  | U78: \\
B79: Lu | C79: & | D79: =IF(SAMP!K19="","",SAMP!K19) ->  | E79: & | F79: =IF(SAMP!L19="","",SAMP!L19) ->  | G79: & | H79: =IF(SAMP!M19="","",SAMP!M19) ->  | I79: & | J79: =IF(SAMP!N19="","",SAMP!N19) ->  | K79: & | L79: =IF(SAMP!O19="","",SAMP!O19) ->  | M79: & | N79: =IF(SAMP!P19="","",SAMP!P19) ->  | O79: & | P79: =IF(SAMP!Q19="","",SAMP!Q19) ->  | Q79: & | R79: =IF(SAMP!R19="","",SAMP!R19) ->  | S79: & | T79: =IF(SAMP!S19="","",SAMP!S19) ->  | U79: \\
B80: Capital | C80: & | D80: =IF(SAMP!K20="","",SAMP!K20) ->  | E80: & | F80: =IF(SAMP!L20="","",SAMP!L20) ->  | G80: & | H80: =IF(SAMP!M20="","",SAMP!M20) ->  | I80: & | J80: =IF(SAMP!N20="","",SAMP!N20) ->  | K80: & | L80: =IF(SAMP!O20="","",SAMP!O20) ->  | M80: & | N80: =IF(SAMP!P20="","",SAMP!P20) ->  | O80: & | P80: =IF(SAMP!Q20="","",SAMP!Q20) ->  | Q80: & | R80: =IF(SAMP!R20="","",SAMP!R20) ->  | S80: & | T80: =IF(SAMP!S20="","",SAMP!S20) ->  | U80: \\
B81: \\ \hline \\
B82: \multicolumn{8}{l}{\textit{Fuente}: C\'{a}lculos de los autores. \citet{INEGI13}-ver cuadro \ref{cnT}. Nota: 1. 2003.} \\
B83: \end{tabular}
B84: \end{table}
B85: \end{center}
B86: \end{landscape}
B88: \begin{landscape}
B89: \begin{center}
B90: \begin{table}
B91: [tbp] \centering \caption{Matriz de contabilidad social-con't p4 de 6}\label{SAM4}
B92: \begin{tabular}{lccccccccc}
B93: \\ \hline \\
C94: & | D94: No calif | E94: & | F94: Capital | G94: & | H94: Margen | I94: & | J94: H1 | K94: & | L94: H2 | M94: & | N94: H3 | O94: & | P94: H4 | Q94: & | R94: H5 | S94: & | T94: Gob-Local | U94: \\
B95: \textbf{Hogares} | C95: & | D95: =IF(SAMP!K21="","",SAMP!K21) -> 13543.75934 | E95: & | F95: =IF(SAMP!L21="","",SAMP!L21) -> 58717.4508 | G95: & | H95: =IF(SAMP!M21="","",SAMP!M21) ->  | I95: & | J95: =IF(SAMP!N21="","",SAMP!N21) ->  | K95: & | L95: =IF(SAMP!O21="","",SAMP!O21) ->  | M95: & | N95: =IF(SAMP!P21="","",SAMP!P21) ->  | O95: & | P95: =IF(SAMP!Q21="","",SAMP!Q21) ->  | Q95: & | R95: =IF(SAMP!R21="","",SAMP!R21) ->  | S95: & | T95: =IF(SAMP!S21="","",SAMP!S21) -> 947.8864051 | U95: \\
B96: H1 | C96: & | D96: =IF(SAMP!K22="","",SAMP!K22) -> 3517.250491 | E96: & | F96: =IF(SAMP!L22="","",SAMP!L22) -> 0 | G96: & | H96: =IF(SAMP!M22="","",SAMP!M22) ->  | I96: & | J96: =IF(SAMP!N22="","",SAMP!N22) ->  | K96: & | L96: =IF(SAMP!O22="","",SAMP!O22) ->  | M96: & | N96: =IF(SAMP!P22="","",SAMP!P22) ->  | O96: & | P96: =IF(SAMP!Q22="","",SAMP!Q22) ->  | Q96: & | R96: =IF(SAMP!R22="","",SAMP!R22) ->  | S96: & | T96: =IF(SAMP!S22="","",SAMP!S22) -> 155.2198003 | U96: \\
B97: H2 | C97: & | D97: =IF(SAMP!K23="","",SAMP!K23) -> 3096.678009 | E97: & | F97: =IF(SAMP!L23="","",SAMP!L23) -> 670.6200225 | G97: & | H97: =IF(SAMP!M23="","",SAMP!M23) ->  | I97: & | J97: =IF(SAMP!N23="","",SAMP!N23) ->  | K97: & | L97: =IF(SAMP!O23="","",SAMP!O23) ->  | M97: & | N97: =IF(SAMP!P23="","",SAMP!P23) ->  | O97: & | P97: =IF(SAMP!Q23="","",SAMP!Q23) ->  | Q97: & | R97: =IF(SAMP!R23="","",SAMP!R23) ->  | S97: & | T97: =IF(SAMP!S23="","",SAMP!S23) -> 295.60468 | U97: \\
B98: H3 | C98: & | D98: =IF(SAMP!K24="","",SAMP!K24) -> 2403.588109 | E98: & | F98: =IF(SAMP!L24="","",SAMP!L24) -> 3432.802722 | G98: & | H98: =IF(SAMP!M24="","",SAMP!M24) ->  | I98: & | J98: =IF(SAMP!N24="","",SAMP!N24) ->  | K98: & | L98: =IF(SAMP!O24="","",SAMP!O24) ->  | M98: & | N98: =IF(SAMP!P24="","",SAMP!P24) ->  | O98: & | P98: =IF(SAMP!Q24="","",SAMP!Q24) ->  | Q98: & | R98: =IF(SAMP!R24="","",SAMP!R24) ->  | S98: & | T98: =IF(SAMP!S24="","",SAMP!S24) -> 261.2930534 | U98: \\
B99: H4 | C99: & | D99: =IF(SAMP!K25="","",SAMP!K25) -> 2137.51013 | E99: & | F99: =IF(SAMP!L25="","",SAMP!L25) -> 9425.988111 | G99: & | H99: =IF(SAMP!M25="","",SAMP!M25) ->  | I99: & | J99: =IF(SAMP!N25="","",SAMP!N25) ->  | K99: & | L99: =IF(SAMP!O25="","",SAMP!O25) ->  | M99: & | N99: =IF(SAMP!P25="","",SAMP!P25) ->  | O99: & | P99: =IF(SAMP!Q25="","",SAMP!Q25) ->  | Q99: & | R99: =IF(SAMP!R25="","",SAMP!R25) ->  | S99: & | T99: =IF(SAMP!S25="","",SAMP!S25) -> 151.8609267 | U99: \\
B100: H6 | C100: & | D100: =IF(SAMP!K26="","",SAMP!K26) -> 2388.732606 | E100: & | F100: =IF(SAMP!L26="","",SAMP!L26) -> 45188.03995 | G100: & | H100: =IF(SAMP!M26="","",SAMP!M26) ->  | I100: & | J100: =IF(SAMP!N26="","",SAMP!N26) ->  | K100: & | L100: =IF(SAMP!O26="","",SAMP!O26) ->  | M100: & | N100: =IF(SAMP!P26="","",SAMP!P26) ->  | O100: & | P100: =IF(SAMP!Q26="","",SAMP!Q26) ->  | Q100: & | R100: =IF(SAMP!R26="","",SAMP!R26) ->  | S100: & | T100: =IF(SAMP!S26="","",SAMP!S26) -> 83.90794474 | U100: \\
B101: \textbf{Gobierno} | C101: & | D101: =IF(SAMP!K27="","",SAMP!K27) ->  | E101: & | F101: =IF(SAMP!L27="","",SAMP!L27) ->  | G101: & | H101: =IF(SAMP!M27="","",SAMP!M27) ->  | I101: & | J101: =IF(SAMP!N27="","",SAMP!N27) ->  | K101: & | L101: =IF(SAMP!O27="","",SAMP!O27) ->  | M101: & | N101: =IF(SAMP!P27="","",SAMP!P27) ->  | O101: & | P101: =IF(SAMP!Q27="","",SAMP!Q27) ->  | Q101: & | R101: =IF(SAMP!R27="","",SAMP!R27) ->  | S101: & | T101: =IF(SAMP!S27="","",SAMP!S27) ->  | U101: \\
B102: Impuestos indirectos | C102: & | D102: =IF(SAMP!K28="","",SAMP!K28) ->  | E102: & | F102: =IF(SAMP!L28="","",SAMP!L28) ->  | G102: & | H102: =IF(SAMP!M28="","",SAMP!M28) ->  | I102: & | J102: =IF(SAMP!N28="","",SAMP!N28) ->  | K102: & | L102: =IF(SAMP!O28="","",SAMP!O28) ->  | M102: & | N102: =IF(SAMP!P28="","",SAMP!P28) ->  | O102: & | P102: =IF(SAMP!Q28="","",SAMP!Q28) ->  | Q102: & | R102: =IF(SAMP!R28="","",SAMP!R28) ->  | S102: & | T102: =IF(SAMP!S28="","",SAMP!S28) ->  | U102: \\
B103: Gobierno federal | C103: & | D103: =IF(SAMP!K29="","",SAMP!K29) ->  | E103: & | F103: =IF(SAMP!L29="","",SAMP!L29) ->  | G103: & | H103: =IF(SAMP!M29="","",SAMP!M29) ->  | I103: & | J103: =IF(SAMP!N29="","",SAMP!N29) ->  | K103: & | L103: =IF(SAMP!O29="","",SAMP!O29) ->  | M103: & | N103: =IF(SAMP!P29="","",SAMP!P29) ->  | O103: & | P103: =IF(SAMP!Q29="","",SAMP!Q29) ->  | Q103: & | R103: =IF(SAMP!R29="","",SAMP!R29) ->  | S103: & | T103: =IF(SAMP!S29="","",SAMP!S29) ->  | U103: \\
B104: Ganacias de petroleo | C104: & | D104: =IF(SAMP!K30="","",SAMP!K30) ->  | E104: & | F104: =IF(SAMP!L30="","",SAMP!L30) ->  | G104: & | H104: =IF(SAMP!M30="","",SAMP!M30) ->  | I104: & | J104: =IF(SAMP!N30="","",SAMP!N30) ->  | K104: & | L104: =IF(SAMP!O30="","",SAMP!O30) ->  | M104: & | N104: =IF(SAMP!P30="","",SAMP!P30) ->  | O104: & | P104: =IF(SAMP!Q30="","",SAMP!Q30) ->  | Q104: & | R104: =IF(SAMP!R30="","",SAMP!R30) ->  | S104: & | T104: =IF(SAMP!S30="","",SAMP!S30) ->  | U104: \\
B105: \textbf{Ahorros} | C105: & | D105: =IF(SAMP!K31="","",SAMP!K31) ->  | E105: & | F105: =IF(SAMP!L31="","",SAMP!L31) ->  | G105: & | H105: =IF(SAMP!M31="","",SAMP!M31) ->  | I105: & | J105: =IF(SAMP!N31="","",SAMP!N31) -> 381.0336585 | K105: & | L105: =IF(SAMP!O31="","",SAMP!O31) -> 921.0980212 | M105: & | N105: =IF(SAMP!P31="","",SAMP!P31) -> 1900.470367 | O105: & | P105: =IF(SAMP!Q31="","",SAMP!Q31) -> 3205.774787 | Q105: & | R105: =IF(SAMP!R31="","",SAMP!R31) -> 21778.18063 | S105: & | T105: =IF(SAMP!S31="","",SAMP!S31) -> -5820.55946 | U105: \\
B106: \textbf{Externo} | C106: & | D106: =IF(SAMP!K32="","",SAMP!K32) ->  | E106: & | F106: =IF(SAMP!L32="","",SAMP!L32) ->  | G106: & | H106: =IF(SAMP!M32="","",SAMP!M32) ->  | I106: & | J106: =IF(SAMP!N32="","",SAMP!N32) ->  | K106: & | L106: =IF(SAMP!O32="","",SAMP!O32) ->  | M106: & | N106: =IF(SAMP!P32="","",SAMP!P32) ->  | O106: & | P106: =IF(SAMP!Q32="","",SAMP!Q32) ->  | Q106: & | R106: =IF(SAMP!R32="","",SAMP!R32) ->  | S106: & | T106: =IF(SAMP!S32="","",SAMP!S32) ->  | U106: \\
B107: Resto del mundo | C107: & | D107: =IF(SAMP!K33="","",SAMP!K33) ->  | E107: & | F107: =IF(SAMP!L33="","",SAMP!L33) ->  | G107: & | H107: =IF(SAMP!M33="","",SAMP!M33) ->  | I107: & | J107: =IF(SAMP!N33="","",SAMP!N33) ->  | K107: & | L107: =IF(SAMP!O33="","",SAMP!O33) ->  | M107: & | N107: =IF(SAMP!P33="","",SAMP!P33) ->  | O107: & | P107: =IF(SAMP!Q33="","",SAMP!Q33) ->  | Q107: & | R107: =IF(SAMP!R33="","",SAMP!R33) ->  | S107: & | T107: =IF(SAMP!S33="","",SAMP!S33) ->  | U107: \\
B108: Resto del M\'{e}xico | C108: & | D108: =IF(SAMP!K34="","",SAMP!K34) ->  | E108: & | F108: =IF(SAMP!L34="","",SAMP!L34) ->  | G108: & | H108: =IF(SAMP!M34="","",SAMP!M34) ->  | I108: & | J108: =IF(SAMP!N34="","",SAMP!N34) ->  | K108: & | L108: =IF(SAMP!O34="","",SAMP!O34) ->  | M108: & | N108: =IF(SAMP!P34="","",SAMP!P34) ->  | O108: & | P108: =IF(SAMP!Q34="","",SAMP!Q34) ->  | Q108: & | R108: =IF(SAMP!R34="","",SAMP!R34) ->  | S108: & | T108: =IF(SAMP!S34="","",SAMP!S34) ->  | U108: \\
B109: \textbf{Total} | C109: & | D109: =IF(SAMP!K36="","",SAMP!K36) -> 13543.75934 | E109: & | F109: =IF(SAMP!L36="","",SAMP!L36) -> 58717.4508 | G109: & | H109: =IF(SAMP!M36="","",SAMP!M36) -> 17922 | I109: & | J109: =IF(SAMP!N36="","",SAMP!N36) -> 4332.246674 | K109: & | L109: =IF(SAMP!O36="","",SAMP!O36) -> 6664.399766 | M109: & | N109: =IF(SAMP!P36="","",SAMP!P36) -> 10803.90963 | O109: & | P109: =IF(SAMP!Q36="","",SAMP!Q36) -> 17009.42475 | Q109: & | R109: =IF(SAMP!R36="","",SAMP!R36) -> 59359.00607 | S109: & | T109: =IF(SAMP!S36="","",SAMP!S36) -> 5199.652415 | U109: \\
B110: \\ \hline \\
B111: \multicolumn{8}{l}{\textit{Fuente}: C\'{a}lculos de los autores. \citet{INEGI13}-ver cuadro \ref{cnT}. Nota: 1. 2003.}
B112: \end{tabular}
B113: \end{table}
B114: \end{center}
B115: \end{landscape}
B117: \begin{landscape}
B118: \begin{center}
B119: \begin{table}
B120: [tbp] \centering \caption{Matriz de contabilidad social-con't p5 de 6}\label{SAM5}
B121: \begin{tabular}{lccccccc}
B122: \\ \hline \\
C123: & | D123: =+SAMP!T5 -> Federal | E123: & | F123: Inversi\'{o}n | G123: & | H123: I-GobL | I123: & | J123: I-GobF | K123: & | L123: Exp RM | M123: & | N123: Expt Resto de M\'{e}x | O123: & | P123: Total | Q123: \\
B124: \textbf{Bienes} | C124: & | E124: & | G124: & | I124: & | K124: & | M124: & | O124: & | Q124: \\
B125: AgPec | C125: & | E125: & | G125: & | I125: & | K125: & | M125: & | O125: & | Q125: \\
B126: Pet | C126: & | E126: & | G126: & | I126: & | K126: & | M126: & | O126: & | Q126: \\
B127: Industria | C127: & | E127: & | G127: & | I127: & | K127: & | M127: & | O127: & | Q127: \\
B128: Servicios | C128: & | E128: & | G128: & | I128: & | K128: & | M128: & | O128: & | Q128: \\
B129: Margen | C129: & | E129: & | G129: & | I129: & | K129: & | M129: & | O129: & | Q129: \\
B130: \textbf{Empresas} | C130: & | D130: =IF(SAMP!T12="","",SAMP!T12) -> 16697.436 | E130: & | F130: =IF(SAMP!U12="","",SAMP!U12) -> 8714.036044 | G130: & | H130: =IF(SAMP!V12="","",SAMP!V12) -> 7589.843387 | I130: & | J130: =IF(SAMP!W12="","",SAMP!W12) -> 4217.629213 | K130: & | L130: =IF(SAMP!X12="","",SAMP!X12) -> 32523.35031 | M130: & | N130: =IF(SAMP!Y12="","",SAMP!Y12) -> 78622.60117 | O130: & | P130: =IF(SAMP!Z12="","",SAMP!Z12) -> 315747.2654 | Q130: \\
B131: AgPec | C131: & | D131: =IF(SAMP!T13="","",SAMP!T13) -> 0 | E131: & | F131: =IF(SAMP!U13="","",SAMP!U13) -> 75.38890074 | G131: & | H131: =IF(SAMP!V13="","",SAMP!V13) -> 65.66302307 | I131: & | J131: =IF(SAMP!W13="","",SAMP!W13) -> 36.4885374 | K131: & | L131: =IF(SAMP!X13="","",SAMP!X13) -> 0 | M131: & | N131: =IF(SAMP!Y13="","",SAMP!Y13) -> 2289.243365 | O131: & | P131: =IF(SAMP!Z13="","",SAMP!Z13) -> 19183.4439 | Q131: \\
B132: Pet | C132: & | D132: =IF(SAMP!T14="","",SAMP!T14) -> 0 | E132: & | F132: =IF(SAMP!U14="","",SAMP!U14) -> 0 | G132: & | H132: =IF(SAMP!V14="","",SAMP!V14) -> 0 | I132: & | J132: =IF(SAMP!W14="","",SAMP!W14) -> 0 | K132: & | L132: =IF(SAMP!X14="","",SAMP!X14) -> 32435.15138 | M132: & | N132: =IF(SAMP!Y14="","",SAMP!Y14) -> 45589.45892 | O132: & | P132: =IF(SAMP!Z14="","",SAMP!Z14) -> 78024.6103 | Q132: \\
B133: Industria | C133: & | D133: =IF(SAMP!T15="","",SAMP!T15) -> 0 | E133: & | F133: =IF(SAMP!U15="","",SAMP!U15) -> 1713.965142 | G133: & | H133: =IF(SAMP!V15="","",SAMP!V15) -> 1492.847509 | I133: & | J133: =IF(SAMP!W15="","",SAMP!W15) -> 829.5661639 | K133: & | L133: =IF(SAMP!X15="","",SAMP!X15) -> 88.19893394 | M133: & | N133: =IF(SAMP!Y15="","",SAMP!Y15) -> 30193.70398 | O133: & | P133: =IF(SAMP!Z15="","",SAMP!Z15) -> 92935.87942 | Q133: \\
B134: Servicios | C134: & | D134: =IF(SAMP!T16="","",SAMP!T16) -> 16697.436 | E134: & | F134: =IF(SAMP!U16="","",SAMP!U16) -> 6924.682001 | G134: & | H134: =IF(SAMP!V16="","",SAMP!V16) -> 6031.332855 | I134: & | J134: =IF(SAMP!W16="","",SAMP!W16) -> 3351.574511 | K134: & | L134: =IF(SAMP!X16="","",SAMP!X16) -> 0 | M134: & | N134: =IF(SAMP!Y16="","",SAMP!Y16) -> 550.1949118 | O134: & | P134: =IF(SAMP!Z16="","",SAMP!Z16) -> 125603.3318 | Q134: \\
B135: \textbf{Factores} | C135: & | D135: =IF(SAMP!T17="","",SAMP!T17) ->  | E135: & | F135: =IF(SAMP!U17="","",SAMP!U17) ->  | G135: & | H135: =IF(SAMP!V17="","",SAMP!V17) ->  | I135: & | J135: =IF(SAMP!W17="","",SAMP!W17) ->  | K135: & | L135: =IF(SAMP!X17="","",SAMP!X17) ->  | M135: & | N135: =IF(SAMP!Y17="","",SAMP!Y17) ->  | O135: & | P135: =IF(SAMP!Z17="","",SAMP!Z17) -> 94639.1962 | Q135: \\
B136: Ls | C136: & | D136: =IF(SAMP!T18="","",SAMP!T18) ->  | E136: & | F136: =IF(SAMP!U18="","",SAMP!U18) ->  | G136: & | H136: =IF(SAMP!V18="","",SAMP!V18) ->  | I136: & | J136: =IF(SAMP!W18="","",SAMP!W18) ->  | K136: & | L136: =IF(SAMP!X18="","",SAMP!X18) ->  | M136: & | N136: =IF(SAMP!Y18="","",SAMP!Y18) ->  | O136: & | P136: =IF(SAMP!Z18="","",SAMP!Z18) -> 22377.98606 | Q136: \\
B137: Lu | C137: & | D137: =IF(SAMP!T19="","",SAMP!T19) ->  | E137: & | F137: =IF(SAMP!U19="","",SAMP!U19) ->  | G137: & | H137: =IF(SAMP!V19="","",SAMP!V19) ->  | I137: & | J137: =IF(SAMP!W19="","",SAMP!W19) ->  | K137: & | L137: =IF(SAMP!X19="","",SAMP!X19) ->  | M137: & | N137: =IF(SAMP!Y19="","",SAMP!Y19) ->  | O137: & | P137: =IF(SAMP!Z19="","",SAMP!Z19) -> 13543.75934 | Q137: \\
B138: Capital | C138: & | D138: =IF(SAMP!T20="","",SAMP!T20) ->  | E138: & | F138: =IF(SAMP!U20="","",SAMP!U20) ->  | G138: & | H138: =IF(SAMP!V20="","",SAMP!V20) ->  | I138: & | J138: =IF(SAMP!W20="","",SAMP!W20) ->  | K138: & | L138: =IF(SAMP!X20="","",SAMP!X20) ->  | M138: & | N138: =IF(SAMP!Y20="","",SAMP!Y20) ->  | O138: & | P138: =IF(SAMP!Z20="","",SAMP!Z20) -> 58717.4508 | Q138: \\
B139: \\ \hline \\
B140: \multicolumn{8}{l}{\textit{Fuente}: C\'{a}lculos de los autores. \citet{INEGI13}-ver cuadro \ref{cnT}. Nota: 1. 2003.}
B141: \end{tabular}
B142: \end{table}
B143: \end{center}
B144: \end{landscape}
B146: \begin{landscape}
B147: \begin{center}
B148: \begin{table}
B149: [tbp] \centering \caption{Matriz de contabilidad social-con't p6 de 6}\label{SAM6}
B150: \begin{tabular}{lccccccc}
B151: \\ \hline \\
C152: & | D152: Federal | E152: & | F152: Inversi\'{o}n | G152: & | H152: I-GobL | I152: & | J152: I-GobF | K152: & | L152: Exp RM | M152: & | N152: Expt Resto de M\'{e}x | O152: & | P152: Total | R152: \\
B153: \textbf{Hogares} | C153: & | D153: =IF(SAMP!T21="","",SAMP!T21) -> 680.2250895 | E153: & | F153: =IF(SAMP!U21="","",SAMP!U21) ->  | G153: & | H153: =IF(SAMP!V21="","",SAMP!V21) ->  | I153: & | J153: =IF(SAMP!W21="","",SAMP!W21) ->  | K153: & | L153: =IF(SAMP!X21="","",SAMP!X21) -> 201.1164714 | M153: & | N153: =IF(SAMP!Y21="","",SAMP!Y21) -> 1700.562724 | O153: & | P153: =IF(SAMP!Z21="","",SAMP!Z21) -> 98168.98689 | R153: \\
B154: H1 | C154: & | D154: =IF(SAMP!T22="","",SAMP!T22) -> 8.428512352 | E154: & | F154: =IF(SAMP!U22="","",SAMP!U22) ->  | G154: & | H154: =IF(SAMP!V22="","",SAMP!V22) ->  | I154: & | J154: =IF(SAMP!W22="","",SAMP!W22) ->  | K154: & | L154: =IF(SAMP!X22="","",SAMP!X22) -> 9.645642586 | M154: & | N154: =IF(SAMP!Y22="","",SAMP!Y22) -> 21.07128088 | O154: & | P154: =IF(SAMP!Z22="","",SAMP!Z22) -> 4332.246674 | R154: \\
B155: H2 | C155: & | D155: =IF(SAMP!T23="","",SAMP!T23) -> 15.34468145 | E155: & | F155: =IF(SAMP!U23="","",SAMP!U23) ->  | G155: & | H155: =IF(SAMP!V23="","",SAMP!V23) ->  | I155: & | J155: =IF(SAMP!W23="","",SAMP!W23) ->  | K155: & | L155: =IF(SAMP!X23="","",SAMP!X23) -> 29.75127607 | M155: & | N155: =IF(SAMP!Y23="","",SAMP!Y23) -> 38.36170362 | O155: & | P155: =IF(SAMP!Z23="","",SAMP!Z23) -> 6664.399766 | R155: \\
B156: H3 | C156: & | D156: =IF(SAMP!T24="","",SAMP!T24) -> 97.31382862 | E156: & | F156: =IF(SAMP!U24="","",SAMP!U24) ->  | G156: & | H156: =IF(SAMP!V24="","",SAMP!V24) ->  | I156: & | J156: =IF(SAMP!W24="","",SAMP!W24) ->  | K156: & | L156: =IF(SAMP!X24="","",SAMP!X24) -> 69.13942483 | M156: & | N156: =IF(SAMP!Y24="","",SAMP!Y24) -> 243.2845716 | O156: & | P156: =IF(SAMP!Z24="","",SAMP!Z24) -> 10803.90963 | R156: \\
B157: H4 | C157: & | D157: =IF(SAMP!T25="","",SAMP!T25) -> 163.8697786 | E157: & | F157: =IF(SAMP!U25="","",SAMP!U25) ->  | G157: & | H157: =IF(SAMP!V25="","",SAMP!V25) ->  | I157: & | J157: =IF(SAMP!W25="","",SAMP!W25) ->  | K157: & | L157: =IF(SAMP!X25="","",SAMP!X25) -> 1.503412275 | M157: & | N157: =IF(SAMP!Y25="","",SAMP!Y25) -> 409.6744464 | O157: & | P157: =IF(SAMP!Z25="","",SAMP!Z25) -> 17009.42475 | R157: \\
B158: H6 | C158: & | D158: =IF(SAMP!T26="","",SAMP!T26) -> 395.2682885 | E158: & | F158: =IF(SAMP!U26="","",SAMP!U26) ->  | G158: & | H158: =IF(SAMP!V26="","",SAMP!V26) ->  | I158: & | J158: =IF(SAMP!W26="","",SAMP!W26) ->  | K158: & | L158: =IF(SAMP!X26="","",SAMP!X26) -> 91.07671561 | M158: & | N158: =IF(SAMP!Y26="","",SAMP!Y26) -> 988.1707213 | O158: & | P158: =IF(SAMP!Z26="","",SAMP!Z26) -> 59359.00607 | R158: \\
B159: \textbf{Gobierno} | C159: & | D159: =IF(SAMP!T27="","",SAMP!T27) ->  | E159: & | F159: =IF(SAMP!U27="","",SAMP!U27) ->  | G159: & | H159: =IF(SAMP!V27="","",SAMP!V27) ->  | I159: & | J159: =IF(SAMP!W27="","",SAMP!W27) ->  | K159: & | L159: =IF(SAMP!X27="","",SAMP!X27) ->  | M159: & | N159: =IF(SAMP!Y27="","",SAMP!Y27) ->  | O159: & | P159: =IF(SAMP!Z27="","",SAMP!Z27) -> 5199.652415 | R159: \\
B160: Impuestos indirectos | C160: & | D160: =IF(SAMP!T28="","",SAMP!T28) ->  | E160: & | F160: =IF(SAMP!U28="","",SAMP!U28) ->  | G160: & | H160: =IF(SAMP!V28="","",SAMP!V28) ->  | I160: & | J160: =IF(SAMP!W28="","",SAMP!W28) ->  | K160: & | L160: =IF(SAMP!X28="","",SAMP!X28) ->  | M160: & | N160: =IF(SAMP!Y28="","",SAMP!Y28) ->  | O160: & | P160: =IF(SAMP!Z28="","",SAMP!Z28) -> 5199.652415 | R160: \\
B161: Gobierno federal | C161: & | D161: =IF(SAMP!T29="","",SAMP!T29) ->  | E161: & | F161: =IF(SAMP!U29="","",SAMP!U29) ->  | G161: & | H161: =IF(SAMP!V29="","",SAMP!V29) ->  | I161: & | J161: =IF(SAMP!W29="","",SAMP!W29) ->  | K161: & | L161: =IF(SAMP!X29="","",SAMP!X29) ->  | M161: & | N161: =IF(SAMP!Y29="","",SAMP!Y29) ->  | O161: & | P161: =IF(SAMP!Z29="","",SAMP!Z29) -> 70543.15138 | R161: \\
B162: Ganacias de petroleo | C162: & | D162: =IF(SAMP!T30="","",SAMP!T30) ->  | E162: & | F162: =IF(SAMP!U30="","",SAMP!U30) ->  | G162: & | H162: =IF(SAMP!V30="","",SAMP!V30) ->  | I162: & | J162: =IF(SAMP!W30="","",SAMP!W30) ->  | K162: & | L162: =IF(SAMP!X30="","",SAMP!X30) ->  | M162: & | N162: =IF(SAMP!Y30="","",SAMP!Y30) ->  | O162: & | P162: =IF(SAMP!Z30="","",SAMP!Z30) -> 70543.15138 | R162: \\
B163: \textbf{Ahorros} | C163: & | D163: =IF(SAMP!T31="","",SAMP!T31) -> 53165.49029 | E163: & | F163: =IF(SAMP!U31="","",SAMP!U31) ->  | G163: & | H163: =IF(SAMP!V31="","",SAMP!V31) ->  | I163: & | J163: =IF(SAMP!W31="","",SAMP!W31) ->  | K163: & | L163: =IF(SAMP!X31="","",SAMP!X31) -> -32494.23474 | M163: & | N163: =IF(SAMP!Y31="","",SAMP!Y31) -> -22515.7449 | O163: & | P163: =IF(SAMP!Z31="","",SAMP!Z31) -> 20521.50864 | R163: \\
B164: \textbf{Externo} | C164: & | D164: =IF(SAMP!T32="","",SAMP!T32) ->  | E164: & | F164: =IF(SAMP!U32="","",SAMP!U32) ->  | G164: & | H164: =IF(SAMP!V32="","",SAMP!V32) ->  | I164: & | J164: =IF(SAMP!W32="","",SAMP!W32) ->  | K164: & | L164: =IF(SAMP!X32="","",SAMP!X32) ->  | M164: & | N164: =IF(SAMP!Y32="","",SAMP!Y32) ->  | O164: & | P164: =IF(SAMP!Z32="","",SAMP!Z32) -> 58037.65103 | R164: \\
B165: Resto del mundo | C165: & | D165: =IF(SAMP!T33="","",SAMP!T33) ->  | E165: & | F165: =IF(SAMP!U33="","",SAMP!U33) ->  | G165: & | H165: =IF(SAMP!V33="","",SAMP!V33) ->  | I165: & | J165: =IF(SAMP!W33="","",SAMP!W33) ->  | K165: & | L165: =IF(SAMP!X33="","",SAMP!X33) ->  | M165: & | N165: =IF(SAMP!Y33="","",SAMP!Y33) ->  | O165: & | P165: =IF(SAMP!Z33="","",SAMP!Z33) -> 230.2320436 | R165: \\
B166: Resto del M\'{e}xico | C166: & | D166: =IF(SAMP!T34="","",SAMP!T34) ->  | E166: & | F166: =IF(SAMP!U34="","",SAMP!U34) ->  | G166: & | H166: =IF(SAMP!V34="","",SAMP!V34) ->  | I166: & | J166: =IF(SAMP!W34="","",SAMP!W34) ->  | K166: & | L166: =IF(SAMP!X34="","",SAMP!X34) ->  | M166: & | N166: =IF(SAMP!Y34="","",SAMP!Y34) ->  | O166: & | P166: =IF(SAMP!Z34="","",SAMP!Z34) -> 57807.41899 | R166: \\
B167: \textbf{Total} | C167: & | D167: =IF(SAMP!T36="","",SAMP!T36) -> 70543.15138 | E167: & | F167: =IF(SAMP!U36="","",SAMP!U36) -> 8714.036044 | G167: & | H167: =IF(SAMP!V36="","",SAMP!V36) -> 7589.843387 | I167: & | J167: =IF(SAMP!W36="","",SAMP!W36) -> 4217.629213 | K167: & | L167: =IF(SAMP!X36="","",SAMP!X36) -> 230.2320436 | M167: & | N167: =IF(SAMP!Y36="","",SAMP!Y36) -> 57807.41899 | O167: & | P167: =IF(SAMP!Z36="","",SAMP!Z36) ->  | R167: \\
B168: \\ \hline \\
B169: \multicolumn{8}{l}{\textit{Fuente}: C\'{a}lculos de los autores. \citet{INEGI13}-ver cuadro \ref{cnT}. Nota: 1. 2003.}
B170: \end{tabular}
B171: \end{table}
B172: \end{center}
B173: \end{landscape}

Sheet SAM
A1: 2003 Matriz en precios | B1: Mercancias/Produccion | G1: Empresas | K1: Factores | M1: Hogares | X1: Demanda Final
A2: del productor | B2: AgPec | C2: Pet | D2: Industria | E2: Servicios | F2: Margen | G2: AgPec | H2: Petro | I2: Industria | J2: Servicios | K2: L | L2: K | M2: H1 | N2: H2 | O2: H3 | P2: H4 | Q2: H5 | R2: GOB_Tab | S2: GOB_FED | T2: INV_GF | U2: INV_GT | V2: INV_P | W2: XRM | X2: XRMEX | Y2: Total
A3: AgPec | G3: 534 | Y3: 534
A4: Pet | H4: 12515 | I4: 1.5 | J4: 183 | Y4: 12699
A5: Industria | I5: 1054 | J5: 4 | Y5: 1058
A6: Servicios | I6: 50 | J6: 8304 | Y6: 8354
A7: Margen | G7: 136 | H7: 3 | I7: 1160 | Y7: 1300
A8: AgPec | B8: 29 | C8: 0 | D8: 279 | E8: 46 | M8: 32 | N8: 43 | O8: 44 | P8: 53 | Q8: 62 | V8: 14 | X8: 183 | Y8: 784
A9: Pet | B9: 0.3 | C9: 4982 | D9: 22 | E9: 0 | W9: 2589 | X9: 5759 | Y9: 13352
A10: Industria | B10: 162 | C10: 58 | D10: 232 | E10: 1534 | M10: 177 | N10: 293 | O10: 418 | P10: 577 | Q10: 1072 | V10: 322 | W10: 7 | X10: 200 | Y10: 5051
A11: Servicios | B11: 11 | C11: 488 | D11: 91 | E11: 1241 | F11: 1300 | M11: 107 | N11: 122 | O11: 248 | P11: 472 | Q11: 1866 | R11: 2137 | V11: 1302 | X11: 133 | Y11: 9519
A12: L | B12: 144 | C12: 245 | D12: 70 | E12: 2659 | Y12: 3117
A13: K | B13: 187 | C13: 6682 | D13: 351 | E13: 2794 | Y13: 10014
A14: H1 | K14: 63 | L14: 278 | M14: 14 | R14: 12.4 | W14: 0.8 | X14: 2.4 | Y14: 371
A15: H2 | K15: 176 | L15: 591 | N15: 14 | R15: 23.6 | W15: 2.4 | X15: 4.3 | Y15: 812
A16: H3 | K16: 331 | L16: 909 | O16: 25 | R16: 20.9 | W16: 5.5 | X16: 27.3 | Y16: 1318
A17: H4 | K17: 616 | L17: 1607 | P17: 16 | R17: 12.1 | W17: 0.1 | X17: 45.9 | Y17: 2296
A18: H5 | K18: 1932 | L18: 6629 | Q18: 3 | R18: 6.7 | W18: 7.3 | X18: 110.8 | Y18: 8688
A19: GOB-Tab | B19: 2 | C19: 244 | D19: 13 | E19: 80 | G19: 0 | H19: 0 | I19: 68 | J19: 62 | Y19: 468
A20: GOB-FED
A21: Ahorros | B21: 0 | C21: 0 | D21: 0 | E21: 0 | G21: 0 | H21: 0 | I21: 0 | J21: 0 | K21: 0 | L21: 0 | M21: 41 | N21: 339 | O21: 583 | P21: 1179 | Q21: 5686 | R21: -1744 | W21: -2604 | X21: -1842 | Y21: 1638
A22: Importaciones MRM | G22: 2 | I22: 6 | Y22: 8
A23: Importaciones MRMEX | G23: 112 | H23: 834 | I23: 2712 | J23: 966 | Y23: 4624
B24: 534 | C24: 12699 | D24: 1058 | E24: 8354 | F24: 1300 | G24: 784 | H24: 13352 | I24: 5051 | J24: 9519 | K24: 3117 | L24: 10014 | M24: 371 | N24: 812 | O24: 1318 | P24: 2296 | Q24: 8688 | R24: 468 | V24: 1638 | W24: 8 | X24: 4624
B26: =+SUM(B12:E13)+SUM(B19:E19)+SUM(I19:J19) -> 13601 | C26: =+R11 -> 2137 | D26: =+C26/B26 -> 0.1571207999

Sheet AgSAM
G1: Factores
B2: Pet | C2: Otros | D2: Margen | E2: Petro | F2: Otros | G2: L | H2: K | I2: Hogares | J2: GOB_Tab | K2: INV_P | L2: Exportaciones | M2: Total
A3: Pet | E3: 12514.7477 | F3: 184.0651 | M3: =SUM(B3:L3) -> 12698.8128
A4: Otros | E4: 0 | F4: 9946.2118 | M4: 9946.2118
A5: Margen | E5: 3.2316 | F5: 1296.3326 | M5: 1299.5642
A6: Pet | B6: 4981.644 | C6: 22.3936 | L6: 8348.2163 | M6: 13352.2539
A7: Otros | B7: 546.6844 | C7: 3624.1167 | D7: =+D14 -> 1299.5642 | I7: 5585.8873 | J7: 2136.7202 | K7: 1637.9945 | L7: 523.2785 | M7: 15354.2458
A8: L | B8: 244.6139 | C8: 2872.6921 | M8: 3117.306
A9: K | B9: 6682.0201 | C9: 3332.1418 | M9: 10014.1619
A10: Hogares | G10: 3117.306 | H10: 10014.1619 | I10: 71.4865 | J10: 75.6588 | L10: 206.6705 | M10: 13485.2837
A11: GOB-Tab | B11: 243.8504 | C11: 94.8676 | F11: 129.437 | M11: 468.155
A12: Ahorros | B12: =+B14-SUM(B3:B11) -> 0 | C12: =+C14-SUM(C3:C11) -> 0 | E12: =+E14-E13-SUM(E3:E5) -> 0 | F12: =+F14-F13-SUM(F3:F11) -> 0 | I12: =+I14-I10-I7 -> 7827.9099 | J12: =+J14-J7-J10 -> -1744.224 | L12: =+L14-SUM(L3:L10) -> -4445.6914 | M12: 1637.9945
A13: Import | E13: 834.2746 | F13: 3798.1993 | M13: 4632.4739
A14: Total | B14: =+M3 -> 12698.8128 | C14: =+M4 -> 9946.2118 | D14: =+M5 -> 1299.5642 | E14: =+M6 -> 13352.2539 | F14: =+M7 -> 15354.2458 | G14: =+M8 -> 3117.306 | H14: =+M9 -> 10014.1619 | I14: =+M10 -> 13485.2837 | J14: =+M11 -> 468.155 | K14: 1637.9945 | L14: =+M13 -> 4632.4739 | M14: =+M12-K14 -> -1.818989404e-12
G18: Factores
B19: Pet | C19: Otros | D19: Margen | E19: Petro | F19: Otros | G19: L | H19: K | I19: Hogares | J19: GOB_Tab | K19: INV_P | L19: Exportaciones | M19: Total
A20: Pet | E20: =+E3/scale -> 998909.3868 | F20: 14691.81485 | M20: =+M3/scale -> 1013601.202
A21: Otros | E21: 0 | F21: 793892.4993 | M21: 793892.4993
A22: Margen | E22: 257.9417222 | F22: 103471.427 | M22: 103729.3687
A23: Pet | B23: =+B6/scale -> 397627.7487 | C23: 1787.425346 | L23: =+L6/scale -> 666342.7681 | M23: 1065757.942
A24: Otros | B24: 43635.57235 | C24: 289271.8477 | D24: =+D7/scale -> 103729.3687 | I24: =+I7/scale -> 445857.5907 | J24: =+J7/scale -> 170549.9716 | K24: =+K7/scale -> 130742.3946 | L24: =+L7/scale -> 41767.34666 | M24: 1225554.092
A25: L | B25: 19524.73407 | C25: 229294.2033 | M25: 248818.9374
A26: K | B26: 533349.3539 | C26: 265966.8258 | M26: 799316.1798
A27: Hogares | G27: =+G10/scale -> 248818.9374 | H27: =+H10/scale -> 799316.1798 | I27: =+I10/scale -> 5705.950898 | J27: =+J10/scale -> 6038.977958 | L27: =+L10/scale -> 16496.14578 | M27: 1076376.192
A28: GOB-Tab | B28: =+B11/scale -> 19463.79259 | C28: =+C11/scale -> 7572.197092 | F28: =+F11/scale -> 10331.4775 | M28: 37367.46718
A29: Ahorros | B29: =+B31-SUM(B20:B28) -> 0 | C29: =+C31-SUM(C20:C28) -> 0 | E29: =+E12/scale -> 0 | F29: =+F12/scale -> 0 | I29: =+I12/scale -> 624812.6503 | J29: =+J12/scale -> -139221.4824 | L29: =+L12/scale -> -354848.7733 | M29: 130742.3946
A30: Import | E30: =+E13/scale -> 66590.61365 | F30: =+F13/scale -> 303166.8736 | M30: 369757.4872
A31: Total | B31: =+B14/scale -> 1013601.202 | C31: =+C14/scale -> 793892.4993 | D31: =+D14/scale -> 103729.3687 | E31: =+E14/scale -> 1065757.942 | F31: =+F14/scale -> 1225554.092 | G31: =+G14/scale -> 248818.9374 | H31: 799316.1798 | I31: 1076376.192 | J31: 37367.46718 | K31: 130742.3946 | L31: 369757.4872 | M31: -1.451891507e-10
B34: =+B23/B31 -> 0.3922921047 | C34: =+C23/C31 -> 0.002251470253
B35: =+B24/B31 -> 0.04305004008 | C35: =D24/C31 -> 0.1306592124

Sheet cnT
H1: scale | I1: 100
B2: \begin{center}
B3: \begin{table}
B4: [htbp] \centering
B5: \caption{Tabasco: Cuentas nacionales regionales$^{1}$}
B6: \label{cnT}
B7: \begin{tabular}{cllr} | K7: scale | L7: =+N9/M9/100 -> 0.01252841135
B8: \hline\hline \\ | M8: Aida | N8: INEGI
B9: \hspace{5pt} Y | C9: & | D9: Y | E9: PIB | F9: & | G9: =+L9*scale -> 170.3816699 | H9: \\ | K9: PIB | L9: 13599.6229 | M9: 13599.62291 | N9: =+[2]Sheet1!$B$3 -> 17038.167
B10: \hspace{5pt} | C10: & | D10: C | E10: Consumo | F10: & | G10: 69.98229386 | H10: \\ | I10: =+scale*L10 -> 69.98229386 | K10: C | L10: 5585.8873 | M10: 5585.887316
B11: \hspace{5pt} | C11: & | D11: I | E11: Inversion | F11: & | G11: 20.52146889 | H11: \\ | I11: =+scale*L11 -> 20.52146889 | K11: I | L11: 1637.9945 | M11: 1637.9945
B12: \hspace{5pt} | C12: & | D12: G | E12: Gob | F12: & | G12: 26.76970961 | H12: \\ | I12: =+scale*L12 -> 26.76970961 | K12: G | L12: 2136.7202 | M12: 2136.7202
B13: \hspace{5pt} | C13: & | D13: E | E13: Exportacions | F13: & | G13: 111.1457362 | H13: \\ | I13: =+scale*L13 -> 111.1457362 | K13: Ex | L13: 8871.4948 | M13: 8871.4948
B14: \hspace{5pt} | C14: & | D14: -M | E14: Importaciones | F14: & | G14: -58.03753859 | H14: \\ | I14: =+scale*L14 -> -58.03753859 | K14: -M | L14: -4632.4739 | M14: -4632.473917
B15: \\ \hline \\
B16: \multicolumn{4}{l}{\textit{Fuente}:\citet{INEGI13}.} Nota: 1. T\'{e}rminos nominales de mil millones de peso 2003. \\
B17: \end{tabular}
B18: \end{table}
B19: \end{center}
E20: error | G20: =G9-SUM(G10:G14) -> 0
B22: scale

Sheet SAM1T
B1: \begin{center}
B2: \begin{table}
B3: [tbp] \centering \caption{Las cuentas nacionales en forma de MCS$^{1}$}\label{SAM1T}
B4: \begin{tabular}{lccccccc}
B5: \\ \hline \\
B7: =2003 -> 2003 | C7: & | D7: Empresas | E7: & | F7: =+B9 -> Hogares | G7: & | H7: Inv | I7: & | J7: Gob | K7: & | L7: Export | M7: & | N7: =+B14 -> Total | O7: \\
B8: =+D7 -> Empresas | C8: & | E8: & | F8: =+cnT!G10 -> 69.98229386 | G8: & | H8: =+cnT!G11 -> 20.52146889 | I8: & | J8: =+cnT!G12 -> 26.76970961 | K8: & | L8: =+cnT!G13 -> 111.1457362 | M8: & | N8: =SUM(C8:L8) -> 228.4192085 | O8: \\
B9: Hogares | C9: & | D9: =+D14-D12 -> 170.3816699 | E9: & | G9: & | I9: & | K9: & | M9: & | N9: =SUM(C9:L9) -> 170.3816699 | O9: \\
B10: Ahorro | C10: & | E10: & | F10: =+F14-F8-F11 -> 73.62966645 | G10: & | I10: & | J10: =+J14-J8 -> 0 | K10: & | L10: =+L14-L8 -> -53.10819756 | M10: & | N10: 20.52146889 | O10: \\
B11: Gob | C11: & | E11: & | F11: =+F14*D25 -> 26.76970961 | G11: & | I11: & | K11: & | M11: & | N11: 26.76970961 | O11: \\
B12: Import | C12: & | D12: =+N12 -> 58.03753859 | E12: & | G12: & | I12: & | K12: & | M12: & | N12: =-cnT!G14 -> 58.03753859 | O12: \\
B13: \\ \\ \hline \\
B14: Total | C14: & | D14: =N8 -> 228.4192085 | E14: & | F14: =+N9 -> 170.3816699 | G14: & | H14: =+H8 -> 20.52146889 | I14: & | J14: =+N11 -> 26.76970961 | L14: =+N12 -> 58.03753859 | M14: & | N14: =IF(ROUND(H14-N10,6)=0,"","AI error") ->  | O14: \\
B15: \\
B16: \multicolumn{6}{l}{\textit{Fuente}: C\'{a}lculos de los autores. \citet{INEGI13}-ver cuadro \ref{cnT}. Nota: 1. 2003.} \\
B17: \end{tabular}
B18: \end{table}
B19: \end{center}
B25: tax rate | C25: & | D25: 0.1571161359
B26: PIB (gasto) | D26: =+F8+H8+J8+L8-N12 -> 170.3816699
B27: PIB (VA) | D27: =+D9 -> 170.3816699

Sheet SAM2T
B1: \begin{center}
B2: \begin{table}
B3: [tbp] \centering \caption{MCS con bienes intermedios$^{1}$}\label{SAM2T}
B4: \begin{tabular}{lccccccc}
B5: \\ \hline \\
B7: 2003 | C7: & | D7: Empresas | E7: & | F7: =+B9 -> Hogares | G7: & | H7: Inv | I7: & | J7: Gob | K7: & | L7: Export | M7: & | N7: =+B14 -> Total | O7: \\
B8: =+D7 -> Empresas | C8: & | D8: =0.25*N8 -> 76.13973617 | E8: & | F8: =+cnT!G10 -> 69.98229386 | G8: & | H8: =+cnT!G11 -> 20.52146889 | I8: & | J8: =+cnT!G12 -> 26.76970961 | K8: & | L8: =+cnT!G13 -> 111.1457362 | M8: & | N8: =SUM(C8:L8) -> 304.5589447 | O8: \\
B9: Hogares | C9: & | D9: =+D14-D12-D8 -> 170.3816699 | E9: & | G9: & | I9: & | K9: & | M9: & | N9: =SUM(C9:L9) -> 170.3816699 | O9: \\
B10: Ahorro | C10: & | E10: & | F10: =+F14-F8-F11 -> 73.62966645 | G10: & | I10: & | J10: =+J14-J8 -> 0 | K10: & | L10: =+L14-L8 -> -53.10819756 | M10: & | N10: =SUM(C10:L10) -> 20.52146889 | O10: \\
B11: Gob | C11: & | E11: & | F11: =+F14*D22 -> 26.76970961 | G11: & | I11: & | K11: & | M11: & | N11: =SUM(C11:L11) -> 26.76970961 | O11: \\
B12: Importaciones | C12: & | D12: =+N12 -> 58.03753859 | E12: & | G12: & | I12: & | K12: & | M12: & | N12: =-cnT!G14 -> 58.03753859 | O12: \\
B13: \\ \\ \hline \\ | O13: \\
B14: Total | C14: & | D14: =+N8 -> 304.5589447 | E14: & | F14: =+N9 -> 170.3816699 | G14: & | H14: =+H8 -> 20.52146889 | I14: & | J14: =+N11 -> 26.76970961 | L14: =+N12 -> 58.03753859 | M14: & | N14: =IF(ROUND(N10-H14,9)=0,"","AI error") ->  | O14: \\
B15: \\
B16: \multicolumn{6}{l}{\textit{Fuente}: C\'{a}lculos de los autores. \citet{INEGI13}-ver cuadro \ref{cnT}. Nota: 1. 2003.} \\
B17: \end{tabular}
B18: \end{table}
B19: \end{center}
B22: tax rate | C22: & | D22: 0.1571161359
B23: PIB (gasto) | D23: =+SUM(F8:L8)-N12 -> 170.3816699
B24: PIB (VA) | D24: =D9 -> 170.3816699

Sheet SAM3T
B1: \begin{center}
B2: \begin{table}
B3: [tbp] \centering \caption{MCS Multisectorial$^{1}$}\label{SAM3T}
B4: \begin{tabular}{lccccccc}
B5: \\ \hline \\
C6: & | D6: Petro | E6: & | F6: Otros | G6: & | H6: =+B9 -> Hogares | I6: & | J6: Inv | K6: & | L6: Gob | M6: & | N6: Export | O6: & | P6: =+B14 -> Total | Q6: \\
B7: Petro | C7: & | D7: =+AgSAM!B23/AgSAM!B31*D14 -> 67.80436053 | E7: & | F7: =+AgSAM!C23/AgSAM!C$31*SAM3T!F$14 -> 0.4472636509 | G7: & | I7: & | K7: & | M7: & | N7: =+cnT!G13*AgSAM!L23/(AgSAM!L23+AgSAM!L24) -> 104.5898879 | O7: & | P7: =SUM(D7:N7) -> 172.841512 | Q7: \\
B8: Otros | C8: & | D8: =+AgSAM!B24/AgSAM!B$31*D$14 -> 7.440834021 | E8: & | F8: =+AgSAM!C24/AgSAM!C$31*SAM3T!F$14 -> 72.38388051 | G8: & | H8: =+cnT!G10 -> 69.98229386 | I8: & | J8: =+cnT!G11 -> 20.52146889 | K8: & | L8: =+cnT!G12-wg -> 21.76970961 | M8: & | N8: =cnT!G13-SAM3T!N7 -> 6.555848299 | O8: & | P8: =SUM(D8:N8) -> 198.6540352 | Q8: \\
B9: Hogares | C9: & | D9: =+D14-D11-D12-D8-D7 -> 84.58285371 | E9: & | F9: =+F14-F11-F12-F8-F7 -> 75.88146236 | G9: & | I9: & | K9: & | L9: =wg -> 5 | M9: & | O9: & | P9: =SUM(D9:N9) -> 165.4643161 | Q9: \\
B10: Ahorro | C10: & | E10: & | G10: & | H10: =+H14-H8-H11 -> 95.48202221 | I10: & | K10: & | L10: =+L14-L9-L8 -> -21.85235576 | M10: & | N10: =+N14-N8-N7-N9 -> -53.10819756 | O10: & | P10: =SUM(D10:N10) -> 20.52146889 | Q10: \\
B11: Gob | C11: & | D11: =+AgSAM!B28/(AgSAM!B28+AgSAM!C28+AgSAM!F28)*P11 -> 2.561328413 | E11: & | F11: =+P11-D11 -> 2.356025437 | G11: & | I11: & | K11: & | M11: & | O11: & | P11: =+D29 -> 4.91735385 | Q11: \\
B12: Import | C12: & | D12: =+P12*AgSAM!E30/AgSAM!M30 -> 10.45213537 | E12: & | F12: =+P12-D12 -> 47.58540322 | G12: & | I12: & | K12: & | M12: & | O12: & | P12: =-cnT!G14 -> 58.03753859 | Q12: \\
B13: \\ \hline | Q13: \\
B14: Total | C14: & | D14: =+P7 -> 172.841512 | E14: & | F14: =+P8 -> 198.6540352 | G14: & | H14: =+P9 -> 165.4643161 | I14: & | J14: =+J8 -> 20.52146889 | K14: & | L14: =+P11 -> 4.91735385 | M14: & | N14: =+P12 -> 58.03753859 | O14: & | P14: =IF(ROUND(J14,6)-ROUND(P10,6)=0,"",P10-J14) ->  | Q14: \\
B15: \\
B16: \\
B17: \multicolumn{8}{l}{\textit{Fuente}: C\'{a}lculos de los autores. \citet{INEGI13}-ver cuadro \ref{cnT}. Nota: 1. 2003.} \\
B18: \end{tabular}
B19: \end{table}
B20: \end{center}
B21: Wg | D21: 5
B22: PIB (gasto) | D22: =+SUM(H7:N8)-P12+wg -> 170.3816699
B23: PIB (VA) | D23: =+D9+F9+D11+F11+wg -> 170.3816699
B24: Ahorro gob | D24: =+L10/D22 -> -0.1282553209 | O24: =+AgSAM!M28/SAM3T!P11 -> 7599.10072
D25: =+AgSAM!J29 -> -139221.4824
B26: target | D26: =SUM(AgSAM!B28:C28)+SUM(AgSAM!B25:C26)+SUM(AgSAM!E28:F28) -> 1085502.584
D27: =+D25/D26 -> -0.128255321
D28: =+D27-D24 -> -1.439182107e-11
D29: 4.91735385

Sheet SAM3aT
B3: \begin{center}
B4: \begin{table}
B5: [tbp] \centering \caption{MCS sin uso intermedio del petr\'{o}leo crudo$^{1}$}\label{SAM3aT}
B6: \begin{tabular}{lccccccc}
B7: \\ \hline \\
C8: & | D8: Petro | E8: & | F8: Otros | G8: & | H8: =+B11 -> Hogares | I8: & | J8: Inv | K8: & | L8: Gob | M8: & | N8: Export | O8: & | P8: =+B16 -> Total | Q8: \\
B9: Petro | C9: & | D9: 0 | E9: & | F9: =+AgSAM!C23/AgSAM!C$31*SAM3aT!F$16 -> 0.436922704 | G9: & | I9: & | K9: & | M9: & | N9: =+cnT!G13*AgSAM!L23/(AgSAM!L23+AgSAM!L24) -> 104.5898879 | O9: & | P9: =SUM(D9:N9) -> 105.0268106 | Q9: \\
B10: Otros | C10: & | D10: =+AgSAM!B24/AgSAM!B$31*D$16 -> 4.521408404 | E10: & | F10: =+AgSAM!C24/AgSAM!C$31*SAM3aT!F$16 -> 70.710331 | G10: & | H10: =+cnT!G10 -> 69.98229386 | I10: & | J10: =+cnT!G11 -> 20.52146889 | K10: & | L10: =+cnT!G12-wg -> 21.76970961 | M10: & | N10: =cnT!G13-SAM3aT!N9 -> 6.555848299 | O10: & | P10: =SUM(D10:N10) -> 194.0610601 | Q10: \\
B11: Hogares | C11: & | D11: =+D16-D13-D14-D10-D9 -> 87.49193837 | E11: & | F11: =+F16-F13-F14-F10-F9 -> 72.97237769 | G11: & | I11: & | K11: & | L11: =wg -> 5 | M11: & | O11: & | P11: =SUM(D11:N11) -> 165.4643161 | Q11: \\
B12: Ahorro | C12: & | E12: & | G12: & | H12: =+H16-H10-H13 -> 95.48202221 | I12: & | K12: & | L12: =+L16-L11-L10 -> -21.85235576 | M12: & | N12: =+N16-N10-N9-N11 -> -53.10819756 | O12: & | P12: =SUM(D12:N12) -> 20.52146889 | Q12: \\
B13: Gob | C13: & | D13: =+AgSAM!B28/(AgSAM!B28+AgSAM!C28+AgSAM!F28)*P13 -> 2.561328413 | E13: & | F13: =+P13-D13 -> 2.356025437 | G13: & | I13: & | K13: & | M13: & | O13: & | P13: =+SAM3T!P11 -> 4.91735385 | Q13: \\
B14: Import | C14: & | D14: =+P14*AgSAM!E30/(AgSAM!E30+AgSAM!F30) -> 10.45213537 | E14: & | F14: =+P14-D14 -> 47.58540322 | G14: & | I14: & | K14: & | M14: & | O14: & | P14: =-cnT!G14 -> 58.03753859 | Q14: \\
B15: \\ \hline | Q15: \\
B16: Total | C16: & | D16: =+P9 -> 105.0268106 | E16: & | F16: =+P10 -> 194.0610601 | G16: & | H16: =+P11 -> 165.4643161 | I16: & | J16: =+J10 -> 20.52146889 | K16: & | L16: =+P13 -> 4.91735385 | M16: & | N16: =+P14 -> 58.03753859 | O16: & | P16: =IF(ROUND(J16,6)=ROUND(P12,6),"",P12-J16) ->  | Q16: \\
B17: \multicolumn{6}{l}{\textit{Fuente}: C\'{a}lculos de los autores.} \\
B18: \end{tabular}
B19: \end{table}
B20: \end{center}
B21: Wg | D21: =wg -> 5
B22: PIB (gasto) | D22: =+SUM(H9:N10)-P14+wg -> 170.3816699
B23: PIB (VA) | D23: =+D11+F11+D13+F13+wg -> 170.3816699
O24: =+AgSAM!M28/SAM3aT!P13 -> 7599.10072

Sheet SAM3adT
B1: \begin{center}
B2: \begin{table}
B3: [tbp] \centering \caption{Diferencias del cuadro \ref{SAM3T} y \ref{SAM3aT}}\label{SAM3adT}
B4: \begin{tabular}{lccccccc}
B5: \\ \hline \\
C6: & | D6: Petro | E6: & | F6: Otros | G6: & | H6: =+B9 -> Hogares | I6: & | J6: Inv | K6: & | L6: Gob | M6: & | N6: Export | O6: & | P6: =+B14 -> Total | Q6: \\
B7: Petro | C7: & | D7: =SAM3aT!D9-SAM3T!D7 -> -67.80436053 | E7: & | F7: =SAM3aT!F9-SAM3T!F7 -> -0.01034094686 | G7: & | I7: & | K7: & | M7: & | N7: =SAM3aT!N9-SAM3T!N7 -> 0 | O7: & | P7: =SAM3aT!P9-SAM3T!P7 -> -67.81470148 | Q7: \\
B8: Otros | C8: & | D8: =SAM3aT!D10-SAM3T!D8 -> -2.919425617 | E8: & | F8: =SAM3aT!F10-SAM3T!F8 -> -1.673549506 | G8: & | H8: =SAM3aT!H10-SAM3T!H8 -> 0 | I8: & | J8: =SAM3aT!J10-SAM3T!J8 -> 0 | K8: & | L8: =SAM3aT!L10-SAM3T!L8 -> 0 | M8: & | N8: =SAM3aT!N10-SAM3T!N8 -> 0 | O8: & | P8: =SAM3aT!P10-SAM3T!P8 -> -4.592975123 | Q8: \\
B9: Hogares | C9: & | D9: =SAM3aT!D11-SAM3T!D9 -> 2.90908467 | E9: & | F9: =SAM3aT!F11-SAM3T!F9 -> -2.90908467 | G9: & | I9: & | K9: & | L9: =SAM3aT!L11-SAM3T!L9 -> 0 | M9: & | O9: & | P9: =SAM3aT!P11-SAM3T!P9 -> 0 | Q9: \\
B10: Ahorro | C10: & | E10: & | G10: & | H10: =SAM3aT!H12-SAM3T!H10 -> 0 | I10: & | K10: & | L10: =SAM3aT!L12-SAM3T!L10 -> 0 | M10: & | N10: =SAM3aT!N12-SAM3T!N10 -> 0 | O10: & | P10: =SAM3aT!P12-SAM3T!P10 -> 2.842170943e-14 | Q10: \\
B11: Gob | C11: & | D11: =SAM3aT!D13-SAM3T!D11 -> 0 | E11: & | F11: =SAM3aT!F13-SAM3T!F11 -> 0 | G11: & | I11: & | K11: & | M11: & | O11: & | P11: =SAM3aT!P13-SAM3T!P11 -> 0 | Q11: \\
B12: Import | C12: & | D12: =SAM3aT!D14-SAM3T!D12 -> 0 | E12: & | F12: =+SAM3T!F12-SAM3aT!F14 -> 0 | G12: & | I12: & | K12: & | M12: & | O12: & | P12: =SAM3aT!P14-SAM3T!P12 -> 0 | Q12: \\
B13: \\ \hline | Q13: \\
B14: Total | C14: & | D14: =SAM3aT!D16-SAM3T!D14 -> -67.81470148 | E14: & | F14: =SAM3aT!F16-SAM3T!F14 -> -4.592975123 | G14: & | H14: =SAM3aT!H16-SAM3T!H14 -> 0 | I14: & | J14: =SAM3aT!J16-SAM3T!J14 -> 0 | K14: & | L14: =SAM3aT!L16-SAM3T!L14 -> 0 | M14: & | N14: =SAM3aT!N16-SAM3T!N14 -> 0 | O14: & | P14: =IF(ROUND(J14,6)=ROUND(P10,6),"",P10-J14) ->  | Q14: \\
B15: \multicolumn{6}{l}{\textit{Fuente}: C\'{a}lculos de los autores.} \\
B16: \end{tabular}
B17: \end{table}
B18: \end{center}
B20: Wg | D20: 5
B21: PIB (gasto) | D21: 0
B22: PIB (VA) | D22: 0
O23: =+AgSAM!M28/SAM3adT!P11 -> 

Sheet SAM4T
B1: \begin{center}
B2: \begin{table}
B3: [tbp] \centering \caption{MCS con cuentas de factores$^{1}$}\label{SAM4T}
B4: \begin{tabular}{lccccccccc}
B5: \\ \hline \\
C6: & | D6: Petro | E6: & | F6: Otros | G6: & | H6: MdO | I6: & | J6: Cap | K6: & | L6: Hog | M6: & | N6: Inv | O6: & | P6: Gob | Q6: & | R6: Expt | S6: & | T6: =+B16 -> Total | U6: \\
B7: Petro | C7: & | D7: =+AgSAM!B23/AgSAM!B$31*D$16 -> 67.80436053 | E7: & | F7: =+AgSAM!C23/AgSAM!C$31*SAM4T!F$16 -> 0.4472636509 | G7: & | I7: & | K7: & | M7: & | O7: & | Q7: & | R7: =+cnT!G13*AgSAM!L23/(AgSAM!L23+AgSAM!L24) -> 104.5898879 | S7: & | T7: =SUM(D7:R7) -> 172.841512 | U7: \\
B8: Otros | C8: & | D8: =+AgSAM!B24/AgSAM!B$31*D$16 -> 7.440834021 | E8: & | F8: =+AgSAM!C24/AgSAM!C$31*SAM4T!F$16 -> 72.38388051 | G8: & | I8: & | K8: & | L8: =+SAM2T!F8 -> 69.98229386 | M8: & | N8: =+SAM2T!H8 -> 20.52146889 | O8: & | P8: =+cnT!G12-wg -> 21.76970961 | Q8: & | R8: =cnT!G13-SAM4T!R7 -> 6.555848299 | S8: & | T8: 198.6540352 | U8: \\
B9: M. de obra | C9: & | D9: =+AgSAM!B$25/AgSAM!B$31*D$16 -> 3.329400709 | E9: & | F9: =+AgSAM!C$25/AgSAM!C$31*F16 -> 57.37580186 | G9: & | I9: & | K9: & | M9: & | O9: & | P9: =wg -> 5 | Q9: & | S9: & | T9: 65.70520257 | U9: \\
B10: Capital | C10: & | D10: =+D16-D149-D13-D11-D9-D8-D7-D14 -> 81.253453 | E10: & | F10: =+F16-F149-F13-F11-F9-F8-F7-F14 -> 18.5056605 | G10: & | I10: & | K10: & | M10: & | O10: & | P10: 0.4 | Q10: & | S10: & | T10: 100.1591135 | U10: \\
B11: Hogares | C11: & | E11: & | G11: & | H11: =+H16 -> 65.70520257 | I11: & | J11: =+J16 -> 100.1591135 | K11: & | M11: & | O11: & | Q11: & | S11: & | T11: 165.8643161 | U11: \\
B12: Ahorro | C12: & | E12: & | G12: & | I12: & | K12: & | L12: =+L16-L8-L13 -> 95.88202221 | M12: & | O12: & | P12: =P16-P9-P8-P10 -> -22.25235576 | Q12: & | R12: =+R16-R8-R7-R11 -> -53.10819756 | S12: & | T12: 20.52146889 | U12: \\
B13: Gob | C13: & | D13: =+AgSAM!B28/(AgSAM!B28+AgSAM!C28+AgSAM!F28)*T13 -> 2.561328413 | E13: & | F13: =+T13-D13 -> 2.356025437 | G13: & | I13: & | K13: & | M13: & | O13: & | Q13: & | S13: & | T13: =+SAM3aT!P13 -> 4.91735385 | U13: \\
B14: Import | C14: & | D14: =+T14*AgSAM!E30/(AgSAM!E30+AgSAM!F30) -> 10.45213537 | E14: & | F14: =+T14-D14 -> 47.58540322 | G14: & | I14: & | K14: & | M14: & | O14: & | Q14: & | S14: & | T14: =-cnT!G14 -> 58.03753859 | U14: \\
B15: \\ \\ \hline | U15: \\
B16: Total | C16: & | D16: =+T7 -> 172.841512 | E16: & | F16: =+T8 -> 198.6540352 | G16: & | H16: =+T9 -> 65.70520257 | I16: & | J16: =+T10 -> 100.1591135 | K16: & | L16: =+T11 -> 165.8643161 | M16: & | N16: =+N8 -> 20.52146889 | O16: & | P16: =+T13 -> 4.91735385 | Q16: & | R16: =+T14 -> 58.03753859 | S16: & | T16: =IF(ROUND(N16,6)=ROUND(T12,6),"",T12-N16) ->  | U16: \\
B17: \\
B18: \multicolumn{8}{l}{\textit{Fuente}: C\'{a}lculos de los autores. \citet{INEGI13}-ver cuadro \ref{cnT}. Nota: 1. 2003.} \\
B19: \end{tabular}
B20: \end{table}
B21: \end{center}
B23: Salarios | D23: wg
B24: PIB (gasto) | C24: & | D24: =+SUM(L7:R8)-T14+P9 -> 170.3816699
B25: PIB (VA) | C25: & | D25: =SUM(D9:F13)+P9 -> 170.3816699
D26: =+AgSAM!M28/SAM4T!T13 -> 7599.10072

Sheet SAM5T
B1: \begin{landscape}
B2: \begin{center}
B3: \begin{table}
B4: [tbp] \centering \caption{MCS con productos y empresas por separados$^{1}$}\label{SAM5T}
B5: \begin{tabular}{lccccccccc}
B6: \\ \hline \\
C7: & | D7: Petro | E7: & | F7: Otros | G7: & | H7: Petro | I7: & | J7: Otros | K7: & | L7: Hog | M7: & | N7: Inv | O7: & | P7: Gob | Q7: & | R7: Expt | S7: & | T7: =+B17 -> Total | U7: \\
B8: Petro | C8: & | E8: & | G8: & | H8: =+H17-H14-H15 -> 156.585545 | I8: & | J8: =+(J17-J14-J15)*AgSAM!F20/SUM(AgSAM!F20:F22) -> 1.926198833 | K8: & | M8: & | O8: & | Q8: & | S8: & | T8: =SUM(D8:R8) -> 158.5117438 | U8: \\
B9: Otros | C9: & | E9: & | G9: & | I9: & | J9: =+J17-J8-J14-J15 -> 117.650635 | K9: & | M9: & | O9: & | Q9: & | S9: & | T9: 117.650635 | U9: \\
B10: Petro | C10: & | D10: =+AgSAM!B23/AgSAM!B$31*D$17 -> 62.1829056 | E10: & | F10: =+AgSAM!C23/AgSAM!C$31*SAM5T!F$17 -> 0.264886905 | G10: & | I10: & | K10: & | M10: & | O10: & | Q10: & | R10: =+cnT!G13*AgSAM!L23/(AgSAM!L23+AgSAM!L24) -> 104.5898879 | S10: & | T10: 167.0376804 | U10: \\
B11: Otros | C11: & | D11: =+AgSAM!B24/AgSAM!B$31*D$17 -> 6.823936925 | E11: & | F11: =+AgSAM!C24/AgSAM!C$31*SAM5T!F$17 -> 42.8685453 | G11: & | I11: & | K11: & | L11: =+SAM2T!F8 -> 69.98229386 | M11: & | N11: =+SAM2T!H8 -> 20.52146889 | O11: & | P11: =+cnT!G12-wg -> 21.76970961 | Q11: & | R11: =cnT!G13-SAM5T!R10 -> 6.555848299 | S11: & | T11: 168.5218029 | U11: \\
B12: Hogares | C12: & | D12: =+D17-D14-D11-D10 -> 86.94357289 | E12: & | F12: =+F17-F14-F11-F10 -> 73.52074318 | G12: & | I12: & | K12: & | M12: & | O12: & | P12: =wg -> 5 | Q12: & | S12: & | T12: 165.4643161 | U12: \\
B13: Ahorro | C13: & | E13: & | G13: & | I13: & | K13: & | L13: =+L17-L11-L14 -> 95.48202221 | M13: & | O13: & | P13: =P17-P12-P11 -> -21.85235576 | Q13: & | R13: =+R17-R11-R10 -> -53.10819756 | S13: & | T13: 20.52146889 | U13: \\
B14: Gob | C14: & | D14: =+AgSAM!B28/(AgSAM!B28+AgSAM!C28+AgSAM!F28)*T14 -> 2.561328413 | E14: & | F14: =+AgSAM!C28/(AgSAM!B28+AgSAM!C28+AgSAM!F28)*T14 -> 0.99645963 | G14: & | H14: =+T14-D14-F14-J14 -> 0 | I14: & | J14: =+AgSAM!F28/(AgSAM!B28+AgSAM!C28+AgSAM!F28)*T14 -> 1.359565807 | K14: & | M14: & | O14: & | Q14: & | S14: & | T14: =+SAM4T!T13 -> 4.91735385 | U14: \\
B15: Import | C15: & | E15: & | G15: & | H15: =+T15*AgSAM!E30/(AgSAM!E30+AgSAM!F30) -> 10.45213537 | I15: & | J15: =+T15-H15 -> 47.58540322 | K15: & | M15: & | O15: & | Q15: & | S15: & | T15: =-cnT!G14 -> 58.03753859 | U15: \\
B16: \\ \\ \hline | U16: \\
B17: Total | C17: & | D17: =+T8 -> 158.5117438 | E17: & | F17: =+T9 -> 117.650635 | G17: & | H17: =+T10 -> 167.0376804 | I17: & | J17: =+T11 -> 168.5218029 | K17: & | L17: =+T12 -> 165.4643161 | M17: & | N17: =+N11 -> 20.52146889 | O17: & | P17: =+T14 -> 4.91735385 | Q17: & | R17: =+T15 -> 58.03753859 | S17: & | T17: =IF(ROUND(N17,6)=ROUND(T13,6),"",T13-N17) ->  | U17: \\
B18: \\
B19: \multicolumn{10}{l}{\textit{Fuente}: C\'{a}lculos de los autores. \citet{INEGI13}-ver cuadro \ref{cnT}. Nota: 1. 2003.} \\
B20: \end{tabular}
B21: \end{table}
B22: \end{center}
B23: \end{landscape}
B27: PIB (gasto) | C27: & | D27: =+SUM(L10:R11)-T15+wg -> 170.3816699
B28: VA | C28: & | D28: =+D12+F12+D14+F14+J14+P12 -> 170.3816699
B29: VAT | C29: & | D29: =+J14 -> 1.359565807
B30: PIB (VA) | C30: & | D30: =+D29+D28 -> 171.7412357

Sheet SAM6T
B4: \begin{landscape}
B5: \begin{center}
B6: \begin{table}
B7: [tbp] \centering \caption{M\'{a}rgenes comercialicaci\'{o}n$^{1}$}\label{SAM6T}
B8: \begin{tabular}{lcccccccccc}
B9: \\ \hline \\
C10: & | D10: Petro | E10: & | F10: Otros | G10: & | H10: Petro | I10: & | J10: Otros | K10: & | L10: Hog | M10: & | N10: Inv | O10: & | P10: Gob | Q10: & | R10: Expt | S10: & | T10: =+B20 -> \\ \\ \hline | U10: \\
B11: Petro | C11: & | E11: & | G11: & | I11: & | J11: =+J21-J18-J19 -> 156.7444888 | K11: & | L11: =+(L21-L18-L19)*AgSAM!F20/SUM(AgSAM!F20:F22) -> 2.174505662 | M11: & | O11: & | Q11: & | S11: & | U11: & | V11: =SUM(D11:T11) -> 158.9189944 | W11: \\
B12: Otros | C12: & | E12: & | G12: & | I12: & | K12: & | L12: =+L21-L11-L18-L19-L13 -> 117.2875696 | M12: & | O12: & | Q12: & | S12: & | U12: & | V12: =SUM(D12:T12) -> 117.2875696 | W12: \\
B13: Margenes | C13: & | E13: & | G13: & | I13: & | K13: & | L13: =+AgSAM!F22/AgSAM!F31*L21 -> 15.52944157 | M13: & | O13: & | Q13: & | S13: & | U13: & | V13: =+L13 -> 15.52944157 | W13: \\
B14: Petro | C14: & | D14: =+AgSAM!B23/AgSAM!B$31*D$21 -> 62.34266679 | E14: & | F14: =+AgSAM!C23/AgSAM!C$31*SAM6T!F$21 -> 0.2640694741 | G14: & | I14: & | K14: & | M14: & | O14: & | Q14: & | S14: & | T14: =+cnT!G13*AgSAM!L23/(AgSAM!L23+AgSAM!L24) -> 104.5898879 | U14: & | V14: =SUM(D14:T14) -> 167.1966241 | W14: \\
B15: Otros | C15: & | D15: =+AgSAM!B24/AgSAM!B$31*D$21 -> 6.841469079 | E15: & | F15: =+AgSAM!C24/AgSAM!C$31*SAM6T!F$21 -> 42.73625461 | G15: & | H15: =+H21 -> 15.52944157 | I15: & | K15: & | M15: & | N15: =+SAM2T!F8 -> 69.98229386 | O15: & | P15: =+SAM2T!H8 -> 20.52146889 | Q15: & | R15: =+cnT!G12-wg -> 21.76970961 | S15: & | T15: =cnT!G13-SAM6T!T14 -> 6.555848299 | U15: & | V15: =SUM(D15:T15) -> 183.9364859 | W15: \\
B16: Hogares | C16: & | D16: =+D21-D18-D15-D14 -> 87.17353013 | E16: & | F16: =+F21-F18-F15-F14 -> 73.29078593 | G16: & | I16: & | K16: & | M16: & | O16: & | Q16: & | R16: =wg -> 5 | S16: & | U16: & | V16: =SUM(D16:T16) -> 165.4643161 | W16: \\
B17: Ahorro | C17: & | E17: & | G17: & | I17: & | K17: & | M17: & | N17: =+N21-N15-N18 -> 95.48202221 | O17: & | Q17: & | R17: =R21-R16-R15 -> -21.85235576 | S17: & | T17: =+T21-T15-T14 -> -53.10819756 | U17: & | V17: =SUM(D17:T17) -> 20.52146889 | W17: \\
B18: Gob | C18: & | D18: =+AgSAM!B28/(AgSAM!B28+AgSAM!C28+AgSAM!F28)*V18 -> 2.561328413 | E18: & | F18: =+AgSAM!C28/(AgSAM!B28+AgSAM!C28+AgSAM!F28)*V18 -> 0.99645963 | G18: & | I18: & | J18: =+V18-L18-F18-D18 -> 0 | K18: & | L18: =+AgSAM!F28/(AgSAM!B28+AgSAM!C28+AgSAM!F28)*V18 -> 1.359565807 | M18: & | O18: & | Q18: & | S18: & | U18: & | V18: =+SAM5T!T14 -> 4.91735385 | W18: \\
B19: Import | C19: & | E19: & | G19: & | I19: & | J19: =+V19*AgSAM!E30/(AgSAM!E30+AgSAM!F30) -> 10.45213537 | K19: & | L19: =+V19-J19 -> 47.58540322 | M19: & | O19: & | Q19: & | S19: & | U19: & | V19: =-cnT!G14 -> 58.03753859 | W19: \\
B20: \\ \\ \hline | W20: \\
B21: Total | C21: & | D21: =+V11 -> 158.9189944 | E21: & | F21: =+V12 -> 117.2875696 | G21: & | H21: =+V13 -> 15.52944157 | I21: & | J21: =+V14 -> 167.1966241 | K21: & | L21: =+V15 -> 183.9364859 | M21: & | N21: =+V16 -> 165.4643161 | O21: & | P21: =+P15 -> 20.52146889 | Q21: & | R21: =+V18 -> 4.91735385 | S21: & | T21: =+V19 -> 58.03753859 | U21: & | V21: =IF(ROUND(P21,6)=ROUND(V17,6),"",V17-P21) ->  | W21: \\
B22: \\
B23: \multicolumn{9}{l}{\textit{Fuente}: C\'{a}lculos de los autores. \citet{INEGI13}-ver cuadro \ref{cnT}. Nota: 1. 2003.} \\\end{tabular}
B24: \end{table}
B25: \end{center}
B26: \end{landscape}
B29: Wg | C29: & | D29: 5
B30: PIB (gasto) | C30: & | D30: =+SUM(N14:T15)-V19+wg -> 170.3816699
B31: VA | C31: & | D31: =+D16+F16+D18+F18+L18+R16 -> 170.3816699

Sheet SAM7T
B1: \begin{landscape}
B2: \begin{center}
B3: \begin{table}
B4: [tbp] \centering \caption{Clases sociales y transferencias$^{1}$}\label{SAM7T}
A5: =COUNTIF(B7:AS7,"&") -> 13 | B5: \begin{tabular}{lccccccccccccc}
B6: \\ \hline \\
A7: , | C7: & | D7: Petro | E7: & | F7: Otros | G7: & | H7: Marg | I7: & | J7: Petro | K7: & | L7: Otros | M7: & | N7: MdO | O7: & | P7: Cap | Q7: & | R7: Pob | S7: & | T7: Ricos | U7: & | V7: Inv | W7: & | X7: Gob | Y7: & | Z7: Expt | AA7: & | AB7: =+B21 -> Total | AC7: \\
B8: Petro | C8: & | E8: & | G8: & | I8: & | J8: =+J21-J18-J19 -> 156.7444888 | K8: & | L8: =+(L21-L18-L19)*AgSAM!F20/SUM(AgSAM!F20:F22) -> 2.174505662 | M8: & | O8: & | Q8: & | S8: & | U8: & | W8: & | Y8: & | AA8: & | AB8: =SUM(D8:AA8) -> 158.9189944 | AC8: \\
B9: Otros | C9: & | E9: & | G9: & | I9: & | K9: & | L9: =+L21-L8-L18-L19-L10 -> 117.2875696 | M9: & | O9: & | Q9: & | S9: & | U9: & | W9: & | Y9: & | AA9: & | AB9: 117.2875696 | AC9: \\
B10: Margenes | C10: & | E10: & | G10: & | I10: & | K10: & | L10: =+AgSAM!F22/AgSAM!F31*L21 -> 15.52944157 | M10: & | O10: & | Q10: & | S10: & | U10: & | W10: & | Y10: & | AA10: & | AB10: 15.52944157 | AC10: \\
B11: Petro | C11: & | D11: =+AgSAM!B23/AgSAM!B$31*D$21 -> 62.34266679 | E11: & | F11: =+AgSAM!C23/AgSAM!C$31*SAM7T!F$21 -> 0.2640694741 | G11: & | I11: & | K11: & | M11: & | O11: & | Q11: & | S11: & | U11: & | W11: & | Y11: & | Z11: =+cnT!G13*AgSAM!L23/(AgSAM!L23+AgSAM!L24) -> 104.5898879 | AA11: & | AB11: 167.1966241 | AC11: \\
B12: Otros | C12: & | D12: =+AgSAM!B24/AgSAM!B$31*D$21 -> 6.841469079 | E12: & | F12: =+AgSAM!C24/AgSAM!C$31*SAM7T!F$21 -> 42.73625461 | G12: & | H12: =+H21 -> 15.52944157 | I12: & | K12: & | M12: & | O12: & | Q12: & | R12: =+cnT!G10*SUM(SAM!M8:P11)/SUM(SAM!M8:Q11) -> 32.3978181 | S12: & | T12: =+cnT!G10-R12 -> 37.58447576 | U12: & | V12: =cnT!G11 -> 20.52146889 | W12: & | X12: =+cnT!G12-wg -> 21.76970961 | Y12: & | Z12: =(cnT!G13-SAM7T!Z11) -> 6.555848299 | AA12: & | AB12: 183.9364859 | AC12: \\
B13: Mano de obra | C13: & | D13: =+AgSAM!B$25/AgSAM!B$31*D$21 -> 3.061214904 | E13: & | F13: =+AgSAM!C$25/AgSAM!C$31*F$21 -> 33.87531671 | G13: & | I13: & | K13: & | M13: & | O13: & | Q13: & | S13: & | U13: & | W13: & | X13: 5 | Y13: & | AA13: & | AB13: 41.93653161 | AC13: \\
B14: Capital | C14: & | D14: =+D21-D18-D13-D12-D11 -> 84.11231523 | E14: & | F14: =+F21-F18-F13-F12-F11 -> 39.41546923 | G14: & | I14: & | K14: & | M14: & | O14: & | Q14: & | S14: & | U14: & | W14: & | X14: 0.4 | Y14: & | AA14: & | AB14: 123.9277845 | AC14: \\
B15: Pobres | C15: & | E15: & | G15: & | I15: & | K15: & | M15: & | N15: =+SUM(SAM!K14:K17)/SUM(SAM!K14:K18)*SAM7T!AB13 -> 15.9514838 | O15: & | P15: =+(P21-P19)*SUM(SAM!L14:L17)/SUM(SAM!L14:L18) -> 41.89090777 | Q15: & | S15: & | U15: & | W15: & | X15: =SUM(SAM!R14:R17)/scale -> 5507.481999 | Y15: & | Z15: =+SUM(SAM!W14:X17)/scale -> 7079.90802 | AA15: & | AB15: 12645.23241 | AC15: \\
B16: Ricos | C16: & | E16: & | G16: & | I16: & | K16: & | M16: & | N16: =+N21-N15 -> 25.98504781 | O16: & | P16: =+P21-P15-P19 -> 82.03687669 | Q16: & | S16: & | U16: & | W16: & | X16: =SAM!R18/scale -> 534.784484 | Y16: & | Z16: =+SUM(SAM!W18:X18)/scale -> 9426.574263 | AA16: & | AB16: 10069.38067 | AC16: \\
B17: Ahorro | C17: & | E17: & | G17: & | I17: & | K17: & | M17: & | O17: & | Q17: & | R17: =+R21-R12 -> 12612.83459 | S17: & | T17: =+T21-T12-T18 -> 10031.7962 | U17: & | W17: & | X17: =X21-X13-X12-X16-X15-X19-X14 -> -6064.518839 | Y17: & | Z17: =+Z21-Z12-Z11-Z16-Z15-Z18 -> -16559.59048 | AA17: & | AB17: 20.52146889 | AC17: \\
B18: Gob | C18: & | D18: =+AgSAM!B28/(AgSAM!B28+AgSAM!C28+AgSAM!F28)*$AB18 -> 2.561328413 | E18: & | F18: =+AgSAM!C28/(AgSAM!B28+AgSAM!C28+AgSAM!F28)*AB18 -> 0.99645963 | G18: & | I18: & | J18: =+AgSAM!E28/AgSAM!E31*SAM7T!J21 -> 0 | K18: & | L18: =+AgSAM!F28/(AgSAM!B28+AgSAM!C28+AgSAM!F28)*AB18 -> 1.359565807 | M18: & | O18: & | Q18: & | S18: & | U18: & | W18: & | Y18: & | AA18: & | AB18: =+SAM6T!A4+SAM6T!V18 -> 4.91735385 | AC18: \\
B19: Import | C19: & | E19: & | G19: & | I19: & | J19: =+AB19*AgSAM!E30/(AgSAM!E30+AgSAM!F30) -> 10.45213537 | K19: & | L19: =+AB19-J19 -> 47.58540322 | M19: & | O19: & | P19: 0 | Q19: & | S19: & | U19: & | W19: & | Y19: & | AA19: & | AB19: =-cnT!G14 -> 58.03753859 | AC19: \\
B20: \\ \\ \hline | AC20: \\
B21: Total | C21: & | D21: =+AB8 -> 158.9189944 | E21: & | F21: =+AB9 -> 117.2875696 | G21: & | H21: =+AB10 -> 15.52944157 | I21: & | J21: =+AB11 -> 167.1966241 | K21: & | L21: =+AB12 -> 183.9364859 | M21: & | N21: =+AB13 -> 41.93653161 | O21: & | P21: =+AB14 -> 123.9277845 | Q21: & | R21: =+AB15 -> 12645.23241 | S21: & | T21: =+AB16 -> 10069.38067 | U21: & | V21: =+V12 -> 20.52146889 | W21: & | X21: =+AB18 -> 4.91735385 | Y21: & | Z21: =+AB19 -> 58.03753859 | AA21: & | AB21: =IF(ROUND(V21,6)=ROUND(AB17,6),"",AB17-SUM(V21:V21)) ->  | AC21: \\
B22: \\ | E22: \\
B23: \multicolumn{8}{l}{\textit{Fuente}: C\'{a}lculos de los autores. \citet{INEGI13}-ver cuadro \ref{cnT}. Nota: 1. 2003.} \\
B24: \end{tabular}
B25: \end{table}
B26: \end{center}
B27: \end{landscape}
R28: =+R21+T21 -> 22714.61308
R29: =+R17+T17 -> 22644.63079 | T29: =+R29/SUM(R21:T21) -> 0.9969190629
D31: =D21-SUM(D8:D19) -> 0 | F31: =F21-SUM(F8:F19) -> 0 | H31: =H21-SUM(H8:H19) -> 0 | J31: =J21-SUM(J8:J19) -> 0 | L31: =L21-SUM(L8:L19) -> 0 | N31: =N21-SUM(N8:N19) -> 0 | P31: =P21-SUM(P8:P19) -> 0 | R31: =R21-SUM(R8:R19) -> 0 | T31: =T21-SUM(T8:T19) -> 0 | V31: =V21-SUM(V8:V19) -> 0 | X31: =X21-SUM(X8:X19) -> -6.172840017e-13 | Z31: =Z21-SUM(Z8:Z19) -> 1.172395514e-12
B32: Wg | C32: & | D32: 5
B33: PIB (gasto) | C33: & | D33: =+SUM(R11:Z12)-AB19+SUM(X13:Y13) -> 170.3816699 | H33: Gini | J33: =(0.5 - 1/2*(0.8)*(J35) - 1/2*(0.2)*(J36))/0.5 -> 0.465979807 | Z33: =+AgSAM!M28/SAM7T!AB18 -> 7599.10072
B34: VA | C34: & | D34: =+SUM(D13:F18)+SUM(X13:Y13) -> 169.0221041
B35: VAT | C35: & | D35: =SUM(J18:L18) -> 1.359565807 | H35: pobres | J35: =1-J36 -> 0.5567003217
B36: PIB (VA) | C36: & | D36: =+D35+D34 -> 170.3816699 | H36: ricos | J36: =+AB16/(AB16+AB15) -> 0.4432996783
B37: Gob-F | D37: 0.12
C38: error | D38: =+D36-D33 -> 0
C39: error
D41: =0.5 - 1/2*(0.8)*(0.352) - 1/2*(0.2)*(0.648) -> 0.2944
D42: =+D41/0.5 -> 0.5888

Sheet SAM8T
B1: \begin{landscape}
B2: \begin{center}
B3: \begin{table}
B4: [tbp] \centering \caption{Con gobierno federal}\label{SAM8T}
A5: =COUNTIF(B7:AY7,"&") -> 16 | B5: \begin{tabular}{lcccccccccc}
B6: \\ \hline \\
C7: & | D7: =+SAM7T!D7 -> Petro | E7: & | F7: Otros | G7: & | H7: Marg | I7: & | J7: Petro | K7: & | L7: Otros | M7: & | N7: MdO | O7: & | P7: Cap | Q7: & | R7: =+SAM7T!R7 -> Pob | S7: & | T7: Ricos | U7: & | V7: Inv-p | W7: & | X7: Inv-GT | Y7: & | Z7: Inv-F | AA7: & | AB7: Gob-T | AC7: & | AD7: Gob-F | AE7: & | AF7: Expt | AG7: & | AH7: =+B22 -> Total | AI7: \\
B8: Petro | C8: & | E8: & | G8: & | I8: & | J8: =+J22-J18-J20 -> 156.7444888 | K8: & | L8: =+(L22-L18-L20)*AgSAM!F20/SUM(AgSAM!F20:F22) -> 2.174505662 | M8: & | O8: & | Q8: & | S8: & | U8: & | W8: & | Y8: & | AA8: & | AC8: & | AE8: & | AG8: & | AH8: =SUM(D8:AG8) -> 158.9189944 | AI8: \\
B9: Otros | C9: & | E9: & | G9: & | I9: & | K9: & | L9: =+L22-L8-L18-L20-L10 -> 117.2875696 | M9: & | O9: & | Q9: & | S9: & | U9: & | W9: & | Y9: & | AA9: & | AC9: & | AE9: & | AG9: & | AH9: 117.2875696 | AI9: \\
B10: Margenes | C10: & | E10: & | G10: & | I10: & | K10: & | L10: =+AgSAM!F22/AgSAM!F31*L22 -> 15.52944157 | M10: & | O10: & | Q10: & | S10: & | U10: & | W10: & | Y10: & | AA10: & | AC10: & | AE10: & | AG10: & | AH10: 15.52944157 | AI10: \\
B11: Petro | C11: & | D11: =+AgSAM!B23/AgSAM!B$31*D$22 -> 62.34266679 | E11: & | F11: =+AgSAM!C23/AgSAM!C$31*SAM8T!F$22 -> 0.2640694741 | G11: & | I11: & | K11: & | M11: & | O11: & | Q11: & | S11: & | U11: & | W11: & | Y11: & | AA11: & | AC11: & | AE11: & | AF11: =+cnT!G13*AgSAM!L23/(AgSAM!L23+AgSAM!L24) -> 104.5898879 | AG11: & | AH11: 167.1966241 | AI11: \\
B12: Otros | C12: & | D12: =+AgSAM!B24/AgSAM!B$31*D$22 -> 6.841469079 | E12: & | F12: =+AgSAM!C24/AgSAM!C$31*SAM8T!F$22 -> 42.73625461 | G12: & | H12: =+H22 -> 15.52944157 | I12: & | K12: & | M12: & | O12: & | Q12: & | R12: =+cnT!G10*SUM(SAM!M8:P11)/SUM(SAM!M8:Q11) -> 32.3978181 | S12: & | T12: =+cnT!G10-R12 -> 37.58447576 | U12: & | V12: =0.8*cnT!G11 -> 16.41717511 | W12: & | X12: =0.12*cnT!G11 -> 2.462576266 | Y12: & | Z12: =0.08*cnT!G11 -> 1.641717511 | AA12: & | AB12: =+cnT!G12-wg -> 21.76970961 | AC12: & | AD12: =(cnT!G13-SAM8T!AF11)*D33 -> 0.7867017959 | AE12: & | AF12: =(cnT!G13-SAM8T!AF11)*(1-D33) -> 5.769146503 | AG12: & | AH12: 183.9364859 | AI12: \\
B13: Mano de obra | C13: & | D13: =+AgSAM!B$25/AgSAM!B$31*D$22 -> 3.061214904 | E13: & | F13: =+AgSAM!C$25/AgSAM!C$31*F$22 -> 33.87531671 | G13: & | I13: & | K13: & | M13: & | O13: & | Q13: & | S13: & | U13: & | W13: & | Y13: & | AA13: & | AB13: 3 | AC13: & | AD13: 2 | AE13: & | AG13: & | AH13: 41.93653161 | AI13: \\
B14: Capital | C14: & | D14: =+D22-D18-D13-D12-D11-D19 -> 87.11231523 | E14: & | F14: =+F22-F18-F13-F12-F11-F19 -> 40.41546923 | G14: & | I14: & | K14: & | M14: & | O14: & | Q14: & | S14: & | U14: & | W14: & | Y14: & | AA14: & | AB14: 0.4 | AC14: & | AE14: & | AG14: & | AH14: 127.9277845 | AI14: \\
B15: Pobres | C15: & | E15: & | G15: & | I15: & | K15: & | M15: & | N15: =+SUM(SAM!K14:K17)/SUM(SAM!K14:K18)*SAM8T!AH13 -> 15.9514838 | O15: & | P15: =+P22*SUM(SAM!L14:L17)/SUM(SAM!L14:L18) -> 43.24301482 | Q15: & | S15: & | U15: & | W15: & | Y15: & | AA15: & | AB15: =SUM(SAM!R14:R17)/scale*H40 -> 3304.4892 | AC15: & | AD15: =SUM(SAM!R14:R17)/scale*H41 -> 2202.9928 | AE15: & | AF15: =+SUM(SAM!W14:X17)/scale -> 7079.90802 | AG15: & | AH15: 12646.58452 | AI15: \\
B16: Ricos | C16: & | E16: & | G16: & | I16: & | K16: & | M16: & | N16: =+N22-N15 -> 25.98504781 | O16: & | P16: =+P22-P15 -> 84.68476964 | Q16: & | S16: & | U16: & | W16: & | Y16: & | AA16: & | AB16: =SAM!R18/scale*H40 -> 320.8706904 | AC16: & | AD16: =SAM!R18/scale*H41 -> 213.9137936 | AE16: & | AF16: =+SUM(SAM!W18:X18)/scale -> 9426.574263 | AG16: & | AH16: 10072.02856 | AI16: \\
B17: Ahorro | C17: & | E17: & | G17: & | I17: & | K17: & | M17: & | O17: & | Q17: & | R17: =+R22-R12 -> 12614.1867 | S17: & | T17: =+T22-T12-T18 -> 10034.44409 | U17: & | W17: & | Y17: & | AA17: & | AB17: =AB22-AB13-AB12-AB19-AB16-AB15-AB20-AB14 -> -3637.008526 | AC17: & | AD17: =+AD22-AD18-AD13-AD12-AD15-AD16 -> -2432.497015 | AE17: & | AF17: =+AF22-AF12-AF11-AF16-AF15-AF18 -> -16558.60378 | AG17: & | AH17: 20.52146889 | AI17: \\
B18: Gob-T | C18: & | D18: =+SAM7T!D18 -> 2.561328413 | E18: & | F18: =+SAM7T!F18 -> 0.99645963 | G18: & | I18: & | J18: =+AgSAM!E28/AgSAM!E31*SAM8T!J22 -> 0 | K18: & | L18: =+SAM7T!L18 -> 1.359565807 | M18: & | O18: & | Q18: & | S18: & | U18: & | W18: & | Y18: & | AA18: & | AC18: & | AD18: 12 | AE18: & | AF18: -0.2 | AG18: & | AH18: 16.71735385 | AI18: \\
B19: Gob-F | C19: & | D19: -3 | E19: & | F19: -1 | G19: & | I19: & | K19: & | M19: & | O19: & | Q19: & | S19: & | U19: & | W19: & | Y19: & | AA19: & | AB19: =SUM(D18:Q18)*(1-H48) -> 3.196280002 | AC19: & | AE19: & | AG19: & | AH19: -0.8037199976 | AI19: \\
B20: Import | C20: & | E20: & | G20: & | I20: & | J20: =+AH20*AgSAM!E30/(AgSAM!E30+AgSAM!F30) -> 10.45213537 | K20: & | L20: =+AH20-J20 -> 47.58540322 | M20: & | O20: & | Q20: & | S20: & | U20: & | W20: & | Y20: & | AA20: & | AC20: & | AE20: & | AG20: & | AH20: =-cnT!G14 -> 58.03753859 | AI20: \\
B21: \\ \\ \hline | AI21: \\
B22: Total | C22: & | D22: =+AH8 -> 158.9189944 | E22: & | F22: =+AH9 -> 117.2875696 | G22: & | H22: =+AH10 -> 15.52944157 | I22: & | J22: =+AH11 -> 167.1966241 | K22: & | L22: =+AH12 -> 183.9364859 | M22: & | N22: =+AH13 -> 41.93653161 | O22: & | P22: =+AH14 -> 127.9277845 | Q22: & | R22: =+AH15 -> 12646.58452 | S22: & | T22: =+AH16 -> 10072.02856 | U22: & | V22: =+V12 -> 16.41717511 | W22: & | X22: =+X12 -> 2.462576266 | Y22: & | Z22: =+Z12 -> 1.641717511 | AA22: & | AB22: =+AH18 -> 16.71735385 | AC22: & | AD22: =+AH19 -> -0.8037199976 | AE22: & | AF22: =+AH20 -> 58.03753859 | AG22: & | AH22: =IF(ROUND(SUM(V22:Z22),6)=ROUND(AH17,6),"",AH17-SUM(V22:Z22)) ->  | AI22: \\
B23: \end{tabular}
B24: \end{table}
B25: \end{center}
B26: \end{landscape}
D27: =D22-SUM(D8:D20) -> 0 | F27: =F22-SUM(F8:F20) -> 0 | H27: =H22-SUM(H8:H20) -> 0 | J27: =J22-SUM(J8:J20) -> 0 | L27: =L22-SUM(L8:L20) -> 0 | N27: =N22-SUM(N8:N20) -> 0 | P27: =P22-SUM(P8:P20) -> 0 | R27: =R22-SUM(R8:R20) -> 0 | T27: =T22-SUM(T8:T20) -> 0 | V27: =V22-SUM(V8:V20) -> 0 | X27: =X22-SUM(X8:X20) -> 0 | AB27: =AB22-SUM(AB8:AB20) -> 4.654054919e-13 | AD27: =AD22-SUM(AD8:AD20) -> 9.90318938e-14 | AF27: =AF22-SUM(AF8:AF20) -> -3.190336884e-12
B28: Wg | C28: & | D28: 5
B29: PIB (gasto) | C29: & | D29: =+SUM(R11:AF12)-AH20+SUM(AB13:AD13) -> 170.3816699 | AF29: =+AgSAM!M28/SAM8T!AH18 -> 2235.250119
B30: VA | C30: & | D30: =+SUM(D13:F19)+SUM(AB13:AD13) -> 169.0221041
B31: VAT | C31: & | D31: =SUM(J18:L18) -> 1.359565807
B32: PIB (VA) | C32: & | D32: =+D31+D30 -> 170.3816699
B33: Gob-F | D33: 0.12
C34: error | D34: =+D32-D29 -> 0
C35: error | D35: =+D32-#REF! ->  | H35: share
D36: G | E36: = | F36: =+AB12 -> 21.76970961
D37: G* | E37: = | F37: =+AD12 -> 0.7867017959
D38: Ig | E38: = | F38: =+X12 -> 2.462576266
D39: Ig*= | E39: = | F39: =-AF18 -> 0.2
D40: Trh | E40: = | F40: =SUM(AB15:AB16) -> 3625.35989 | H40: 0.6
D41: Trh* | E41: = | F41: =SUM(AD15:AD16) -> 2416.906593 | H41: 0.4
D42: Tre | E42: = | F42: 0
D43: Tre* | E43: = | F43: =-SUM(D19:F19) -> 4
D44: Wg | E44: = | F44: =+AC44+AB13 -> 3
D45: Wg* | E45: = | F45: =+AE44+AD13 -> 2
D46: In | E46: = | F46: =+AB14 -> 0.4
D47: In* | E47: = | F47: =-AF18 -> 0.2
D48: T | E48: = | F48: =+SUM(D18:L18)-AB19 -> 1.721073847 | H48: 0.35
D49: Tr* | E49: = | F49: =+AD18 -> 12
D51: PSBR | E51: = | F51: =-AB17 -> 3637.008526

Sheet SAM8T (print)
B1: =+'SAM9T (3)'!B1 -> \begin{landscape}
B2: \begin{center}
B3: \begin{table}
B4: [tbp] \centering \caption{Con gobierno federal}\label{SAM8T}
B5: \begin{tabular}{lcccccccccc}
B6: \\ \hline \hline\\
A7: , | C7: & | D7: =+SAM7T!D7 -> Petro | E7: & | F7: Otros | G7: & | H7: Marg | I7: & | J7: Petro | K7: & | L7: Otros | M7: & | N7: MdO | O7: & | P7: Cap | Q7: & | R7: =+SAM7T!R7 -> Pob | S7: \\
B8: Petro | C8: & | E8: & | G8: & | I8: & | J8: =+SAM8T!J8 -> 156.7444888 | K8: & | L8: =+SAM8T!L8 -> 2.174505662 | M8: & | O8: & | Q8: & | S8: \\
B9: Otros | C9: & | E9: & | G9: & | I9: & | K9: & | L9: =+SAM8T!L9 -> 117.2875696 | M9: & | O9: & | Q9: & | S9: \\
B10: Margenes | C10: & | E10: & | G10: & | I10: & | K10: & | L10: =+SAM8T!L10 -> 15.52944157 | M10: & | O10: & | Q10: & | S10: \\
B11: Petro | C11: & | D11: =+SAM8T!D11 -> 62.34266679 | E11: & | F11: =+SAM8T!F11 -> 0.2640694741 | G11: & | I11: & | K11: & | M11: & | O11: & | Q11: & | S11: \\
B12: Otros | C12: & | D12: =+SAM8T!D12 -> 6.841469079 | E12: & | F12: =+SAM8T!F12 -> 42.73625461 | G12: & | H12: =+SAM8T!H12 -> 15.52944157 | I12: & | K12: & | M12: & | O12: & | Q12: & | R12: =+SAM8T!R12 -> 32.3978181 | S12: \\
B13: Mano de obra | C13: & | D13: =+SAM8T!D13 -> 3.061214904 | E13: & | F13: =+SAM8T!F13 -> 33.87531671 | G13: & | I13: & | K13: & | M13: & | O13: & | Q13: & | S13: \\
B14: Capital | C14: & | D14: =+SAM8T!D14 -> 87.11231523 | E14: & | F14: =+SAM8T!F14 -> 40.41546923 | G14: & | I14: & | K14: & | M14: & | O14: & | Q14: & | S14: \\
B15: Pobres | C15: & | E15: & | G15: & | I15: & | K15: & | M15: & | N15: =+SAM8T!N15 -> 15.9514838 | O15: & | P15: =+SAM8T!P15 -> 43.24301482 | Q15: & | S15: \\
B16: Ricos | C16: & | E16: & | G16: & | I16: & | K16: & | M16: & | N16: =+SAM8T!N16 -> 25.98504781 | O16: & | P16: =+SAM8T!P16 -> 84.68476964 | Q16: & | S16: \\
B17: Ahorro | C17: & | E17: & | G17: & | I17: & | K17: & | M17: & | O17: & | Q17: & | R17: =+SAM8T!R17 -> 12614.1867 | S17: \\
B18: Gob-T | C18: & | D18: =+SAM8T!D18 -> 2.561328413 | E18: & | F18: =+SAM8T!F18 -> 0.99645963 | G18: & | I18: & | K18: & | L18: =+SAM8T!L18 -> 1.359565807 | M18: & | O18: & | Q18: & | S18: \\
B19: Gob-F | C19: & | D19: =+SAM8T!D19 -> -3 | E19: & | F19: =+SAM8T!F19 -> -1 | G19: & | I19: & | K19: & | M19: & | O19: & | Q19: & | S19: \\
B20: Import | C20: & | E20: & | G20: & | I20: & | J20: =+SAM8T!J20 -> 10.45213537 | K20: & | L20: =+SAM8T!L20 -> 47.58540322 | M20: & | O20: & | Q20: & | S20: \\
B21: \\ \\ \hline | S21: \\
B22: Total | C22: & | D22: =+SAM8T!D22 -> 158.9189944 | E22: =+SAM8T!E22 -> & | F22: =+SAM8T!F22 -> 117.2875696 | G22: =+SAM8T!G22 -> & | H22: =+SAM8T!H22 -> 15.52944157 | I22: =+SAM8T!I22 -> & | J22: =+SAM8T!J22 -> 167.1966241 | K22: =+SAM8T!K22 -> & | L22: =+SAM8T!L22 -> 183.9364859 | M22: =+SAM8T!M22 -> & | N22: =+SAM8T!N22 -> 41.93653161 | O22: =+SAM8T!O22 -> & | P22: =+SAM8T!P22 -> 127.9277845 | Q22: =+SAM8T!Q22 -> & | R22: =+SAM8T!R22 -> 12646.58452 | S22: \\
B23: \end{tabular}
B24: \end{table}
B25: \end{center}
B26: \end{landscape}
B28: \begin{landscape}
B29: \begin{center}
B30: \begin{table}[tbp] \centering \caption{continuaci\'{o}n}\label{SAM8cT}
C31: \begin{tabular}{lcccccccccc}
C32: \\ \hline\hline \\
C33: & | E33: & | G33: & | H33: Ricos | I33: & | J33: Inv-p | K33: & | L33: Inv-GT | M33: & | N33: Inv-F | O33: & | P33: Gob-T | Q33: & | R33: Gob-F | S33: & | T33: Expt | U33: & | V33: =+B22 -> Total | W33: \\
B34: Petro | C34: & | E34: & | G34: & | I34: & | K34: & | M34: & | O34: & | Q34: & | S34: & | U34: & | V34: =+SAM8T!AH8 -> 158.9189944 | W34: \\
B35: Otros | C35: & | E35: & | G35: & | I35: & | K35: & | M35: & | O35: & | Q35: & | S35: & | U35: & | V35: =+SAM8T!AH9 -> 117.2875696 | W35: \\
B36: Margenes | C36: & | E36: & | G36: & | I36: & | K36: & | M36: & | O36: & | Q36: & | S36: & | U36: & | V36: =+SAM8T!AH10 -> 15.52944157 | W36: \\
B37: Petro | C37: & | E37: & | G37: & | I37: & | K37: & | M37: & | O37: & | Q37: & | S37: & | T37: =+SAM8T!AF11 -> 104.5898879 | U37: & | V37: =+SAM8T!AH11 -> 167.1966241 | W37: \\
B38: Otros | C38: & | E38: & | G38: & | H38: =+SAM8T!T12 -> 37.58447576 | I38: & | J38: =+SAM8T!V12 -> 16.41717511 | K38: & | L38: =+SAM8T!X12 -> 2.462576266 | M38: & | N38: =+SAM8T!Z12 -> 1.641717511 | O38: & | P38: =+SAM8T!AB12 -> 21.76970961 | Q38: & | R38: =+SAM8T!AD12 -> 0.7867017959 | S38: & | T38: =+SAM8T!AF12 -> 5.769146503 | U38: & | V38: =+SAM8T!AH12 -> 183.9364859 | W38: \\
B39: Mano de obra | C39: & | E39: & | G39: & | I39: & | K39: & | M39: & | O39: & | P39: =+SAM8T!AB13 -> 3 | Q39: & | R39: =+SAM8T!AD13 -> 2 | S39: & | U39: & | V39: =+SAM8T!AH13 -> 41.93653161 | W39: \\
B40: Capital | C40: & | E40: & | G40: & | I40: & | K40: & | M40: & | O40: & | P40: =+SAM8T!AB14 -> 0.4 | Q40: & | S40: & | U40: & | V40: =+SAM8T!AH14 -> 127.9277845 | W40: \\
B41: Pobres | C41: & | E41: & | G41: & | I41: & | K41: & | M41: & | O41: & | P41: =+SAM8T!AB15 -> 3304.4892 | Q41: & | R41: =+SAM8T!AD15 -> 2202.9928 | S41: & | T41: =+SAM8T!AF15 -> 7079.90802 | U41: & | V41: =+SAM8T!AH15 -> 12646.58452 | W41: \\
B42: Ricos | C42: & | E42: & | G42: & | I42: & | K42: & | M42: & | O42: & | P42: =+SAM8T!AB16 -> 320.8706904 | Q42: & | R42: =+SAM8T!AD16 -> 213.9137936 | S42: & | T42: =+SAM8T!AF16 -> 9426.574263 | U42: & | V42: =+SAM8T!AH16 -> 10072.02856 | W42: \\
B43: Ahorro | C43: & | E43: & | G43: & | H43: =+SAM8T!T17 -> 10034.44409 | I43: & | K43: & | M43: & | O43: & | P43: =+SAM8T!AB17 -> -3637.008526 | Q43: & | R43: =+SAM8T!AD17 -> -2432.497015 | S43: & | T43: =+SAM8T!AF17 -> -16558.60378 | U43: & | V43: =+SAM8T!AH17 -> 20.52146889 | W43: \\
B44: Gob-T | C44: & | E44: & | G44: & | I44: & | K44: & | M44: & | O44: & | Q44: & | R44: =+SAM8T!AD18 -> 12 | S44: & | U44: & | V44: =+SAM8T!AH18 -> 16.71735385 | W44: \\
B45: Gob-F | C45: & | E45: & | G45: & | I45: & | K45: & | M45: & | O45: & | Q45: & | S45: & | U45: & | V45: =+SAM8T!AH19 -> -0.8037199976 | W45: \\
B46: Import | C46: & | E46: & | G46: & | I46: & | K46: & | M46: & | O46: & | Q46: & | S46: & | U46: & | V46: =+SAM8T!AH20 -> 58.03753859 | W46: \\
B47: =+B22 -> Total | C47: & | E47: & | G47: & | H47: =+SAM8T!T22 -> 10072.02856 | I47: & | J47: =+SAM8T!V22 -> 16.41717511 | K47: & | L47: =+SAM8T!X22 -> 2.462576266 | M47: =+SAM8T!Y22 -> & | N47: =+SAM8T!Z22 -> 1.641717511 | O47: =+SAM8T!AA22 -> & | P47: =+SAM8T!AB22 -> 16.71735385 | Q47: & | R47: =+SAM8T!AD22 -> -0.8037199976 | S47: =+SAM8T!AE22 -> & | T47: =+SAM8T!AF22 -> 58.03753859 | U47: =+SAM8T!AG22 -> & | V47: =+SAM8T!AH22 ->  | W47: \\
B48: \\ \\ \hline
B49: \multicolumn{11}{l}{\textit{Fuente}: C\'{a}lculos de los autores. \citet{INEGI13}-ver cuadro \ref{cnT}. Nota: 1. 2003.} \\
B50: \end{tabular}
B51: \end{table}
B52: \end{center}
B53: \end{landscape}

Sheet work
A1: 2003 Matriz en precios | B1: Mercancias/Produccion | H1: Empresas | M1: Factores | P1: Hogares | Z1: Demanda Final
A2: del productor | B2: AgPec | C2: Pet | E2: Industria | F2: Servicios | G2: Margen | H2: AgPec | I2: Petro | K2: Industria | L2: Servicios | M2: L | N2: K | P2: H1 | Q2: H2 | R2: H3 | S2: H4 | T2: H5 | V2: GOB_Tab | W2: INV_P | Y2: XRM | Z2: XRMEX | AA2: Total
A3: AgPec | H3: 534.0885 | I3: 0 | K3: 0 | L3: 0 | AA3: 534.0885
A4: Pet | H4: 0 | I4: 12514.7477 | K4: 1.5 | L4: 182.5651 | AA4: 12698.8128
A6: Industria | H6: 0 | I6: 0 | K6: 1053.7637 | L6: 4.0256 | AA6: 1057.7893
A7: Servicios | H7: 0 | I7: 0 | K7: 50.2056 | L7: 8304.1284 | AA7: 8354.334
A8: Margen | H8: 136.4216 | I8: 3.2316 | K8: 1159.911 | AA8: 1299.5642
A9: AgPec | B9: 28.5029 | C9: 0 | E9: 278.7205 | F9: 45.7592 | P9: 32.2789 | Q9: 43.0028 | R9: 44.3135 | S9: 53.1205 | T9: 61.7225 | W9: 14.171 | Z9: 182.7238 | AA9: 784.3156
A10: Pet | B10: 0.2557 | C10: 4981.644 | E10: 21.6717 | F10: 0.4662 | Y10: 2588.9227 | Z10: 5759.2936 | AA10: 13352.2539
A11: Industria | B11: 161.6223 | C11: 58.3818 | E11: 231.7952 | F11: 1534.1627 | P11: 176.5105 | Q11: 292.96 | R11: 418.0017 | S11: 576.6192 | T11: 1071.8569 | W11: 322.1774 | Y11: 7.0399 | Z11: 200.1125 | AA11: 5051.2401
A12: Servicios | B12: 11.3418 | C12: 488.3026 | E12: 90.9459 | F12: 1241.2662 | G12: 1299.5642 | P12: 106.5902 | Q12: 122.4585 | R12: 248.3433 | S12: 472.0459 | T12: 1866.0629 | V12: 2136.7202 | W12: 1301.6461 | Z12: 133.4023 | AA12: 9518.6901
A13: L | B13: 143.6504 | C13: 244.6139 | E13: 69.8025 | F13: 2659.2392 | AA13: 3117.306
A14: K | B14: 187.104 | C14: 6682.0201 | E14: 351.3551 | F14: 2793.6827 | AA14: 10014.1619
A16: H1 | M16: 63.3149 | N16: 277.6106 | P16: 14.1038 | V16: 12.3894 | Y16: 0.7699 | Z16: 2.3619 | AA16: 370.5505
A17: H2 | M17: 175.745 | N17: 591.3923 | Q17: 14.4217 | V17: 23.5947 | Y17: 2.3747 | Z17: 4.3 | AA17: 811.8284
A18: H3 | M18: 330.6596 | N18: 909.1959 | R18: 24.7345 | V18: 20.856 | Y18: 5.5186 | Z18: 27.27 | AA18: 1318.2346
A19: H4 | M19: 615.8397 | N19: 1606.7978 | S19: 15.6847 | V19: 12.1213 | Y19: 0.12 | Z19: 45.9208 | AA19: 2296.4843
A20: H5 | M20: 1931.7468 | N20: 6629.1653 | T20: 2.5418 | V20: 6.6974 | Y20: 7.2696 | Z20: 110.765 | AA20: 8688.1859
A22: GOB-Tab | B22: 1.6114 | C22: 243.8504 | E22: 13.4984 | F22: 79.7578 | H22: 0 | I22: 0 | K22: 67.576 | L22: 61.861 | AA22: 468.155
A23: GOB-FED
A24: Ahorros | B24: 0 | C24: 0 | E24: 0 | F24: 0 | H24: 0 | I24: 0 | K24: 0 | L24: 0 | M24: 0 | N24: 0 | P24: 41.0671 | Q24: 338.9854 | R24: 582.8416 | S24: 1179.014 | T24: 5686.0018 | V24: -1744.224 | Y24: -2603.7473 | Z24: -1841.9441 | AA24: 1637.9945
A26: Importaciones MRM | H26: 1.8551 | K26: 6.413 | AA26: 8.2681
A27: Importaciones MRMEX | H27: 111.9504 | I27: 834.2746 | K27: 2711.8708 | L27: 966.11 | AA27: 4624.2058
B28: 534.0885 | C28: 12698.8128 | E28: 1057.7893 | F28: 8354.334 | G28: 1299.5642 | H28: 784.3156 | I28: 13352.2539 | K28: 5051.2401 | L28: 9518.6901 | M28: 3117.306 | N28: 10014.1619 | P28: 370.5505 | Q28: 811.8284 | R28: 1318.2346 | S28: 2296.4843 | T28: 8688.1859 | V28: 468.155 | W28: 1637.9945 | Y28: 8.2681 | Z28: 4624.2058

Sheet datos
C6: =+(C34/C9)^(1/(COUNT(C10:C34)))-1 -> 0.07157508897 | D6: =+(D34/D9)^(1/(COUNT(D10:D34)))-1 -> 0.0598347603 | F6: =+(F34/F9)^(1/(COUNT(F10:F34)))-1 -> 0.06693402579 | G6: 0.01173085746 | H6: 0.06703636095 | I6: 0.07961173254 | J6: -0.01267197385 | K6: -0.000237526131 | L6: -0.01430044165 | M6: -0.01379123368
C7: Empleo | D7: Empleo | S7: calificado | W7: no califcado
C8: calificado | D8: no calificado | F8: =+[1]SAM!$A$13 -> 0 | G8: Petroleo | H8: Industria | I8: Servicios | J8: =+[1]SAM!$A$13 -> 0 | K8: Petroleo | L8: Industria | M8: Servicios | N8: =+[1]SAM!$A$13 -> 0 | O8: Petroleo | P8: Industria | Q8: Servicios | S8: =+[1]SAM!$A$13 -> 0 | T8: Petroleo | U8: Industria | V8: Servicios | W8: =+[1]SAM!$A$13 -> 0 | X8: Petroleo | Y8: Industria | Z8: Servicios | AA8: =+[1]SAM!$A$13 -> 0 | AB8: Petroleo | AC8: Industria | AD8: Servicios
A9: =[1]modelo!A9 -> 2003 | B9: =ws ->  | C9: =+[1]modelo!AT9/[1]modelo!EU9/[1]modelo!AT$9*100 -> 100 | D9: =+[1]modelo!AU9/[1]modelo!EV9/[1]modelo!AU$9*100 -> 100 | E9: =+[1]modelo!$Y$9*([1]modelo!$EM$9+[1]modelo!$EQ$9) -> 8244.919843 | F9: =+[1]modelo!Y9*([1]modelo!EM9+[1]modelo!EQ9) -> 8244.919843 | G9: =+[1]modelo!Z9*([1]modelo!EN9+[1]modelo!ER9) -> 78754.76153 | H9: =+[1]modelo!AA9*([1]modelo!EO9+[1]modelo!ES9) -> 52517.52247 | I9: =+[1]modelo!AB9*([1]modelo!EP9+[1]modelo!ET9) -> 111754.5686 | J9: =([1]modelo!EM9/([1]modelo!EM9+[1]modelo!EQ9))*100 -> 17.71831411 | K9: =([1]modelo!EN9/([1]modelo!EN9+[1]modelo!ER9))*100 -> 0.9837224561 | L9: =([1]modelo!EO9/([1]modelo!EO9+[1]modelo!ES9))*100 -> 4.116487716 | M9: =([1]modelo!EP9/([1]modelo!EP9+[1]modelo!ET9))*100 -> 8.184267366 | N9: =1-F9/([1]modelo!CS9+[1]modelo!CW9) -> 0.6533594245 | O9: =1-G9/([1]modelo!CT9+[1]modelo!CX9) -> -50.41781435 | P9: =1-H9/([1]modelo!CU9+[1]modelo!CY9) -> -65.44656306 | Q9: =1-I9/([1]modelo!CV9+[1]modelo!CZ9) -> -48.62152928 | S9: =+[1]modelo!EM9*[1]modelo!Y9/[1]modelo!CS9 -> 0.1023647767 | T9: =+[1]modelo!EN9*[1]modelo!Z9/[1]modelo!CT9 -> 0.5060894417 | U9: =+[1]modelo!EO9*[1]modelo!AA9/[1]modelo!CU9 -> 2.738729719 | V9: =+[1]modelo!EP9*[1]modelo!AB9/[1]modelo!CV9 -> 4.062782197 | W9: =+[1]modelo!EQ9*[1]modelo!Y9/[1]modelo!CW9 -> 0.7130542739 | X9: =+[1]modelo!ER9*[1]modelo!Z9/[1]modelo!CX9 -> 91741.21624 | Y9: =+[1]modelo!ES9*[1]modelo!AA9/[1]modelo!CY9 -> 50355.65207 | Z9: =+[1]modelo!ET9*[1]modelo!AB9/[1]modelo!CZ9 -> 114009.1963 | AA9: =(+[1]modelo!EM9+[1]modelo!EQ9)*[1]modelo!Y9/([1]modelo!CW9+[1]modelo!CS9) -> 0.3466405755 | AB9: =(+[1]modelo!EN9+[1]modelo!ER9)*[1]modelo!Z9/([1]modelo!CX9+[1]modelo!CT9) -> 51.41781435 | AC9: =(+[1]modelo!EO9+[1]modelo!ES9)*[1]modelo!AA9/([1]modelo!CY9+[1]modelo!CU9) -> 66.44656306 | AD9: =(+[1]modelo!EP9+[1]modelo!ET9)*[1]modelo!AB9/([1]modelo!CZ9+[1]modelo!CV9) -> 49.62152928
A10: =[1]modelo!A10 -> 2004 | C10: =+[1]modelo!AT10/[1]modelo!EU10/[1]modelo!AT$9*100 -> 106.5063214 | D10: =+[1]modelo!AU10/[1]modelo!EV10/[1]modelo!AU$9*100 -> 105.4713084 | F10: =+[1]modelo!Y10*([1]modelo!EM10+[1]modelo!EQ10) -> 8756.233712 | G10: =+[1]modelo!Z10*([1]modelo!EN10+[1]modelo!ER10) -> 80185.23883 | H10: =+[1]modelo!AA10*([1]modelo!EO10+[1]modelo!ES10) -> 55651.96572 | I10: =+[1]modelo!AB10*([1]modelo!EP10+[1]modelo!ET10) -> 119907.6276 | J10: =([1]modelo!EM10/([1]modelo!EM10+[1]modelo!EQ10))*100 -> 17.50014121 | K10: =([1]modelo!EN10/([1]modelo!EN10+[1]modelo!ER10))*100 -> 0.9835797523 | L10: =([1]modelo!EO10/([1]modelo!EO10+[1]modelo!ES10))*100 -> 4.066945162 | M10: =([1]modelo!EP10/([1]modelo!EP10+[1]modelo!ET10))*100 -> 8.089899021 | N10: =1-F10/([1]modelo!CS10+[1]modelo!CW10) -> 0.6425842812 | O10: =1-G10/([1]modelo!CT10+[1]modelo!CX10) -> -50.78959937 | P10: =1-H10/([1]modelo!CU10+[1]modelo!CY10) -> -69.47355746 | Q10: =1-I10/([1]modelo!CV10+[1]modelo!CZ10) -> -51.19146807 | S10: =+[1]modelo!EM10*[1]modelo!Y10/[1]modelo!CS10 -> 0.1044555867 | T10: =+[1]modelo!EN10*[1]modelo!Z10/[1]modelo!CT10 -> 0.5096929367 | U10: =+[1]modelo!EO10*[1]modelo!AA10/[1]modelo!CU10 -> 2.869754981 | V10: =+[1]modelo!EP10*[1]modelo!AB10/[1]modelo!CV10 -> 4.224046761 | W10: =+[1]modelo!EQ10*[1]modelo!Y10/[1]modelo!CW10 -> 0.7349681549 | X10: =+[1]modelo!ER10*[1]modelo!Z10/[1]modelo!CX10 -> 86856.48981 | Y10: =+[1]modelo!ES10*[1]modelo!AA10/[1]modelo!CY10 -> 53388.64899 | Z10: =+[1]modelo!ET10*[1]modelo!AB10/[1]modelo!CZ10 -> 111965.8717 | AA10: =(+[1]modelo!EM10+[1]modelo!EQ10)*[1]modelo!Y10/([1]modelo!CW10+[1]modelo!CS10) -> 0.3574157188 | AB10: =(+[1]modelo!EN10+[1]modelo!ER10)*[1]modelo!Z10/([1]modelo!CX10+[1]modelo!CT10) -> 51.78959937 | AC10: =(+[1]modelo!EO10+[1]modelo!ES10)*[1]modelo!AA10/([1]modelo!CY10+[1]modelo!CU10) -> 70.47355746 | AD10: =(+[1]modelo!EP10+[1]modelo!ET10)*[1]modelo!AB10/([1]modelo!CZ10+[1]modelo!CV10) -> 52.19146807
A11: =[1]modelo!A11 -> 2005 | C11: =+[1]modelo!AT11/[1]modelo!EU11/[1]modelo!AT$9*100 -> 112.9481702 | D11: =+[1]modelo!AU11/[1]modelo!EV11/[1]modelo!AU$9*100 -> 110.7290525 | F11: =+[1]modelo!Y11*([1]modelo!EM11+[1]modelo!EQ11) -> 9265.888583 | G11: =+[1]modelo!Z11*([1]modelo!EN11+[1]modelo!ER11) -> 81630.15413 | H11: =+[1]modelo!AA11*([1]modelo!EO11+[1]modelo!ES11) -> 58759.75232 | I11: =+[1]modelo!AB11*([1]modelo!EP11+[1]modelo!ET11) -> 127976.2933 | J11: =([1]modelo!EM11/([1]modelo!EM11+[1]modelo!EQ11))*100 -> 17.28409045 | K11: =([1]modelo!EN11/([1]modelo!EN11+[1]modelo!ER11))*100 -> 0.9834301057 | L11: =([1]modelo!EO11/([1]modelo!EO11+[1]modelo!ES11))*100 -> 4.01730354 | M11: =([1]modelo!EP11/([1]modelo!EP11+[1]modelo!ET11))*100 -> 7.995245217 | N11: =1-F11/([1]modelo!CS11+[1]modelo!CW11) -> 0.6451096352 | O11: =1-G11/([1]modelo!CT11+[1]modelo!CX11) -> -48.94964763 | P11: =1-H11/([1]modelo!CU11+[1]modelo!CY11) -> -72.10468102 | Q11: =1-I11/([1]modelo!CV11+[1]modelo!CZ11) -> -51.62961198 | S11: =+[1]modelo!EM11*[1]modelo!Y11/[1]modelo!CS11 -> 0.1026425722 | T11: =+[1]modelo!EN11*[1]modelo!Z11/[1]modelo!CT11 -> 0.4914936556 | U11: =+[1]modelo!EO11*[1]modelo!AA11/[1]modelo!CU11 -> 2.940495291 | V11: =+[1]modelo!EP11*[1]modelo!AB11/[1]modelo!CV11 -> 4.209578784 | W11: =+[1]modelo!EQ11*[1]modelo!Y11/[1]modelo!CW11 -> 0.7295065267 | X11: =+[1]modelo!ER11*[1]modelo!Z11/[1]modelo!CX11 -> 88787.44991 | Y11: =+[1]modelo!ES11*[1]modelo!AA11/[1]modelo!CY11 -> 56399.21395 | Z11: =+[1]modelo!ET11*[1]modelo!AB11/[1]modelo!CZ11 -> 119045.2436 | AA11: =(+[1]modelo!EM11+[1]modelo!EQ11)*[1]modelo!Y11/([1]modelo!CW11+[1]modelo!CS11) -> 0.3548903648 | AB11: =(+[1]modelo!EN11+[1]modelo!ER11)*[1]modelo!Z11/([1]modelo!CX11+[1]modelo!CT11) -> 49.94964763 | AC11: =(+[1]modelo!EO11+[1]modelo!ES11)*[1]modelo!AA11/([1]modelo!CY11+[1]modelo!CU11) -> 73.10468102 | AD11: =(+[1]modelo!EP11+[1]modelo!ET11)*[1]modelo!AB11/([1]modelo!CZ11+[1]modelo!CV11) -> 52.62961198
A12: =[1]modelo!A12 -> 2006 | C12: =+[1]modelo!AT12/[1]modelo!EU12/[1]modelo!AT$9*100 -> 119.9256391 | D12: =+[1]modelo!AU12/[1]modelo!EV12/[1]modelo!AU$9*100 -> 116.3809203 | F12: =+[1]modelo!Y12*([1]modelo!EM12+[1]modelo!EQ12) -> 9814.283882 | G12: =+[1]modelo!Z12*([1]modelo!EN12+[1]modelo!ER12) -> 83032.44356 | H12: =+[1]modelo!AA12*([1]modelo!EO12+[1]modelo!ES12) -> 62109.87762 | I12: =+[1]modelo!AB12*([1]modelo!EP12+[1]modelo!ET12) -> 136784.0993 | J12: =([1]modelo!EM12/([1]modelo!EM12+[1]modelo!EQ12))*100 -> 17.07015508 | K12: =([1]modelo!EN12/([1]modelo!EN12+[1]modelo!ER12))*100 -> 0.9832734506 | L12: =([1]modelo!EO12/([1]modelo!EO12+[1]modelo!ES12))*100 -> 3.967560462 | M12: =([1]modelo!EP12/([1]modelo!EP12+[1]modelo!ET12))*100 -> 7.900300665 | N12: =1-F12/([1]modelo!CS12+[1]modelo!CW12) -> 0.6477864144 | O12: =1-G12/([1]modelo!CT12+[1]modelo!CX12) -> -47.08445137 | P12: =1-H12/([1]modelo!CU12+[1]modelo!CY12) -> -74.98133641 | Q12: =1-I12/([1]modelo!CV12+[1]modelo!CZ12) -> -52.0880453 | S12: =+[1]modelo!EM12*[1]modelo!Y12/[1]modelo!CS12 -> 0.1008099207 | T12: =+[1]modelo!EN12*[1]modelo!Z12/[1]modelo!CT12 -> 0.4730501713 | U12: =+[1]modelo!EO12*[1]modelo!AA12/[1]modelo!CU12 -> 3.018297857 | V12: =+[1]modelo!EP12*[1]modelo!AB12/[1]modelo!CV12 -> 4.19573392 | W12: =+[1]modelo!EQ12*[1]modelo!Y12/[1]modelo!CW12 -> 0.7237185985 | X12: =+[1]modelo!ER12*[1]modelo!Z12/[1]modelo!CX12 -> 90624.71344 | Y12: =+[1]modelo!ES12*[1]modelo!AA12/[1]modelo!CY12 -> 59645.65102 | Z12: =+[1]modelo!ET12*[1]modelo!AB12/[1]modelo!CZ12 -> 126733.1204 | AA12: =(+[1]modelo!EM12+[1]modelo!EQ12)*[1]modelo!Y12/([1]modelo!CW12+[1]modelo!CS12) -> 0.3522135856 | AB12: =(+[1]modelo!EN12+[1]modelo!ER12)*[1]modelo!Z12/([1]modelo!CX12+[1]modelo!CT12) -> 48.08445137 | AC12: =(+[1]modelo!EO12+[1]modelo!ES12)*[1]modelo!AA12/([1]modelo!CY12+[1]modelo!CU12) -> 75.98133641 | AD12: =(+[1]modelo!EP12+[1]modelo!ET12)*[1]modelo!AB12/([1]modelo!CZ12+[1]modelo!CV12) -> 53.0880453
A13: =[1]modelo!A13 -> 2007 | C13: =+[1]modelo!AT13/[1]modelo!EU13/[1]modelo!AT$9*100 -> 127.4502243 | D13: =+[1]modelo!AU13/[1]modelo!EV13/[1]modelo!AU$9*100 -> 122.4209146 | F13: =+[1]modelo!Y13*([1]modelo!EM13+[1]modelo!EQ13) -> 10402.16127 | G13: =+[1]modelo!Z13*([1]modelo!EN13+[1]modelo!ER13) -> 84393.43794 | H13: =+[1]modelo!AA13*([1]modelo!EO13+[1]modelo!ES13) -> 65707.10777 | I13: =+[1]modelo!AB13*([1]modelo!EP13+[1]modelo!ET13) -> 146351.8434 | J13: =([1]modelo!EM13/([1]modelo!EM13+[1]modelo!EQ13))*100 -> 16.85832803 | K13: =([1]modelo!EN13/([1]modelo!EN13+[1]modelo!ER13))*100 -> 0.9831097195 | L13: =([1]modelo!EO13/([1]modelo!EO13+[1]modelo!ES13))*100 -> 3.917718666 | M13: =([1]modelo!EP13/([1]modelo!EP13+[1]modelo!ET13))*100 -> 7.805069853 | N13: =1-F13/([1]modelo!CS13+[1]modelo!CW13) -> 0.6505623764 | O13: =1-G13/([1]modelo!CT13+[1]modelo!CX13) -> -45.21571483 | P13: =1-H13/([1]modelo!CU13+[1]modelo!CY13) -> -78.10037631 | Q13: =1-I13/([1]modelo!CV13+[1]modelo!CZ13) -> -52.56048645 | S13: =+[1]modelo!EM13*[1]modelo!Y13/[1]modelo!CS13 -> 0.09897360324 | T13: =+[1]modelo!EN13*[1]modelo!Z13/[1]modelo!CT13 -> 0.4545763307 | U13: =+[1]modelo!EO13*[1]modelo!AA13/[1]modelo!CU13 -> 3.102665296 | V13: =+[1]modelo!EP13*[1]modelo!AB13/[1]modelo!CV13 -> 4.181962096 | W13: =+[1]modelo!EQ13*[1]modelo!Y13/[1]modelo!CW13 -> 0.7177127265 | X13: =+[1]modelo!ER13*[1]modelo!Z13/[1]modelo!CX13 -> 92393.41684 | Y13: =+[1]modelo!ES13*[1]modelo!AA13/[1]modelo!CY13 -> 63132.90968 | Z13: =+[1]modelo!ET13*[1]modelo!AB13/[1]modelo!CZ13 -> 135084.3241 | AA13: =(+[1]modelo!EM13+[1]modelo!EQ13)*[1]modelo!Y13/([1]modelo!CW13+[1]modelo!CS13) -> 0.3494376236 | AB13: =(+[1]modelo!EN13+[1]modelo!ER13)*[1]modelo!Z13/([1]modelo!CX13+[1]modelo!CT13) -> 46.21571483 | AC13: =(+[1]modelo!EO13+[1]modelo!ES13)*[1]modelo!AA13/([1]modelo!CY13+[1]modelo!CU13) -> 79.10037631 | AD13: =(+[1]modelo!EP13+[1]modelo!ET13)*[1]modelo!AB13/([1]modelo!CZ13+[1]modelo!CV13) -> 53.56048645
A14: =[1]modelo!A14 -> 2008 | C14: =+[1]modelo!AT14/[1]modelo!EU14/[1]modelo!AT$9*100 -> 135.5740513 | D14: =+[1]modelo!AU14/[1]modelo!EV14/[1]modelo!AU$9*100 -> 128.8826452 | F14: =+[1]modelo!Y14*([1]modelo!EM14+[1]modelo!EQ14) -> 11032.96008 | G14: =+[1]modelo!Z14*([1]modelo!EN14+[1]modelo!ER14) -> 85714.42809 | H14: =+[1]modelo!AA14*([1]modelo!EO14+[1]modelo!ES14) -> 69574.2861 | I14: =+[1]modelo!AB14*([1]modelo!EP14+[1]modelo!ET14) -> 156756.2851 | J14: =([1]modelo!EM14/([1]modelo!EM14+[1]modelo!EQ14))*100 -> 16.64860188 | K14: =([1]modelo!EN14/([1]modelo!EN14+[1]modelo!ER14))*100 -> 0.9829388435 | L14: =([1]modelo!EO14/([1]modelo!EO14+[1]modelo!ES14))*100 -> 3.867782098 | M14: =([1]modelo!EP14/([1]modelo!EP14+[1]modelo!ET14))*100 -> 7.709559602 | N14: =1-F14/([1]modelo!CS14+[1]modelo!CW14) -> 0.6534315168 | O14: =1-G14/([1]modelo!CT14+[1]modelo!CX14) -> -43.35039635 | P14: =1-H14/([1]modelo!CU14+[1]modelo!CY14) -> -81.48085697 | Q14: =1-I14/([1]modelo!CV14+[1]modelo!CZ14) -> -53.04670734 | S14: =+[1]modelo!EM14*[1]modelo!Y14/[1]modelo!CS14 -> 0.09713598982 | T14: =+[1]modelo!EN14*[1]modelo!Z14/[1]modelo!CT14 -> 0.4361408294 | U14: =+[1]modelo!EO14*[1]modelo!AA14/[1]modelo!CU14 -> 3.193966291 | V14: =+[1]modelo!EP14*[1]modelo!AB14/[1]modelo!CV14 -> 4.168205275 | W14: =+[1]modelo!EQ14*[1]modelo!Y14/[1]modelo!CW14 -> 0.7115021899 | X14: =+[1]modelo!ER14*[1]modelo!Z14/[1]modelo!CX14 -> 94091.28217 | Y14: =+[1]modelo!ES14*[1]modelo!AA14/[1]modelo!CY14 -> 66883.32714 | Z14: =+[1]modelo!ET14*[1]modelo!AB14/[1]modelo!CZ14 -> 144165.5949 | AA14: =(+[1]modelo!EM14+[1]modelo!EQ14)*[1]modelo!Y14/([1]modelo!CW14+[1]modelo!CS14) -> 0.3465684832 | AB14: =(+[1]modelo!EN14+[1]modelo!ER14)*[1]modelo!Z14/([1]modelo!CX14+[1]modelo!CT14) -> 44.35039635 | AC14: =(+[1]modelo!EO14+[1]modelo!ES14)*[1]modelo!AA14/([1]modelo!CY14+[1]modelo!CU14) -> 82.48085697 | AD14: =(+[1]modelo!EP14+[1]modelo!ET14)*[1]modelo!AB14/([1]modelo!CZ14+[1]modelo!CV14) -> 54.04670734
A15: =[1]modelo!A15 -> 2009 | C15: =+[1]modelo!AT15/[1]modelo!EU15/[1]modelo!AT$9*100 -> 144.3513813 | D15: =+[1]modelo!AU15/[1]modelo!EV15/[1]modelo!AU$9*100 -> 135.7997603 | F15: =+[1]modelo!Y15*([1]modelo!EM15+[1]modelo!EQ15) -> 11710.24752 | G15: =+[1]modelo!Z15*([1]modelo!EN15+[1]modelo!ER15) -> 86996.66603 | H15: =+[1]modelo!AA15*([1]modelo!EO15+[1]modelo!ES15) -> 73735.23447 | I15: =+[1]modelo!AB15*([1]modelo!EP15+[1]modelo!ET15) -> 168078.2884 | J15: =([1]modelo!EM15/([1]modelo!EM15+[1]modelo!EQ15))*100 -> 16.44096889 | K15: =([1]modelo!EN15/([1]modelo!EN15+[1]modelo!ER15))*100 -> 0.9827607514 | L15: =([1]modelo!EO15/([1]modelo!EO15+[1]modelo!ES15))*100 -> 3.817757018 | M15: =([1]modelo!EP15/([1]modelo!EP15+[1]modelo!ET15))*100 -> 7.613781184 | N15: =1-F15/([1]modelo!CS15+[1]modelo!CW15) -> 0.6563848548 | O15: =1-G15/([1]modelo!CT15+[1]modelo!CX15) -> -41.49565483 | P15: =1-H15/([1]modelo!CU15+[1]modelo!CY15) -> -85.14240335 | Q15: =1-I15/([1]modelo!CV15+[1]modelo!CZ15) -> -53.54602522 | S15: =+[1]modelo!EM15*[1]modelo!Y15/[1]modelo!CS15 -> 0.09530018966 | T15: =+[1]modelo!EN15*[1]modelo!Z15/[1]modelo!CT15 -> 0.4178142896 | U15: =+[1]modelo!EO15*[1]modelo!AA15/[1]modelo!CU15 -> 3.292554229 | V15: =+[1]modelo!EP15*[1]modelo!AB15/[1]modelo!CV15 -> 4.154373981 | W15: =+[1]modelo!EQ15*[1]modelo!Y15/[1]modelo!CW15 -> 0.7051063753 | X15: =+[1]modelo!ER15*[1]modelo!Z15/[1]modelo!CX15 -> 95718.02611 | Y15: =+[1]modelo!ES15*[1]modelo!AA15/[1]modelo!CY15 -> 70920.22658 | Z15: =+[1]modelo!ET15*[1]modelo!AB15/[1]modelo!CZ15 -> 154050.8615 | AA15: =(+[1]modelo!EM15+[1]modelo!EQ15)*[1]modelo!Y15/([1]modelo!CW15+[1]modelo!CS15) -> 0.3436151452 | AB15: =(+[1]modelo!EN15+[1]modelo!ER15)*[1]modelo!Z15/([1]modelo!CX15+[1]modelo!CT15) -> 42.49565483 | AC15: =(+[1]modelo!EO15+[1]modelo!ES15)*[1]modelo!AA15/([1]modelo!CY15+[1]modelo!CU15) -> 86.14240335 | AD15: =(+[1]modelo!EP15+[1]modelo!ET15)*[1]modelo!AB15/([1]modelo!CZ15+[1]modelo!CV15) -> 54.54602522
A16: =[1]modelo!A16 -> 2010 | C16: =+[1]modelo!AT16/[1]modelo!EU16/[1]modelo!AT$9*100 -> 153.8417054 | D16: =+[1]modelo!AU16/[1]modelo!EV16/[1]modelo!AU$9*100 -> 143.208835 | F16: =+[1]modelo!Y16*([1]modelo!EM16+[1]modelo!EQ16) -> 12437.92291 | G16: =+[1]modelo!Z16*([1]modelo!EN16+[1]modelo!ER16) -> 88241.36623 | H16: =+[1]modelo!AA16*([1]modelo!EO16+[1]modelo!ES16) -> 78216.13823 | I16: =+[1]modelo!AB16*([1]modelo!EP16+[1]modelo!ET16) -> 180407.1785 | J16: =([1]modelo!EM16/([1]modelo!EM16+[1]modelo!EQ16))*100 -> 16.235421 | K16: =([1]modelo!EN16/([1]modelo!EN16+[1]modelo!ER16))*100 -> 0.9825753707 | L16: =([1]modelo!EO16/([1]modelo!EO16+[1]modelo!ES16))*100 -> 3.76765185 | M16: =([1]modelo!EP16/([1]modelo!EP16+[1]modelo!ET16))*100 -> 7.517750077 | N16: =1-F16/([1]modelo!CS16+[1]modelo!CW16) -> 0.6594135605 | O16: =1-G16/([1]modelo!CT16+[1]modelo!CX16) -> -39.65794971 | P16: =1-H16/([1]modelo!CU16+[1]modelo!CY16) -> -89.10682073 | Q16: =1-I16/([1]modelo!CV16+[1]modelo!CZ16) -> -54.05771267 | S16: =+[1]modelo!EM16*[1]modelo!Y16/[1]modelo!CS16 -> 0.09346915111 | T16: =+[1]modelo!EN16*[1]modelo!Z16/[1]modelo!CT16 -> 0.3996604072 | U16: =+[1]modelo!EO16*[1]modelo!AA16/[1]modelo!CU16 -> 3.398826825 | V16: =+[1]modelo!EP16*[1]modelo!AB16/[1]modelo!CV16 -> 4.140380325 | W16: =+[1]modelo!EQ16*[1]modelo!Y16/[1]modelo!CW16 -> 0.6985443436 | X16: =+[1]modelo!ER16*[1]modelo!Z16/[1]modelo!CX16 -> 97273.40141 | Y16: =+[1]modelo!ES16*[1]modelo!AA16/[1]modelo!CY16 -> 75269.25214 | Z16: =+[1]modelo!ET16*[1]modelo!AB16/[1]modelo!CZ16 -> 164822.3914 | AA16: =(+[1]modelo!EM16+[1]modelo!EQ16)*[1]modelo!Y16/([1]modelo!CW16+[1]modelo!CS16) -> 0.3405864395 | AB16: =(+[1]modelo!EN16+[1]modelo!ER16)*[1]modelo!Z16/([1]modelo!CX16+[1]modelo!CT16) -> 40.65794971 | AC16: =(+[1]modelo!EO16+[1]modelo!ES16)*[1]modelo!AA16/([1]modelo!CY16+[1]modelo!CU16) -> 90.10682073 | AD16: =(+[1]modelo!EP16+[1]modelo!ET16)*[1]modelo!AB16/([1]modelo!CZ16+[1]modelo!CV16) -> 55.05771267
A17: =[1]modelo!A17 -> 2011 | C17: =+[1]modelo!AT17/[1]modelo!EU17/[1]modelo!AT$9*100 -> 164.1100548 | D17: =+[1]modelo!AU17/[1]modelo!EV17/[1]modelo!AU$9*100 -> 151.1494246 | F17: =+[1]modelo!Y17*([1]modelo!EM17+[1]modelo!EQ17) -> 13220.23582 | G17: =+[1]modelo!Z17*([1]modelo!EN17+[1]modelo!ER17) -> 89449.70673 | H17: =+[1]modelo!AA17*([1]modelo!EO17+[1]modelo!ES17) -> 83045.69646 | I17: =+[1]modelo!AB17*([1]modelo!EP17+[1]modelo!ET17) -> 193841.3599 | J17: =([1]modelo!EM17/([1]modelo!EM17+[1]modelo!EQ17))*100 -> 16.03194986 | K17: =([1]modelo!EN17/([1]modelo!EN17+[1]modelo!ER17))*100 -> 0.9823826266 | L17: =([1]modelo!EO17/([1]modelo!EO17+[1]modelo!ES17))*100 -> 3.717477153 | M17: =([1]modelo!EP17/([1]modelo!EP17+[1]modelo!ET17))*100 -> 7.421485918 | N17: =1-F17/([1]modelo!CS17+[1]modelo!CW17) -> 0.6625088326 | O17: =1-G17/([1]modelo!CT17+[1]modelo!CX17) -> -37.84312278 | P17: =1-H17/([1]modelo!CU17+[1]modelo!CY17) -> -93.39817396 | Q17: =1-I17/([1]modelo!CV17+[1]modelo!CZ17) -> -54.58097465 | S17: =+[1]modelo!EM17*[1]modelo!Y17/[1]modelo!CS17 -> 0.0916456994 | T17: =+[1]modelo!EN17*[1]modelo!Z17/[1]modelo!CT17 -> 0.3817367591 | U17: =+[1]modelo!EO17*[1]modelo!AA17/[1]modelo!CU17 -> 3.513224036 | V17: =+[1]modelo!EP17*[1]modelo!AB17/[1]modelo!CV17 -> 4.126136633 | W17: =+[1]modelo!EQ17*[1]modelo!Y17/[1]modelo!CW17 -> 0.6918350764 | X17: =+[1]modelo!ER17*[1]modelo!Z17/[1]modelo!CX17 -> 98757.32583 | Y17: =+[1]modelo!ES17*[1]modelo!AA17/[1]modelo!CY17 -> 79958.51896 | Z17: =+[1]modelo!ET17*[1]modelo!AB17/[1]modelo!CZ17 -> 176571.8341 | AA17: =(+[1]modelo!EM17+[1]modelo!EQ17)*[1]modelo!Y17/([1]modelo!CW17+[1]modelo!CS17) -> 0.3374911674 | AB17: =(+[1]modelo!EN17+[1]modelo!ER17)*[1]modelo!Z17/([1]modelo!CX17+[1]modelo!CT17) -> 38.84312278 | AC17: =(+[1]modelo!EO17+[1]modelo!ES17)*[1]modelo!AA17/([1]modelo!CY17+[1]modelo!CU17) -> 94.39817396 | AD17: =(+[1]modelo!EP17+[1]modelo!ET17)*[1]modelo!AB17/([1]modelo!CZ17+[1]modelo!CV17) -> 55.58097465
A18: =[1]modelo!A18 -> 2012 | C18: =+[1]modelo!AT18/[1]modelo!EU18/[1]modelo!AT$9*100 -> 175.2275657 | D18: =+[1]modelo!AU18/[1]modelo!EV18/[1]modelo!AU$9*100 -> 159.6643425 | F18: =+[1]modelo!Y18*([1]modelo!EM18+[1]modelo!EQ18) -> 14061.82109 | G18: =+[1]modelo!Z18*([1]modelo!EN18+[1]modelo!ER18) -> 90622.83031 | H18: =+[1]modelo!AA18*([1]modelo!EO18+[1]modelo!ES18) -> 88255.38794 | I18: =+[1]modelo!AB18*([1]modelo!EP18+[1]modelo!ET18) -> 208489.3061 | J18: =([1]modelo!EM18/([1]modelo!EM18+[1]modelo!EQ18))*100 -> 15.83054681 | K18: =([1]modelo!EN18/([1]modelo!EN18+[1]modelo!ER18))*100 -> 0.9821824429 | L18: =([1]modelo!EO18/([1]modelo!EO18+[1]modelo!ES18))*100 -> 3.667245542 | M18: =([1]modelo!EP18/([1]modelo!EP18+[1]modelo!ET18))*100 -> 7.325012376 | N18: =1-F18/([1]modelo!CS18+[1]modelo!CW18) -> 0.6656619802 | O18: =1-G18/([1]modelo!CT18+[1]modelo!CX18) -> -36.05641688 | P18: =1-H18/([1]modelo!CU18+[1]modelo!CY18) -> -98.04300016 | Q18: =1-I18/([1]modelo!CV18+[1]modelo!CZ18) -> -55.11495443 | S18: =+[1]modelo!EM18*[1]modelo!Y18/[1]modelo!CS18 -> 0.08983251712 | T18: =+[1]modelo!EN18*[1]modelo!Z18/[1]modelo!CT18 -> 0.3640949894 | U18: =+[1]modelo!EO18*[1]modelo!AA18/[1]modelo!CU18 -> 3.6362307 | V18: =+[1]modelo!EP18*[1]modelo!AB18/[1]modelo!CV18 -> 4.11155628 | W18: =+[1]modelo!EQ18*[1]modelo!Y18/[1]modelo!CW18 -> 0.684997303 | X18: =+[1]modelo!ER18*[1]modelo!Z18/[1]modelo!CX18 -> 100169.8678 | Y18: =+[1]modelo!ES18*[1]modelo!AA18/[1]modelo!CY18 -> 85018.87519 | Z18: =+[1]modelo!ET18*[1]modelo!AB18/[1]modelo!CZ18 -> 189401.4213 | AA18: =(+[1]modelo!EM18+[1]modelo!EQ18)*[1]modelo!Y18/([1]modelo!CW18+[1]modelo!CS18) -> 0.3343380198 | AB18: =(+[1]modelo!EN18+[1]modelo!ER18)*[1]modelo!Z18/([1]modelo!CX18+[1]modelo!CT18) -> 37.05641688 | AC18: =(+[1]modelo!EO18+[1]modelo!ES18)*[1]modelo!AA18/([1]modelo!CY18+[1]modelo!CU18) -> 99.04300016 | AD18: =(+[1]modelo!EP18+[1]modelo!ET18)*[1]modelo!AB18/([1]modelo!CZ18+[1]modelo!CV18) -> 56.11495443
A19: =[1]modelo!A19 -> 2013 | C19: =+[1]modelo!AT19/[1]modelo!EU19/[1]modelo!AT$9*100 -> 187.2720881 | D19: =+[1]modelo!AU19/[1]modelo!EV19/[1]modelo!AU$9*100 -> 168.7999498 | F19: =+[1]modelo!Y19*([1]modelo!EM19+[1]modelo!EQ19) -> 14967.73629 | G19: =+[1]modelo!Z19*([1]modelo!EN19+[1]modelo!ER19) -> 91761.84555 | H19: =+[1]modelo!AA19*([1]modelo!EO19+[1]modelo!ES19) -> 93879.75964 | I19: =+[1]modelo!AB19*([1]modelo!EP19+[1]modelo!ET19) -> 224470.6377 | J19: =([1]modelo!EM19/([1]modelo!EM19+[1]modelo!EQ19))*100 -> 15.6312029 | K19: =([1]modelo!EN19/([1]modelo!EN19+[1]modelo!ER19))*100 -> 0.9819747412 | L19: =([1]modelo!EO19/([1]modelo!EO19+[1]modelo!ES19))*100 -> 3.616971585 | M19: =([1]modelo!EP19/([1]modelo!EP19+[1]modelo!ET19))*100 -> 7.228356976 | N19: =1-F19/([1]modelo!CS19+[1]modelo!CW19) -> 0.6688644855 | O19: =1-G19/([1]modelo!CT19+[1]modelo!CX19) -> -34.3024996 | P19: =1-H19/([1]modelo!CU19+[1]modelo!CY19) -> -103.07054 | Q19: =1-I19/([1]modelo!CV19+[1]modelo!CZ19) -> -55.65873793 | S19: =+[1]modelo!EM19*[1]modelo!Y19/[1]modelo!CS19 -> 0.08803213156 | T19: =+[1]modelo!EN19*[1]modelo!Z19/[1]modelo!CT19 -> 0.3467810446 | U19: =+[1]modelo!EO19*[1]modelo!AA19/[1]modelo!CU19 -> 3.7683793 | V19: =+[1]modelo!EP19*[1]modelo!AB19/[1]modelo!CV19 -> 4.096554347 | W19: =+[1]modelo!EQ19*[1]modelo!Y19/[1]modelo!CW19 -> 0.6780493686 | X19: =+[1]modelo!ER19*[1]modelo!Z19/[1]modelo!CX19 -> 101511.2408 | Y19: =+[1]modelo!ES19*[1]modelo!AA19/[1]modelo!CY19 -> 90484.18631 | Z19: =+[1]modelo!ET19*[1]modelo!AB19/[1]modelo!CZ19 -> 203425.339 | AA19: =(+[1]modelo!EM19+[1]modelo!EQ19)*[1]modelo!Y19/([1]modelo!CW19+[1]modelo!CS19) -> 0.3311355145 | AB19: =(+[1]modelo!EN19+[1]modelo!ER19)*[1]modelo!Z19/([1]modelo!CX19+[1]modelo!CT19) -> 35.3024996 | AC19: =(+[1]modelo!EO19+[1]modelo!ES19)*[1]modelo!AA19/([1]modelo!CY19+[1]modelo!CU19) -> 104.07054 | AD19: =(+[1]modelo!EP19+[1]modelo!ET19)*[1]modelo!AB19/([1]modelo!CZ19+[1]modelo!CV19) -> 56.65873793
A20: =[1]modelo!A20 -> 2014 | C20: =+[1]modelo!AT20/[1]modelo!EU20/[1]modelo!AT$9*100 -> 200.3288609 | D20: =+[1]modelo!AU20/[1]modelo!EV20/[1]modelo!AU$9*100 -> 178.6064741 | F20: =+[1]modelo!Y20*([1]modelo!EM20+[1]modelo!EQ20) -> 15943.50339 | G20: =+[1]modelo!Z20*([1]modelo!EN20+[1]modelo!ER20) -> 92867.82792 | H20: =+[1]modelo!AA20*([1]modelo!EO20+[1]modelo!ES20) -> 99956.74843 | I20: =+[1]modelo!AB20*([1]modelo!EP20+[1]modelo!ET20) -> 241917.3256 | J20: =([1]modelo!EM20/([1]modelo!EM20+[1]modelo!EQ20))*100 -> 15.43390891 | K20: =([1]modelo!EN20/([1]modelo!EN20+[1]modelo!ER20))*100 -> 0.9817594411 | L20: =([1]modelo!EO20/([1]modelo!EO20+[1]modelo!ES20))*100 -> 3.566671673 | M20: =([1]modelo!EP20/([1]modelo!EP20+[1]modelo!ET20))*100 -> 7.131550867 | N20: =1-F20/([1]modelo!CS20+[1]modelo!CW20) -> 0.672108059 | O20: =1-G20/([1]modelo!CT20+[1]modelo!CX20) -> -32.58548733 | P20: =1-H20/([1]modelo!CU20+[1]modelo!CY20) -> -108.5129986 | Q20: =1-I20/([1]modelo!CV20+[1]modelo!CZ20) -> -56.21135849 | S20: =+[1]modelo!EM20*[1]modelo!Y20/[1]modelo!CS20 -> 0.08624690462 | T20: =+[1]modelo!EN20*[1]modelo!Z20/[1]modelo!CT20 -> 0.3298354132 | U20: =+[1]modelo!EO20*[1]modelo!AA20/[1]modelo!CU20 -> 3.910253184 | V20: =+[1]modelo!EP20*[1]modelo!AB20/[1]modelo!CV20 -> 4.081048266 | W20: =+[1]modelo!EQ20*[1]modelo!Y20/[1]modelo!CW20 -> 0.6710091168 | X20: =+[1]modelo!ER20*[1]modelo!Z20/[1]modelo!CX20 -> 102781.7967 | Y20: =+[1]modelo!ES20*[1]modelo!AA20/[1]modelo!CY20 -> 96391.65233 | Z20: =+[1]modelo!ET20*[1]modelo!AB20/[1]modelo!CZ20 -> 218771.2974 | AA20: =(+[1]modelo!EM20+[1]modelo!EQ20)*[1]modelo!Y20/([1]modelo!CW20+[1]modelo!CS20) -> 0.327891941 | AB20: =(+[1]modelo!EN20+[1]modelo!ER20)*[1]modelo!Z20/([1]modelo!CX20+[1]modelo!CT20) -> 33.58548733 | AC20: =(+[1]modelo!EO20+[1]modelo!ES20)*[1]modelo!AA20/([1]modelo!CY20+[1]modelo!CU20) -> 109.5129986 | AD20: =(+[1]modelo!EP20+[1]modelo!ET20)*[1]modelo!AB20/([1]modelo!CZ20+[1]modelo!CV20) -> 57.21135849
A21: =[1]modelo!A21 -> 2015 | C21: =+[1]modelo!AT21/[1]modelo!EU21/[1]modelo!AT$9*100 -> 214.4912591 | D21: =+[1]modelo!AU21/[1]modelo!EV21/[1]modelo!AU$9*100 -> 189.1383595 | F21: =+[1]modelo!Y21*([1]modelo!EM21+[1]modelo!EQ21) -> 16995.15486 | G21: =+[1]modelo!Z21*([1]modelo!EN21+[1]modelo!ER21) -> 93941.82079 | H21: =+[1]modelo!AA21*([1]modelo!EO21+[1]modelo!ES21) -> 106528.0396 | I21: =+[1]modelo!AB21*([1]modelo!EP21+[1]modelo!ET21) -> 260975.0308 | J21: =([1]modelo!EM21/([1]modelo!EM21+[1]modelo!EQ21))*100 -> 15.23865535 | K21: =([1]modelo!EN21/([1]modelo!EN21+[1]modelo!ER21))*100 -> 0.9815364605 | L21: =([1]modelo!EO21/([1]modelo!EO21+[1]modelo!ES21))*100 -> 3.516363867 | M21: =([1]modelo!EP21/([1]modelo!EP21+[1]modelo!ET21))*100 -> 7.034628554 | N21: =1-F21/([1]modelo!CS21+[1]modelo!CW21) -> 0.6753846884 | O21: =1-G21/([1]modelo!CT21+[1]modelo!CX21) -> -30.90897009 | P21: =1-H21/([1]modelo!CU21+[1]modelo!CY21) -> -114.4058389 | Q21: =1-I21/([1]modelo!CV21+[1]modelo!CZ21) -> -56.77180205 | S21: =+[1]modelo!EM21*[1]modelo!Y21/[1]modelo!CS21 -> 0.08447902548 | T21: =+[1]modelo!EN21*[1]modelo!Z21/[1]modelo!CT21 -> 0.3132933723 | U21: =+[1]modelo!EO21*[1]modelo!AA21/[1]modelo!CU21 -> 4.062490269 | V21: =+[1]modelo!EP21*[1]modelo!AB21/[1]modelo!CV21 -> 4.064958407 | W21: =+[1]modelo!EQ21*[1]modelo!Y21/[1]modelo!CW21 -> 0.6638937869 | X21: =+[1]modelo!ER21*[1]modelo!Z21/[1]modelo!CX21 -> 103982.0175 | Y21: =+[1]modelo!ES21*[1]modelo!AA21/[1]modelo!CY21 -> 102782.1613 | Z21: =+[1]modelo!ET21*[1]modelo!AB21/[1]modelo!CZ21 -> 235582.3323 | AA21: =(+[1]modelo!EM21+[1]modelo!EQ21)*[1]modelo!Y21/([1]modelo!CW21+[1]modelo!CS21) -> 0.3246153116 | AB21: =(+[1]modelo!EN21+[1]modelo!ER21)*[1]modelo!Z21/([1]modelo!CX21+[1]modelo!CT21) -> 31.90897009 | AC21: =(+[1]modelo!EO21+[1]modelo!ES21)*[1]modelo!AA21/([1]modelo!CY21+[1]modelo!CU21) -> 115.4058389 | AD21: =(+[1]modelo!EP21+[1]modelo!ET21)*[1]modelo!AB21/([1]modelo!CZ21+[1]modelo!CV21) -> 57.77180205
A22: =[1]modelo!A22 -> 2016 | C22: =+[1]modelo!AT22/[1]modelo!EU22/[1]modelo!AT$9*100 -> 229.8616248 | D22: =+[1]modelo!AU22/[1]modelo!EV22/[1]modelo!AU$9*100 -> 200.4546541 | F22: =+[1]modelo!Y22*([1]modelo!EM22+[1]modelo!EQ22) -> 18129.28484 | G22: =+[1]modelo!Z22*([1]modelo!EN22+[1]modelo!ER22) -> 94984.83644 | H22: =+[1]modelo!AA22*([1]modelo!EO22+[1]modelo!ES22) -> 113639.4673 | I22: =+[1]modelo!AB22*([1]modelo!EP22+[1]modelo!ET22) -> 281804.6003 | J22: =([1]modelo!EM22/([1]modelo!EM22+[1]modelo!EQ22))*100 -> 15.04543246 | K22: =([1]modelo!EN22/([1]modelo!EN22+[1]modelo!ER22))*100 -> 0.981305715 | L22: =([1]modelo!EO22/([1]modelo!EO22+[1]modelo!ES22))*100 -> 3.46606773 | M22: =([1]modelo!EP22/([1]modelo!EP22+[1]modelo!ET22))*100 -> 6.937627575 | N22: =1-F22/([1]modelo!CS22+[1]modelo!CW22) -> 0.67868668 | O22: =1-G22/([1]modelo!CT22+[1]modelo!CX22) -> -29.27603702 | P22: =1-H22/([1]modelo!CU22+[1]modelo!CY22) -> -120.7881116 | Q22: =1-I22/([1]modelo!CV22+[1]modelo!CZ22) -> -57.33901244 | S22: =+[1]modelo!EM22*[1]modelo!Y22/[1]modelo!CS22 -> 0.08273050587 | T22: =+[1]modelo!EN22*[1]modelo!Z22/[1]modelo!CT22 -> 0.2971852412 | U22: =+[1]modelo!EO22*[1]modelo!AA22/[1]modelo!CU22 -> 4.225787234 | V22: =+[1]modelo!EP22*[1]modelo!AB22/[1]modelo!CV22 -> 4.048208642 | W22: =+[1]modelo!EQ22*[1]modelo!Y22/[1]modelo!CW22 -> 0.6567199268 | X22: =+[1]modelo!ER22*[1]modelo!Z22/[1]modelo!CX22 -> 105112.5065 | Y22: =+[1]modelo!ES22*[1]modelo!AA22/[1]modelo!CY22 -> 109700.6839 | Z22: =+[1]modelo!ET22*[1]modelo!AB22/[1]modelo!CZ22 -> 254018.8746 | AA22: =(+[1]modelo!EM22+[1]modelo!EQ22)*[1]modelo!Y22/([1]modelo!CW22+[1]modelo!CS22) -> 0.32131332 | AB22: =(+[1]modelo!EN22+[1]modelo!ER22)*[1]modelo!Z22/([1]modelo!CX22+[1]modelo!CT22) -> 30.27603702 | AC22: =(+[1]modelo!EO22+[1]modelo!ES22)*[1]modelo!AA22/([1]modelo!CY22+[1]modelo!CU22) -> 121.7881116 | AD22: =(+[1]modelo!EP22+[1]modelo!ET22)*[1]modelo!AB22/([1]modelo!CZ22+[1]modelo!CV22) -> 58.33901244
A23: =[1]modelo!A23 -> 2017 | C23: =+[1]modelo!AT23/[1]modelo!EU23/[1]modelo!AT$9*100 -> 246.5521896 | D23: =+[1]modelo!AU23/[1]modelo!EV23/[1]modelo!AU$9*100 -> 212.6194353 | F23: =+[1]modelo!Y23*([1]modelo!EM23+[1]modelo!EQ23) -> 19353.10603 | G23: =+[1]modelo!Z23*([1]modelo!EN23+[1]modelo!ER23) -> 95997.85704 | H23: =+[1]modelo!AA23*([1]modelo!EO23+[1]modelo!ES23) -> 121341.4617 | I23: =+[1]modelo!AB23*([1]modelo!EP23+[1]modelo!ET23) -> 304583.7388 | J23: =([1]modelo!EM23/([1]modelo!EM23+[1]modelo!EQ23))*100 -> 14.85423023 | K23: =([1]modelo!EN23/([1]modelo!EN23+[1]modelo!ER23))*100 -> 0.9810671185 | L23: =([1]modelo!EO23/([1]modelo!EO23+[1]modelo!ES23))*100 -> 3.415804131 | M23: =([1]modelo!EP23/([1]modelo!EP23+[1]modelo!ET23))*100 -> 6.840588156 | N23: =1-F23/([1]modelo!CS23+[1]modelo!CW23) -> 0.6820066929 | O23: =1-G23/([1]modelo!CT23+[1]modelo!CX23) -> -27.68930241 | P23: =1-H23/([1]modelo!CU23+[1]modelo!CY23) -> -127.7028245 | Q23: =1-I23/([1]modelo!CV23+[1]modelo!CZ23) -> -57.91189707 | S23: =+[1]modelo!EM23*[1]modelo!Y23/[1]modelo!CS23 -> 0.08100317778 | T23: =+[1]modelo!EN23*[1]modelo!Z23/[1]modelo!CT23 -> 0.2815366403 | U23: =+[1]modelo!EO23*[1]modelo!AA23/[1]modelo!CU23 -> 4.400904285 | V23: =+[1]modelo!EP23*[1]modelo!AB23/[1]modelo!CV23 -> 4.030726836 | W23: =+[1]modelo!EQ23*[1]modelo!Y23/[1]modelo!CW23 -> 0.6495033216 | X23: =+[1]modelo!ER23*[1]modelo!Z23/[1]modelo!CX23 -> 106173.9793 | Y23: =+[1]modelo!ES23*[1]modelo!AA23/[1]modelo!CY23 -> 117196.7151 | Z23: =+[1]modelo!ET23*[1]modelo!AB23/[1]modelo!CZ23 -> 274261.1329 | AA23: =(+[1]modelo!EM23+[1]modelo!EQ23)*[1]modelo!Y23/([1]modelo!CW23+[1]modelo!CS23) -> 0.3179933071 | AB23: =(+[1]modelo!EN23+[1]modelo!ER23)*[1]modelo!Z23/([1]modelo!CX23+[1]modelo!CT23) -> 28.68930241 | AC23: =(+[1]modelo!EO23+[1]modelo!ES23)*[1]modelo!AA23/([1]modelo!CY23+[1]modelo!CU23) -> 128.7028245 | AD23: =(+[1]modelo!EP23+[1]modelo!ET23)*[1]modelo!AB23/([1]modelo!CZ23+[1]modelo!CV23) -> 58.91189707
A24: =[1]modelo!A24 -> 2018 | C24: =+[1]modelo!AT24/[1]modelo!EU24/[1]modelo!AT$9*100 -> 264.6861008 | D24: =+[1]modelo!AU24/[1]modelo!EV24/[1]modelo!AU$9*100 -> 225.7022821 | F24: =+[1]modelo!Y24*([1]modelo!EM24+[1]modelo!EQ24) -> 20674.51296 | G24: =+[1]modelo!Z24*([1]modelo!EN24+[1]modelo!ER24) -> 96981.83554 | H24: =+[1]modelo!AA24*([1]modelo!EO24+[1]modelo!ES24) -> 129689.5505 | I24: =+[1]modelo!AB24*([1]modelo!EP24+[1]modelo!ET24) -> 329508.8777 | J24: =([1]modelo!EM24/([1]modelo!EM24+[1]modelo!EQ24))*100 -> 14.66503841 | K24: =([1]modelo!EN24/([1]modelo!EN24+[1]modelo!ER24))*100 -> 0.9808205827 | L24: =([1]modelo!EO24/([1]modelo!EO24+[1]modelo!ES24))*100 -> 3.365595049 | M24: =([1]modelo!EP24/([1]modelo!EP24+[1]modelo!ET24))*100 -> 6.743552834 | N24: =1-F24/([1]modelo!CS24+[1]modelo!CW24) -> 0.6853377655 | O24: =1-G24/([1]modelo!CT24+[1]modelo!CX24) -> -26.15093228 | P24: =1-H24/([1]modelo!CU24+[1]modelo!CY24) -> -135.1973594 | Q24: =1-I24/([1]modelo!CV24+[1]modelo!CZ24) -> -58.48933258 | S24: =+[1]modelo!EM24*[1]modelo!Y24/[1]modelo!CS24 -> 0.07929869337 | T24: =+[1]modelo!EN24*[1]modelo!Z24/[1]modelo!CT24 -> 0.266368755 | U24: =+[1]modelo!EO24*[1]modelo!AA24/[1]modelo!CU24 -> 4.588670514 | V24: =+[1]modelo!EP24*[1]modelo!AB24/[1]modelo!CV24 -> 4.012445306 | W24: =+[1]modelo!EQ24*[1]modelo!Y24/[1]modelo!CW24 -> 0.6422589375 | X24: =+[1]modelo!ER24*[1]modelo!Z24/[1]modelo!CX24 -> 107167.2532 | Y24: =+[1]modelo!ES24*[1]modelo!AA24/[1]modelo!CY24 -> 125324.7683 | Z24: =+[1]modelo!ET24*[1]modelo!AB24/[1]modelo!CZ24 -> 296511.8419 | AA24: =(+[1]modelo!EM24+[1]modelo!EQ24)*[1]modelo!Y24/([1]modelo!CW24+[1]modelo!CS24) -> 0.3146622345 | AB24: =(+[1]modelo!EN24+[1]modelo!ER24)*[1]modelo!Z24/([1]modelo!CX24+[1]modelo!CT24) -> 27.15093228 | AC24: =(+[1]modelo!EO24+[1]modelo!ES24)*[1]modelo!AA24/([1]modelo!CY24+[1]modelo!CU24) -> 136.1973594 | AD24: =(+[1]modelo!EP24+[1]modelo!ET24)*[1]modelo!AB24/([1]modelo!CZ24+[1]modelo!CV24) -> 59.48933258
A25: =[1]modelo!A25 -> 2019 | C25: =+[1]modelo!AT25/[1]modelo!EU25/[1]modelo!AT$9*100 -> 284.3985665 | D25: =+[1]modelo!AU25/[1]modelo!EV25/[1]modelo!AU$9*100 -> 239.7787974 | F25: =+[1]modelo!Y25*([1]modelo!EM25+[1]modelo!EQ25) -> 22102.15264 | G25: =+[1]modelo!Z25*([1]modelo!EN25+[1]modelo!ER25) -> 97937.69664 | H25: =+[1]modelo!AA25*([1]modelo!EO25+[1]modelo!ES25) -> 138744.9206 | I25: =+[1]modelo!AB25*([1]modelo!EP25+[1]modelo!ET25) -> 356797.2697 | J25: =([1]modelo!EM25/([1]modelo!EM25+[1]modelo!EQ25))*100 -> 14.47784652 | K25: =([1]modelo!EN25/([1]modelo!EN25+[1]modelo!ER25))*100 -> 0.9805660171 | L25: =([1]modelo!EO25/([1]modelo!EO25+[1]modelo!ES25))*100 -> 3.315463362 | M25: =([1]modelo!EP25/([1]modelo!EP25+[1]modelo!ET25))*100 -> 6.646566062 | N25: =1-F25/([1]modelo!CS25+[1]modelo!CW25) -> 0.6886733361 | O25: =1-G25/([1]modelo!CT25+[1]modelo!CX25) -> -24.66267118 | P25: =1-H25/([1]modelo!CU25+[1]modelo!CY25) -> -143.3239399 | Q25: =1-I25/([1]modelo!CV25+[1]modelo!CZ25) -> -59.0701708 | S25: =+[1]modelo!EM25*[1]modelo!Y25/[1]modelo!CS25 -> 0.07761852695 | T25: =+[1]modelo!EN25*[1]modelo!Z25/[1]modelo!CT25 -> 0.2516986031 | U25: =+[1]modelo!EO25*[1]modelo!AA25/[1]modelo!CU25 -> 4.789989946 | V25: =+[1]modelo!EP25*[1]modelo!AB25/[1]modelo!CV25 -> 3.993301202 | W25: =+[1]modelo!EQ25*[1]modelo!Y25/[1]modelo!CW25 -> 0.6350008797 | X25: =+[1]modelo!ER25*[1]modelo!Z25/[1]modelo!CX25 -> 108093.2362 | Y25: =+[1]modelo!ES25*[1]modelo!AA25/[1]modelo!CY25 -> 134144.9295 | Z25: =+[1]modelo!ET25*[1]modelo!AB25/[1]modelo!CZ25 -> 320999.439 | AA25: =(+[1]modelo!EM25+[1]modelo!EQ25)*[1]modelo!Y25/([1]modelo!CW25+[1]modelo!CS25) -> 0.3113266639 | AB25: =(+[1]modelo!EN25+[1]modelo!ER25)*[1]modelo!Z25/([1]modelo!CX25+[1]modelo!CT25) -> 25.66267118 | AC25: =(+[1]modelo!EO25+[1]modelo!ES25)*[1]modelo!AA25/([1]modelo!CY25+[1]modelo!CU25) -> 144.3239399 | AD25: =(+[1]modelo!EP25+[1]modelo!ET25)*[1]modelo!AB25/([1]modelo!CZ25+[1]modelo!CV25) -> 60.0701708
A26: =[1]modelo!A26 -> 2020 | C26: =+[1]modelo!AT26/[1]modelo!EU26/[1]modelo!AT$9*100 -> 305.8381334 | D26: =+[1]modelo!AU26/[1]modelo!EV26/[1]modelo!AU$9*100 -> 254.9311885 | F26: =+[1]modelo!Y26*([1]modelo!EM26+[1]modelo!EQ26) -> 23645.50339 | G26: =+[1]modelo!Z26*([1]modelo!EN26+[1]modelo!ER26) -> 98866.33764 | H26: =+[1]modelo!AA26*([1]modelo!EO26+[1]modelo!ES26) -> 148575.0497 | I26: =+[1]modelo!AB26*([1]modelo!EP26+[1]modelo!ET26) -> 386689.3393 | J26: =([1]modelo!EM26/([1]modelo!EM26+[1]modelo!EQ26))*100 -> 14.29264384 | K26: =([1]modelo!EN26/([1]modelo!EN26+[1]modelo!ER26))*100 -> 0.9803033291 | L26: =([1]modelo!EO26/([1]modelo!EO26+[1]modelo!ES26))*100 -> 3.26543263 | M26: =([1]modelo!EP26/([1]modelo!EP26+[1]modelo!ET26))*100 -> 6.549673805 | N26: =1-F26/([1]modelo!CS26+[1]modelo!CW26) -> 0.6920072562 | O26: =1-G26/([1]modelo!CT26+[1]modelo!CX26) -> -23.22586941 | P26: =1-H26/([1]modelo!CU26+[1]modelo!CY26) -> -152.140158 | Q26: =1-I26/([1]modelo!CV26+[1]modelo!CZ26) -> -59.65324455 | S26: =+[1]modelo!EM26*[1]modelo!Y26/[1]modelo!CS26 -> 0.07596397863 | T26: =+[1]modelo!EN26*[1]modelo!Z26/[1]modelo!CT26 -> 0.2375393038 | U26: =+[1]modelo!EO26*[1]modelo!AA26/[1]modelo!CU26 -> 5.005848345 | V26: =+[1]modelo!EP26*[1]modelo!AB26/[1]modelo!CV26 -> 3.973236847 | W26: =+[1]modelo!EQ26*[1]modelo!Y26/[1]modelo!CW26 -> 0.6277423644 | X26: =+[1]modelo!ER26*[1]modelo!Z26/[1]modelo!CX26 -> 108952.9153 | Y26: =+[1]modelo!ES26*[1]modelo!AA26/[1]modelo!CY26 -> 143723.4807 | Z26: =+[1]modelo!ET26*[1]modelo!AB26/[1]modelo!CZ26 -> 347981.7436 | AA26: =(+[1]modelo!EM26+[1]modelo!EQ26)*[1]modelo!Y26/([1]modelo!CW26+[1]modelo!CS26) -> 0.3079927438 | AB26: =(+[1]modelo!EN26+[1]modelo!ER26)*[1]modelo!Z26/([1]modelo!CX26+[1]modelo!CT26) -> 24.22586941 | AC26: =(+[1]modelo!EO26+[1]modelo!ES26)*[1]modelo!AA26/([1]modelo!CY26+[1]modelo!CU26) -> 153.140158 | AD26: =(+[1]modelo!EP26+[1]modelo!ET26)*[1]modelo!AB26/([1]modelo!CZ26+[1]modelo!CV26) -> 60.65324455
A27: =[1]modelo!A27 -> 2021 | C27: =+[1]modelo!AT27/[1]modelo!EU27/[1]modelo!AT$9*100 -> 329.1681177 | D27: =+[1]modelo!AU27/[1]modelo!EV27/[1]modelo!AU$9*100 -> 271.2489131 | F27: =+[1]modelo!Y27*([1]modelo!EM27+[1]modelo!EQ27) -> 25314.96318 | G27: =+[1]modelo!Z27*([1]modelo!EN27+[1]modelo!ER27) -> 99768.62929 | H27: =+[1]modelo!AA27*([1]modelo!EO27+[1]modelo!ES27) -> 159254.4175 | I27: =+[1]modelo!AB27*([1]modelo!EP27+[1]modelo!ET27) -> 419451.3244 | J27: =([1]modelo!EM27/([1]modelo!EM27+[1]modelo!EQ27))*100 -> 14.10941944 | K27: =([1]modelo!EN27/([1]modelo!EN27+[1]modelo!ER27))*100 -> 0.980032424 | L27: =([1]modelo!EO27/([1]modelo!EO27+[1]modelo!ES27))*100 -> 3.215526889 | M27: =([1]modelo!EP27/([1]modelo!EP27+[1]modelo!ET27))*100 -> 6.452923134 | N27: =1-F27/([1]modelo!CS27+[1]modelo!CW27) -> 0.6953337988 | O27: =1-G27/([1]modelo!CT27+[1]modelo!CX27) -> -21.84151009 | P27: =1-H27/([1]modelo!CU27+[1]modelo!CY27) -> -161.709569 | Q27: =1-I27/([1]modelo!CV27+[1]modelo!CZ27) -> -60.23737354 | S27: =+[1]modelo!EM27*[1]modelo!Y27/[1]modelo!CS27 -> 0.07433617958 | T27: =+[1]modelo!EN27*[1]modelo!Z27/[1]modelo!CT27 -> 0.2239003483 | U27: =+[1]modelo!EO27*[1]modelo!AA27/[1]modelo!CU27 -> 5.237320888 | V27: =+[1]modelo!EP27*[1]modelo!AB27/[1]modelo!CV27 -> 3.952199994 | W27: =+[1]modelo!EQ27*[1]modelo!Y27/[1]modelo!CW27 -> 0.6204957034 | X27: =+[1]modelo!ER27*[1]modelo!Z27/[1]modelo!CX27 -> 109747.3445 | Y27: =+[1]modelo!ES27*[1]modelo!AA27/[1]modelo!CY27 -> 154133.6017 | Z27: =+[1]modelo!ET27*[1]modelo!AB27/[1]modelo!CZ27 -> 377750.2272 | AA27: =(+[1]modelo!EM27+[1]modelo!EQ27)*[1]modelo!Y27/([1]modelo!CW27+[1]modelo!CS27) -> 0.3046662012 | AB27: =(+[1]modelo!EN27+[1]modelo!ER27)*[1]modelo!Z27/([1]modelo!CX27+[1]modelo!CT27) -> 22.84151009 | AC27: =(+[1]modelo!EO27+[1]modelo!ES27)*[1]modelo!AA27/([1]modelo!CY27+[1]modelo!CU27) -> 162.709569 | AD27: =(+[1]modelo!EP27+[1]modelo!ET27)*[1]modelo!AB27/([1]modelo!CZ27+[1]modelo!CV27) -> 61.23737354
A28: =[1]modelo!A28 -> 2022 | C28: =+[1]modelo!AT28/[1]modelo!EU28/[1]modelo!AT$9*100 -> 354.5682082 | D28: =+[1]modelo!AU28/[1]modelo!EV28/[1]modelo!AU$9*100 -> 288.8294012 | F28: =+[1]modelo!Y28*([1]modelo!EM28+[1]modelo!EQ28) -> 27121.94875 | G28: =+[1]modelo!Z28*([1]modelo!EN28+[1]modelo!ER28) -> 100645.4167 | H28: =+[1]modelo!AA28*([1]modelo!EO28+[1]modelo!ES28) -> 170865.3082 | I28: =+[1]modelo!AB28*([1]modelo!EP28+[1]modelo!ET28) -> 455378.2506 | J28: =([1]modelo!EM28/([1]modelo!EM28+[1]modelo!EQ28))*100 -> 13.92816218 | K28: =([1]modelo!EN28/([1]modelo!EN28+[1]modelo!ER28))*100 -> 0.9797532049 | L28: =([1]modelo!EO28/([1]modelo!EO28+[1]modelo!ES28))*100 -> 3.165770433 | M28: =([1]modelo!EP28/([1]modelo!EP28+[1]modelo!ET28))*100 -> 6.356361821 | N28: =1-F28/([1]modelo!CS28+[1]modelo!CW28) -> 0.6986476598 | O28: =1-G28/([1]modelo!CT28+[1]modelo!CX28) -> -20.51023632 | P28: =1-H28/([1]modelo!CU28+[1]modelo!CY28) -> -172.1023629 | Q28: =1-I28/([1]modelo!CV28+[1]modelo!CZ28) -> -60.82137007 | S28: =+[1]modelo!EM28*[1]modelo!Y28/[1]modelo!CS28 -> 0.07273609856 | T28: =+[1]modelo!EN28*[1]modelo!Z28/[1]modelo!CT28 -> 0.2107878685 | U28: =+[1]modelo!EO28*[1]modelo!AA28/[1]modelo!CU28 -> 5.485580821 | V28: =+[1]modelo!EP28*[1]modelo!AB28/[1]modelo!CV28 -> 3.93014404 | W28: =+[1]modelo!EQ28*[1]modelo!Y28/[1]modelo!CW28 -> 0.6132723002 | X28: =+[1]modelo!ER28*[1]modelo!Z28/[1]modelo!CX28 -> 110477.6311 | Y28: =+[1]modelo!ES28*[1]modelo!AA28/[1]modelo!CY28 -> 165456.1614 | Z28: =+[1]modelo!ET28*[1]modelo!AB28/[1]modelo!CZ28 -> 410634.981 | AA28: =(+[1]modelo!EM28+[1]modelo!EQ28)*[1]modelo!Y28/([1]modelo!CW28+[1]modelo!CS28) -> 0.3013523402 | AB28: =(+[1]modelo!EN28+[1]modelo!ER28)*[1]modelo!Z28/([1]modelo!CX28+[1]modelo!CT28) -> 21.51023632 | AC28: =(+[1]modelo!EO28+[1]modelo!ES28)*[1]modelo!AA28/([1]modelo!CY28+[1]modelo!CU28) -> 173.1023629 | AD28: =(+[1]modelo!EP28+[1]modelo!ET28)*[1]modelo!AB28/([1]modelo!CZ28+[1]modelo!CV28) -> 61.82137007
A29: =[1]modelo!A29 -> 2023 | C29: =+[1]modelo!AT29/[1]modelo!EU29/[1]modelo!AT$9*100 -> 382.23627 | D29: =+[1]modelo!AU29/[1]modelo!EV29/[1]modelo!AU$9*100 -> 307.7788627 | F29: =+[1]modelo!Y29*([1]modelo!EM29+[1]modelo!EQ29) -> 29079.00715 | G29: =+[1]modelo!Z29*([1]modelo!EN29+[1]modelo!ER29) -> 101497.5199 | H29: =+[1]modelo!AA29*([1]modelo!EO29+[1]modelo!ES29) -> 183498.7176 | I29: =+[1]modelo!AB29*([1]modelo!EP29+[1]modelo!ET29) -> 494797.2885 | J29: =([1]modelo!EM29/([1]modelo!EM29+[1]modelo!EQ29))*100 -> 13.74886071 | K29: =([1]modelo!EN29/([1]modelo!EN29+[1]modelo!ER29))*100 -> 0.9794655727 | L29: =([1]modelo!EO29/([1]modelo!EO29+[1]modelo!ES29))*100 -> 3.116187617 | M29: =([1]modelo!EP29/([1]modelo!EP29+[1]modelo!ET29))*100 -> 6.260037949 | N29: =1-F29/([1]modelo!CS29+[1]modelo!CW29) -> 0.701943956 | O29: =1-G29/([1]modelo!CT29+[1]modelo!CX29) -> -19.23237802 | P29: =1-H29/([1]modelo!CU29+[1]modelo!CY29) -> -183.3961249 | Q29: =1-I29/([1]modelo!CV29+[1]modelo!CZ29) -> -61.40404452 | S29: =+[1]modelo!EM29*[1]modelo!Y29/[1]modelo!CS29 -> 0.07116454949 | T29: =+[1]modelo!EN29*[1]modelo!Z29/[1]modelo!CT29 -> 0.1982049043 | U29: =+[1]modelo!EO29*[1]modelo!AA29/[1]modelo!CU29 -> 5.751909247 | V29: =+[1]modelo!EP29*[1]modelo!AB29/[1]modelo!CV29 -> 3.907028158 | W29: =+[1]modelo!EQ29*[1]modelo!Y29/[1]modelo!CW29 -> 0.6060826565 | X29: =+[1]modelo!ER29*[1]modelo!Z29/[1]modelo!CX29 -> 111144.9228 | Y29: =+[1]modelo!ES29*[1]modelo!AA29/[1]modelo!CY29 -> 177780.6141 | Z29: =+[1]modelo!ET29*[1]modelo!AB29/[1]modelo!CZ29 -> 447010.5073 | AA29: =(+[1]modelo!EM29+[1]modelo!EQ29)*[1]modelo!Y29/([1]modelo!CW29+[1]modelo!CS29) -> 0.298056044 | AB29: =(+[1]modelo!EN29+[1]modelo!ER29)*[1]modelo!Z29/([1]modelo!CX29+[1]modelo!CT29) -> 20.23237802 | AC29: =(+[1]modelo!EO29+[1]modelo!ES29)*[1]modelo!AA29/([1]modelo!CY29+[1]modelo!CU29) -> 184.3961249 | AD29: =(+[1]modelo!EP29+[1]modelo!ET29)*[1]modelo!AB29/([1]modelo!CZ29+[1]modelo!CV29) -> 62.40404452
A30: =[1]modelo!A30 -> 2024 | C30: =+[1]modelo!AT30/[1]modelo!EU30/[1]modelo!AT$9*100 -> 412.3903765 | D30: =+[1]modelo!AU30/[1]modelo!EV30/[1]modelo!AU$9*100 -> 328.2131959 | F30: =+[1]modelo!Y30*([1]modelo!EM30+[1]modelo!EQ30) -> 31199.94155 | G30: =+[1]modelo!Z30*([1]modelo!EN30+[1]modelo!ER30) -> 102325.735 | H30: =+[1]modelo!AA30*([1]modelo!EO30+[1]modelo!ES30) -> 197255.3825 | I30: =+[1]modelo!AB30*([1]modelo!EP30+[1]modelo!ET30) -> 538071.5495 | J30: =([1]modelo!EM30/([1]modelo!EM30+[1]modelo!EQ30))*100 -> 13.57150349 | K30: =([1]modelo!EN30/([1]modelo!EN30+[1]modelo!ER30))*100 -> 0.9791694258 | L30: =([1]modelo!EO30/([1]modelo!EO30+[1]modelo!ES30))*100 -> 3.066802667 | M30: =([1]modelo!EP30/([1]modelo!EP30+[1]modelo!ET30))*100 -> 6.163999544 | N30: =1-F30/([1]modelo!CS30+[1]modelo!CW30) -> 0.7052182173 | O30: =1-G30/([1]modelo!CT30+[1]modelo!CX30) -> -18.00797835 | P30: =1-H30/([1]modelo!CU30+[1]modelo!CY30) -> -195.6766984 | Q30: =1-I30/([1]modelo!CV30+[1]modelo!CZ30) -> -61.98421059 | S30: =+[1]modelo!EM30*[1]modelo!Y30/[1]modelo!CS30 -> 0.06962219992 | T30: =+[1]modelo!EN30*[1]modelo!Z30/[1]modelo!CT30 -> 0.1861516656 | U30: =+[1]modelo!EO30*[1]modelo!AA30/[1]modelo!CU30 -> 6.037706224 | V30: =+[1]modelo!EP30*[1]modelo!AB30/[1]modelo!CV30 -> 3.882817376 | W30: =+[1]modelo!EQ30*[1]modelo!Y30/[1]modelo!CW30 -> 0.5989363885 | X30: =+[1]modelo!ER30*[1]modelo!Z30/[1]modelo!CX30 -> 111750.3923 | Y30: =+[1]modelo!ES30*[1]modelo!AA30/[1]modelo!CY30 -> 191206.0146 | Z30: =+[1]modelo!ET30*[1]modelo!AB30/[1]modelo!CZ30 -> 487302.4868 | AA30: =(+[1]modelo!EM30+[1]modelo!EQ30)*[1]modelo!Y30/([1]modelo!CW30+[1]modelo!CS30) -> 0.2947817827 | AB30: =(+[1]modelo!EN30+[1]modelo!ER30)*[1]modelo!Z30/([1]modelo!CX30+[1]modelo!CT30) -> 19.00797835 | AC30: =(+[1]modelo!EO30+[1]modelo!ES30)*[1]modelo!AA30/([1]modelo!CY30+[1]modelo!CU30) -> 196.6766984 | AD30: =(+[1]modelo!EP30+[1]modelo!ET30)*[1]modelo!AB30/([1]modelo!CZ30+[1]modelo!CV30) -> 62.98421059
A31: =[1]modelo!A31 -> 2025 | C31: =+[1]modelo!AT31/[1]modelo!EU31/[1]modelo!AT$9*100 -> 445.2711062 | D31: =+[1]modelo!AU31/[1]modelo!EV31/[1]modelo!AU$9*100 -> 350.2590104 | F31: =+[1]modelo!Y31*([1]modelo!EM31+[1]modelo!EQ31) -> 33499.95377 | G31: =+[1]modelo!Z31*([1]modelo!EN31+[1]modelo!ER31) -> 103130.8346 | H31: =+[1]modelo!AA31*([1]modelo!EO31+[1]modelo!ES31) -> 212246.9508 | I31: =+[1]modelo!AB31*([1]modelo!EP31+[1]modelo!ET31) -> 585604.3898 | J31: =([1]modelo!EM31/([1]modelo!EM31+[1]modelo!EQ31))*100 -> 13.3960788 | K31: =([1]modelo!EN31/([1]modelo!EN31+[1]modelo!ER31))*100 -> 0.9788646606 | L31: =([1]modelo!EO31/([1]modelo!EO31+[1]modelo!ES31))*100 -> 3.017639499 | M31: =([1]modelo!EP31/([1]modelo!EP31+[1]modelo!ET31))*100 -> 6.068294222 | N31: =1-F31/([1]modelo!CS31+[1]modelo!CW31) -> 0.7084663762 | O31: =1-G31/([1]modelo!CT31+[1]modelo!CX31) -> -16.83681972 | P31: =1-H31/([1]modelo!CU31+[1]modelo!CY31) -> -209.0391674 | Q31: =1-I31/([1]modelo!CV31+[1]modelo!CZ31) -> -62.5606901 | S31: =+[1]modelo!EM31*[1]modelo!Y31/[1]modelo!CS31 -> 0.06810958007 | T31: =+[1]modelo!EN31*[1]modelo!Z31/[1]modelo!CT31 -> 0.1746257906 | U31: =+[1]modelo!EO31*[1]modelo!AA31/[1]modelo!CU31 -> 6.344503385 | V31: =+[1]modelo!EP31*[1]modelo!AB31/[1]modelo!CV31 -> 3.857482594 | W31: =+[1]modelo!EQ31*[1]modelo!Y31/[1]modelo!CW31 -> 0.5918422507 | X31: =+[1]modelo!ER31*[1]modelo!Z31/[1]modelo!CX31 -> 112295.2228 | Y31: =+[1]modelo!ES31*[1]modelo!AA31/[1]modelo!CY31 -> 205842.1735 | Z31: =+[1]modelo!ET31*[1]modelo!AB31/[1]modelo!CZ31 -> 531995.7068 | AA31: =(+[1]modelo!EM31+[1]modelo!EQ31)*[1]modelo!Y31/([1]modelo!CW31+[1]modelo!CS31) -> 0.2915336238 | AB31: =(+[1]modelo!EN31+[1]modelo!ER31)*[1]modelo!Z31/([1]modelo!CX31+[1]modelo!CT31) -> 17.83681972 | AC31: =(+[1]modelo!EO31+[1]modelo!ES31)*[1]modelo!AA31/([1]modelo!CY31+[1]modelo!CU31) -> 210.0391674 | AD31: =(+[1]modelo!EP31+[1]modelo!ET31)*[1]modelo!AB31/([1]modelo!CZ31+[1]modelo!CV31) -> 63.5606901
A32: =[1]modelo!A32 -> 2026 | C32: =+[1]modelo!AT32/[1]modelo!EU32/[1]modelo!AT$9*100 -> 481.1441477 | D32: =+[1]modelo!AU32/[1]modelo!EV32/[1]modelo!AU$9*100 -> 374.0547864 | F32: =+[1]modelo!Y32*([1]modelo!EM32+[1]modelo!EQ32) -> 35995.80595 | G32: =+[1]modelo!Z32*([1]modelo!EN32+[1]modelo!ER32) -> 103913.5688 | H32: =+[1]modelo!AA32*([1]modelo!EO32+[1]modelo!ES32) -> 228597.3165 | I32: =+[1]modelo!AB32*([1]modelo!EP32+[1]modelo!ET32) -> 637844.3029 | J32: =([1]modelo!EM32/([1]modelo!EM32+[1]modelo!EQ32))*100 -> 13.22257474 | K32: =([1]modelo!EN32/([1]modelo!EN32+[1]modelo!ER32))*100 -> 0.9785511708 | L32: =([1]modelo!EO32/([1]modelo!EO32+[1]modelo!ES32))*100 -> 2.968721557 | M32: =([1]modelo!EP32/([1]modelo!EP32+[1]modelo!ET32))*100 -> 5.972968871 | N32: =1-F32/([1]modelo!CS32+[1]modelo!CW32) -> 0.7116847526 | O32: =1-G32/([1]modelo!CT32+[1]modelo!CX32) -> -15.71844899 | P32: =1-H32/([1]modelo!CU32+[1]modelo!CY32) -> -223.5889773 | Q32: =1-I32/([1]modelo!CV32+[1]modelo!CZ32) -> -63.13231733 | S32: =+[1]modelo!EM32*[1]modelo!Y32/[1]modelo!CS32 -> 0.0666270924 | T32: =+[1]modelo!EN32*[1]modelo!Z32/[1]modelo!CT32 -> 0.1636225962 | U32: =+[1]modelo!EO32*[1]modelo!AA32/[1]modelo!CU32 -> 6.673978337 | V32: =+[1]modelo!EP32*[1]modelo!AB32/[1]modelo!CV32 -> 3.831000528 | W32: =+[1]modelo!EQ32*[1]modelo!Y32/[1]modelo!CW32 -> 0.5848081676 | X32: =+[1]modelo!ER32*[1]modelo!Z32/[1]modelo!CX32 -> 112780.5913 | Y32: =+[1]modelo!ES32*[1]modelo!AA32/[1]modelo!CY32 -> 221810.9747 | Z32: =+[1]modelo!ET32*[1]modelo!AB32/[1]modelo!CZ32 -> 581643.3712 | AA32: =(+[1]modelo!EM32+[1]modelo!EQ32)*[1]modelo!Y32/([1]modelo!CW32+[1]modelo!CS32) -> 0.2883152474 | AB32: =(+[1]modelo!EN32+[1]modelo!ER32)*[1]modelo!Z32/([1]modelo!CX32+[1]modelo!CT32) -> 16.71844899 | AC32: =(+[1]modelo!EO32+[1]modelo!ES32)*[1]modelo!AA32/([1]modelo!CY32+[1]modelo!CU32) -> 224.5889773 | AD32: =(+[1]modelo!EP32+[1]modelo!ET32)*[1]modelo!AB32/([1]modelo!CZ32+[1]modelo!CV32) -> 64.13231733
A33: =[1]modelo!A33 -> 2027 | C33: =+[1]modelo!AT33/[1]modelo!EU33/[1]modelo!AT$9*100 -> 520.3032635 | D33: =+[1]modelo!AU33/[1]modelo!EV33/[1]modelo!AU$9*100 -> 399.7521917 | F33: =+[1]modelo!Y33*([1]modelo!EM33+[1]modelo!EQ33) -> 38706.00502 | G33: =+[1]modelo!Z33*([1]modelo!EN33+[1]modelo!ER33) -> 104674.6657 | H33: =+[1]modelo!AA33*([1]modelo!EO33+[1]modelo!ES33) -> 246444.1467 | I33: =+[1]modelo!AB33*([1]modelo!EP33+[1]modelo!ET33) -> 695290.4986 | J33: =([1]modelo!EM33/([1]modelo!EM33+[1]modelo!EQ33))*100 -> 13.05097923 | K33: =([1]modelo!EN33/([1]modelo!EN33+[1]modelo!ER33))*100 -> 0.978228848 | L33: =([1]modelo!EO33/([1]modelo!EO33+[1]modelo!ES33))*100 -> 2.920071673 | M33: =([1]modelo!EP33/([1]modelo!EP33+[1]modelo!ET33))*100 -> 5.87806936 | N33: =1-F33/([1]modelo!CS33+[1]modelo!CW33) -> 0.7148700372 | O33: =1-G33/([1]modelo!CT33+[1]modelo!CX33) -> -14.652202 | P33: =1-H33/([1]modelo!CU33+[1]modelo!CY33) -> -239.4432187 | Q33: =1-I33/([1]modelo!CV33+[1]modelo!CZ33) -> -63.69794282 | S33: =+[1]modelo!EM33*[1]modelo!Y33/[1]modelo!CS33 -> 0.06517502148 | T33: =+[1]modelo!EN33*[1]modelo!Z33/[1]modelo!CT33 -> 0.1531353209 | U33: =+[1]modelo!EO33*[1]modelo!AA33/[1]modelo!CU33 -> 7.027971156 | V33: =+[1]modelo!EP33*[1]modelo!AB33/[1]modelo!CV33 -> 3.80335361 | W33: =+[1]modelo!EQ33*[1]modelo!Y33/[1]modelo!CW33 -> 0.5778412705 | X33: =+[1]modelo!ER33*[1]modelo!Z33/[1]modelo!CX33 -> 113207.6517 | Y33: =+[1]modelo!ES33*[1]modelo!AA33/[1]modelo!CY33 -> 239247.883 | Z33: =+[1]modelo!ET33*[1]modelo!AB33/[1]modelo!CZ33 -> 636878.0625 | AA33: =(+[1]modelo!EM33+[1]modelo!EQ33)*[1]modelo!Y33/([1]modelo!CW33+[1]modelo!CS33) -> 0.2851299628 | AB33: =(+[1]modelo!EN33+[1]modelo!ER33)*[1]modelo!Z33/([1]modelo!CX33+[1]modelo!CT33) -> 15.652202 | AC33: =(+[1]modelo!EO33+[1]modelo!ES33)*[1]modelo!AA33/([1]modelo!CY33+[1]modelo!CU33) -> 240.4432187 | AD33: =(+[1]modelo!EP33+[1]modelo!ET33)*[1]modelo!AB33/([1]modelo!CZ33+[1]modelo!CV33) -> 64.69794282
A34: =[1]modelo!A34 -> 2028 | C34: =+[1]modelo!AT34/[1]modelo!EU34/[1]modelo!AT$9*100 -> 563.0736755 | D34: =+[1]modelo!AU34/[1]modelo!EV34/[1]modelo!AU$9*100 -> 427.5175852 | F34: =+[1]modelo!Y34*([1]modelo!EM34+[1]modelo!EQ34) -> 41651.0137 | G34: =+[1]modelo!Z34*([1]modelo!EN34+[1]modelo!ER34) -> 105414.8322 | H34: =+[1]modelo!AA34*([1]modelo!EO34+[1]modelo!ES34) -> 265940.6364 | I34: =+[1]modelo!AB34*([1]modelo!EP34+[1]modelo!ET34) -> 758499.2842 | J34: =([1]modelo!EM34/([1]modelo!EM34+[1]modelo!EQ34))*100 -> 12.88128003 | K34: =([1]modelo!EN34/([1]modelo!EN34+[1]modelo!ER34))*100 -> 0.9778975812 | L34: =([1]modelo!EO34/([1]modelo!EO34+[1]modelo!ES34))*100 -> 2.871711934 | M34: =([1]modelo!EP34/([1]modelo!EP34+[1]modelo!ET34))*100 -> 5.783640284 | N34: =1-F34/([1]modelo!CS34+[1]modelo!CW34) -> 0.7180192707 | O34: =1-G34/([1]modelo!CT34+[1]modelo!CX34) -> -13.63722716 | P34: =1-H34/([1]modelo!CU34+[1]modelo!CY34) -> -256.7321025 | Q34: =1-I34/([1]modelo!CV34+[1]modelo!CZ34) -> -64.25643649 | S34: =+[1]modelo!EM34*[1]modelo!Y34/[1]modelo!CS34 -> 0.06375354396 | T34: =+[1]modelo!EN34*[1]modelo!Z34/[1]modelo!CT34 -> 0.143155359 | U34: =+[1]modelo!EO34*[1]modelo!AA34/[1]modelo!CU34 -> 7.408503374 | V34: =+[1]modelo!EP34*[1]modelo!AB34/[1]modelo!CV34 -> 3.77452982 | W34: =+[1]modelo!EQ34*[1]modelo!Y34/[1]modelo!CW34 -> 0.5709479404 | X34: =+[1]modelo!ER34*[1]modelo!Z34/[1]modelo!CX34 -> 113577.5164 | Y34: =+[1]modelo!ES34*[1]modelo!AA34/[1]modelo!CY34 -> 258303.676 | Z34: =+[1]modelo!ET34*[1]modelo!AB34/[1]modelo!CZ34 -> 698424.6829 | AA34: =(+[1]modelo!EM34+[1]modelo!EQ34)*[1]modelo!Y34/([1]modelo!CW34+[1]modelo!CS34) -> 0.2819807293 | AB34: =(+[1]modelo!EN34+[1]modelo!ER34)*[1]modelo!Z34/([1]modelo!CX34+[1]modelo!CT34) -> 14.63722716 | AC34: =(+[1]modelo!EO34+[1]modelo!ES34)*[1]modelo!AA34/([1]modelo!CY34+[1]modelo!CU34) -> 257.7321025 | AD34: =(+[1]modelo!EP34+[1]modelo!ET34)*[1]modelo!AB34/([1]modelo!CZ34+[1]modelo!CV34) -> 65.25643649

Sheet aitT
C1: =COUNTIF(B9:BB9,"&") -> 7
B3: \begin{landscape}
B4: \begin{center}
B5: \begin{table} | C5: [htbp] \centering
B6: \caption{Inversi\'{o}n y ahorro del modelo (miles de pesos de 2003)} | F6: \label{aitT}
B7: \begin{tabular}{lccccccc}
B8: \\ \hline \\
C9: & | D9: AI error$^{1}$ | E9: & | F9: Inversi\'{o}n | G9: & | H9: Ahorro | I9: & | K9: & | L9: Gobierno | M9: & | N9: Gobierno | O9: & | P9: Ahorros | Q9: \\
C10: & | D10: del modelo | E10: & | F10: Total | G10: & | H10: Total | I10: & | J10: Hogares | K10: & | L10: Local | M10: & | N10: Federal | O10: & | P10: Externos$^{2}$ | Q10: \\
B11: \\ \hline \hline \\
B12: 2003 | C12: & | D12: 2.91e-11 | E12: & | F12: 20522 | G12: & | H12: 20522 | I12: & | J12: 28187 | K12: & | L12: -5821 | M12: & | N12: 53165 | O12: & | P12: -55010 | Q12: \\
B13: 2004 | C13: & | D13: 0 | E13: & | F13: 22098 | G13: & | H13: 22098 | I13: & | J13: 30139 | K13: & | L13: -6560 | M13: & | N13: 52835 | O13: & | P13: -54316 | Q13: \\
B14: 2005 | C14: & | D14: 7.64e-11 | E14: & | F14: 23407 | G14: & | H14: 23407 | I14: & | J14: 32119 | K14: & | L14: -7394 | M14: & | N14: 52306 | O14: & | P14: -53625 | Q14: \\
B15: 2006 | C15: & | D15: 0 | E15: & | F15: 24875 | G15: & | H15: 24875 | I15: & | J15: 34279 | K15: & | L15: -8314 | M15: & | N15: 51564 | O15: & | P15: -52654 | Q15: \\
B16: 2007 | C16: & | D16: 6.18e-11 | E16: & | F16: 26484 | G16: & | H16: 26484 | I16: & | J16: 36623 | K16: & | L16: -9330 | M16: & | N16: 50592 | O16: & | P16: -51401 | Q16: \\
B17: 2008 | C17: & | D17: 0 | E17: & | F17: 28252 | G17: & | H17: 28252 | I17: & | J17: 39171 | K17: & | L17: -10451 | M17: & | N17: 49371 | O17: & | P17: -49840 | Q17: \\
B18: 2009 | C18: & | D18: 8.73e-11 | E18: & | F18: 30194 | G18: & | H18: 30194 | I18: & | J18: 41942 | K18: & | L18: -11687 | M18: & | N18: 47882 | O18: & | P18: -47944 | Q18: \\
B19: 2010 | C19: & | D19: 3.27e-11 | E19: & | F19: 32329 | G19: & | H19: 32329 | I19: & | J19: 44959 | K19: & | L19: -13051 | M19: & | N19: 46103 | O19: & | P19: -45682 | Q19: \\
B20: \\ \hline \\
B21: \multicolumn{8}{l}{\textit{Fuente}: C\'{a}lculos de los autores.}\\
B22: \multicolumn{8}{l}{Notas: 1. Numeros elevado al -11 son efectivamente cero. 2. Incluye el resto de M\'{e}xico.}\\
B23: \end{tabular}
B24: \end{table}
B25: \end{center}
B26: \end{landscape}

Sheet parmT
G1: scale | H1: 100
B2: \begin{center}
B3: \begin{table}
B4: [htbp] \centering
B5: \caption{Parametros del modelo}
B6: \label{prmT}
B7: \begin{tabular} | D7: {llcc}
B8: \\
B9: \hline\hline \\
C10: & | E10: & | F10: Valor | G10: & | H10: Tasa de crec. | I10: \\
B11: Total | C11: & | E11: & | F11: tipico | G11: & | H11: tipico | I11: \\
B12: $I_{g}$ | C12: & | D12: Inversion de gobierno local | E12: & | F12: =+[1]modelo!$EB$9 -> 0 | G12: & | H12: =+[1]modelo!$EB$7 -> 0 | I12: \\
B13: $Ig_{f}$ | C13: & | D13: Inversion de gobierno federal | E13: & | F13: =+[1]modelo!$EC$9 -> 0.01951234953 | G13: & | H13: =+[1]modelo!EC$7 -> 0.05 | I13: \\
B14: $Id0_{i}^{1}$ | C14: & | D14: Inversion por destino | E14: & | F14: =+[1]modelo!ED$9 -> 0.001366499193 | G14: & | H14: =+[1]modelo!$ED$7 -> 0.01 | I14: \\
B15: $ls_{i}$ | C15: & | D15: Coef mano de obra calificada | E15: & | F15: =+[1]modelo!$EQ$9 -> 1 | G15: & | H15: =+[1]modelo!$EQ$7 -> 0.005 | I15: \\
B16: $lu_{i}$ | C16: & | D16: Coef mano de obra no calificada | E16: & | F16: =+[1]modelo!$EY$9 -> 9.645642586 | G16: & | H16: =+[1]modelo!$EY$7 -> 0.06 | I16: \\
B17: $w_{s}$ | C17: & | D17: Salario mano de obra calificada | E17: & | F17: =+[1]modelo!FC$9 -> 91.07671561 | G17: & | H17: =+[1]modelo!FC$7 -> 0.06 | I17: \\
B18: $w_{u}$ | C18: & | D18: Salario mano de obra no calificada | E18: & | F18: =+[1]modelo!FD$9 -> 21.07128088 | G18: & | H18: =+[1]modelo!FD$7 -> 0.06 | I18: \\
B19: $e$ | C19: & | D19: Tipo de cambio nomial | E19: & | F19: 1 | G19: & | H19: P$^{2}$ | I19: \\
B20: $p_{m}$ | C20: & | D20: Precio en el resto de M\'{e}xico | E20: & | F20: 1 | G20: & | H20: P$^{2}$ | I20: \\
B21: $tc_{i}$ | C21: & | D21: Coef. de cambio tecnologico en capacidad | E21: & | F21: 1 | G21: & | H21: =+[1]modelo!$FG$7 -> 0.06 | I21: \\
B22: $Trs_{h}^{3}$ | C22: & | D22: Transferencias del exterior | E22: & | F22: =+[1]modelo!$FK$9 -> 261.2930534 | G22: & | H22: 0.06 | I22: \\
B23: $Trsm_{h}$ | C23: & | D23: Transferencias del resto de M\'{e}xico | E23: & | F23: =+[1]modelo!$FP$9 -> 97.31382862 | G23: & | H23: 0.06 | I23: \\
B24: $Tr_{h}$ | C24: & | D24: Transferencias del gobierno local | E24: & | F24: =+[1]modelo!$FU$9 -> 671.0308784 | G24: & | H24: =+[1]modelo!$FU$7 -> 0.06 | I24: \\
B25: $Tr_{h}$ | C25: & | D25: Transferencias del gobierno federal | E25: & | F25: =+[1]modelo!$FZ$9 -> 0 | G25: & | H25: =+[1]modelo!$FU$7 -> 0.06 | I25: \\
B26: $TrT_{h}$ | C26: & | D26: Transferencias totales | E26: & | F26: 194 | G26: & | H26: =+[1]modelo!$FU$7 -> 0.06 | I26: \\
B27: $G_{4}$ | C27: & | D27: Gasto de gobierno local (en servicios) | E27: & | F27: =+[1]modelo!$GK$9 -> 2289.243365 | G27: & | H27: =+[1]modelo!$GO$7 -> 0.025 | I27: \\
B28: $Gf_{4}$ | C28: & | D28: Gasto de gobierno federal (en servicios) | E28: & | F28: =+[1]modelo!$GO$9 -> 2 | G28: & | H28: =+[1]modelo!$GO$7 -> 0.025 | I28: \\
B29: $Ex_{i}^{4}$ | C29: & | D29: Exportaciones | E29: & | F29: =[1]modelo!$GR$9 -> 0 | G29: & | H29: =+[1]modelo!$GR$7 -> 0 | I29: \\
B30: $Em_{i}^{4}$ | C30: & | D30: Exportaciones al resto de M\'{e}xico | E30: & | F30: =+[1]modelo!$GT$9 -> 0 | G30: & | H30: =+[1]modelo!$GT$7 -> 0 | I30: \\
B31: \\
B32: \hline \\
B33: \multicolumn{4}{l}{\textit{Fuente}: C\'{a}lculos de los autores. Notas 1. Sector $i$. Seg\'{u}n deflactor, P. }\\
B34: \multicolumn{4}{l}{3. Clase social $h$. 4. Excluye petroleo. }\\
B35: \end{tabular}
B36: \end{table}
B37: \end{center}

Sheet gKT
B2: \begin{center}
B3: \begin{table} | C3: [htbp] \centering
B4: \caption{Stock de capital (miliones de pesos de 2003)} | E4: \label{gkT}
B5: \begin{tabular}{lccccc}
B6: \\ \hline \\
C7: & | D7: =+tfT!D7 -> AgPec | E7: & | F7: Petroleo | G7: & | H7: Industria | I7: & | J7: Servicios | K7: & | L7: Total | M7: \\
B8: Valor agregado total | C8: & | D8: =+[1]SAM!E89 -> 4225 | E8: & | F8: =+[1]SAM!F89 -> 74623 | G8: & | H8: =+[1]SAM!G89 -> 22756 | I8: & | J8: =+[1]SAM!H89 -> 68778 | K8: & | L8: =SUM(C8:J8) -> 170382 | M8: \\
B9: Utilizaci\'{o}n de capacidad (u)$^{1}$ | C9: & | D9: =+[1]SAM!E90 -> 0.85 | E9: & | F9: =+[1]SAM!F90 -> 1 | G9: & | H9: =+[1]SAM!G90 -> 0.9 | I9: & | J9: =+[1]SAM!H90 -> 0.95 | K9: & | L9: =+L8/L10 -> 0.9611118807 | M9: \\
B10: Capacidad de dise\~{n}o (Q =Y/u)$^{2}$ | C10: & | D10: =+[1]SAM!E91 -> 4970.588235 | E10: & | F10: =+[1]SAM!F91 -> 74623 | G10: & | H10: =+[1]SAM!G91 -> 25284.44444 | I10: & | J10: =+[1]SAM!H91 -> 72397.89474 | K10: & | L10: =SUM(C10:J10) -> 177275.9274 | M10: \\
B11: Mano de obra calif. ($L_{s}^{3}$)\ | C11: & | D11: =+[1]SAM!E92 -> 431.7566075 | E11: & | F11: =+[1]SAM!F92 -> 1844.716517 | G11: & | H11: =+[1]SAM!G92 -> 7857.439086 | I11: & | J11: =+[1]SAM!H92 -> 14828.70941 | K11: & | L11: =SUM(C11:J11) -> 24962.62162 | M11: \\
B12: Mano de obra no calif. ($L_{u}^{3}$) | C12: & | D12: =+[1]SAM!E93 -> 1727.02643 | E12: & | F12: =+[1]SAM!F93 -> 790.5927931 | G12: & | H12: =+[1]SAM!G93 -> 2619.146362 | I12: & | J12: =+[1]SAM!H93 -> 9885.80627 | K12: & | L12: =SUM(C12:J12) -> 15022.57186 | M12: \\
B13: Capital inicial (K) | C13: & | D13: =+[1]SAM!E94 -> 13846.46532 | E13: & | F13: =+[1]SAM!F94 -> 86246.31759 | G13: & | H13: =+[1]SAM!G94 -> 70202.53142 | I13: & | J13: =+[1]SAM!H94 -> 179122.3462 | K13: & | L13: =SUM(C13:J13) -> 349417.6605 | M13: \\
B14: Inversi\'{o}n por destino$^{4}$ | C14: & | D14: =+[1]SAM!E97 -> 857.8103472 | E14: & | F14: =+[1]SAM!F97 -> 0 | G14: & | H14: =+[1]SAM!G97 -> 4349.157455 | I14: & | J14: =+[1]SAM!H97 -> 3507.068242 | K14: & | L14: =SUM(C14:J14) -> 8714.036044 | M14: \\
B15: $v = K/Q$ | C15: & | D15: =+[1]SAM!E99 -> 2.785679413 | E15: & | F15: =+[1]SAM!F99 -> 1.155760524 | G15: & | H15: =+[1]SAM!G99 -> 2.776510735 | I15: & | J15: =+[1]SAM!H99 -> 2.474137499 | K15: & | L15: =+L13/L8 -> 2.050789758 | M15: \\
B16: $s = I/Y$ | C16: & | D16: =+[1]SAM!E100 -> 0.2030320348 | E16: & | F16: =+[1]SAM!F100 -> 0.05651915914 | G16: & | H16: =+[1]SAM!G100 -> 0.1911213506 | I16: & | J16: =+[1]SAM!H100 -> 0.1613439127 | K16: & | L16: =+L14/L8 -> 0.05114411173 | M16: \\
B17: Depreciaci\'{o}n ($\delta$) | C17: & | D17: =+[1]SAM!E101 -> 0.07288420696 | E17: & | F17: =+[1]SAM!F101 -> 0.0489021367 | G17: & | H17: =+[1]SAM!G101 -> 0.06883508435 | I17: & | J17: =+[1]SAM!H101 -> 0.06521218518 | K17: & | L17: =+[1]SAM!$I102 -> 0.02675353246 | M17: \\
B18: $\Delta K / K = s/v -\delta $ | C18: & | D18: =+[1]SAM!E102 -> 0.025 | E18: & | F18: =+[1]SAM!F102 -> 0.03 | G18: & | H18: =+[1]SAM!G102 -> 0.0275 | I18: & | J18: =+[1]SAM!H102 -> 0.025 | K18: & | L18: =+[1]SAM!$I103 -> 0.03435340065 | M18: \\
B19: Capital rezagado (KL) | C19: & | D19: =+[1]SAM!$E$95 -> 13213.73604 | E19: & | F19: =+[1]SAM!$F$95 -> 84646.32125 | G19: & | H19: =+[1]SAM!$G$95 -> 67415.88993 | I19: & | J19: =+[1]SAM!$H$95 -> 172197.8927 | K19: & | L19: =+[1]SAM!$I$95 -> 337473.8399 | M19: \\
B20: $\alpha$ | C20: & | D20: =+[1]SAM!E104 -> 0.05 | E20: & | F20: -- | G20: & | H20: =+[1]SAM!G104 -> 0.05 | I20: & | J20: =+[1]SAM!H104 -> 0.02 | K20: & | L20: -- | M20: \\
B21: $I_{d0}$ | C21: & | D21: =+[1]SAM!E105 -> 0.022418078 | E21: & | F21: =+[1]SAM!F105 -> 0 | G21: & | H21: =+[1]SAM!G105 -> 0.01951234953 | I21: & | J21: =+[1]SAM!H105 -> 0.001366499193 | K21: & | L21: -- | M21: \\
B22: \\ \hline \\
B23: \multicolumn{6}{l}{\textit{Fuente}: C\'{a}lculos de los autores basado en \citet{Arm12} , \citet{INEGI13}.}\\
B24: \multicolumn{6}{l}{Notas: 1. Estimaci\'{o}n preliminar. 2. El Y es el PIB sectorial. }\\
B25: \multicolumn{6}{l}{ \citet{Arm12}. 2. Porcentage de \citet{Tab12}. 3. Factor de ajuste para AgPec y Petroleo }\\
B26: \multicolumn{6}{l}{= 1.0, para industria, 2.5 y servicios, 0.7. 4. Incluyendo inversi\'{o}n el estado. }\\
B27: \end{tabular}
B28: \end{table}
B29: \end{center}

Sheet gT
B2: \begin{center}
B3: \begin{table} | C3: [htbp] \centering
B4: \caption{Gobierno de Tabasco (miliones de pesos de 2003)} | E4: \label{gT}
B5: \begin{tabular}{lccc}
B6: \\ \hline \\
C7: & | D7: Total | E7: & | F7: Local | G7: & | H7: Federal | I7: \\
B8: Inversi\'{o}n$^{1}$ | C8: & | D8: =+[1]SAM!$W$67 -> 20521.50864 | E8: & | F8: -- | G8: & | H8: -- | I8: \\
B9: Inversi\'{o}n del Gob/PIBE$^{2}$ | C9: & | D9: =+F9+H9 -> 6.93 | E9: & | F9: =[1]SAM!$Y$66*100 -> 4.454604 | G9: & | H9: =[1]SAM!$Z$66*100 -> 2.475396 | I9: \\
B10: Inversi\'{o}n del Gob | C10: & | D10: =+F10+H10 -> 11807.4726 | E10: & | F10: =+[1]SAM!$Y$67 -> 7589.843387 | G10: & | H10: =+[1]SAM!$Z$67 -> 4217.629213 | I10: \\
B11: Gasto corriente | C11: & | D11: =+F11+H11 -> 26769.76147 | E11: & | F11: =+[1]SAM!$V$77 -> 10072.32547 | G11: & | H11: =+[1]SAM!$W$77 -> 16697.436 | I11: \\
B12: Ingreso | C12: & | D12: =+F12+H12 -> 58267.88308 | E12: & | F12: =+[1]SAM!$AC$45 -> 230.2320436 | G12: & | H12: =+[1]SAM!$AC$44 -> 58037.65103 | I12: \\
B13: Ganancias de petroleo | C13: & | D13: =+H13 -> 70543.15138 | E13: & | F13: -- | G13: & | H13: =+[1]SAM!$F$38 -> 70543.15138 | I13: \\
B14: IVA | C14: & | D14: =+H14 -> 3140.063544 | E14: & | F14: -- | G14: & | H14: =+SUM([1]SAM!$E$34:$H$34) -> 3140.063544 | I14: \\
B15: Impuestos directos | C15: & | D15: =+F15 -> 2059.588871 | E15: & | F15: =+SUM([1]SAM!$I$34:$L$34) -> 2059.588871 | G15: & | H15: -- | I15: \\
B16: \\ \hline \\
B17: \multicolumn{3}{l}{\textit{Fuente}: C\'{a}lculos de los autores basado en \citet{Arm12} , \citet{INEGI13}.}\\
B18: \multicolumn{3}{l}{Notas: 1. Consistente con el PIBE de \citet{INEGI13}, basado en }\\
B19: \multicolumn{3}{l}{ \citet{Arm12}. 2. Porcentage de \citet{Tab12}}\\
B20: \end{tabular}
B21: \end{table}
B22: \end{center}

Sheet tfT
B2: \begin{center}
B3: \begin{table} | C3: [htbp] \centering
B4: \caption{Interceptos y par\'{a}metros Frisch} | E4: \label{tfT}
B5: \begin{tabular}{lcccc}
B6: \\ \hline \\
C7: & | D7: =+iodT!B11 -> AgPec | E7: & | F7: =+iodT!B13 -> Industria | G7: & | H7: =+iodT!B14 -> Servicios | I7: & | J7: Frisch | K7: \\
B8: M\'{a}s Pobre (H1) | C8: & | D8: =+[1]SAM!Q66 -> 229.758929 | E8: & | F8: =+[1]!theta_31 -> 1280.253942 | G8: & | H8: =+[1]!theta_41 -> 1124.129139 | I8: & | J8: =+[1]SAM!Q63 -> 3 | K8: \\
B9: Menos Pobre (H2) | C9: & | D9: =+[1]SAM!R66 -> 283.3574768 | E9: & | F9: =+[1]SAM!R68 -> 1967.062569 | G9: & | H9: =+[1]SAM!R69 -> 1195.561002 | I9: & | J9: =+[1]SAM!R63 -> 2.5 | K9: \\
B10: Mediano (H3) | C10: & | D10: =+[1]SAM!S66 -> 235.3475523 | E10: & | F10: =+[1]SAM!S68 -> 2262.16139 | G10: & | H10: =+[1]!theta_43 -> 1954.210691 | I10: & | J10: =+[1]SAM!S63 -> 2 | K10: \\
B11: Menos rico (H4) | C11: & | D11: =+[1]SAM!T66 -> 182.3886976 | E11: & | F11: =+[1]SAM!T68 -> 2017.422091 | G11: & | H11: =+[1]SAM!T69 -> 2401.405865 | I11: & | J11: =+[1]SAM!T63 -> 1.5 | K11: \\
B12: M\'{a}s rico (H5) | C12: & | D12: =+[1]SAM!U66 -> 98.65208044 | E12: & | F12: =+[1]SAM!U68 -> 1745.7074 | G12: & | H12: =+[1]!theta_45 -> 4419.111427 | I12: & | J12: =+[1]SAM!U63 -> 1.2 | K12: \\
B13: \\ \hline \\
B14: \multicolumn{5}{l}{\textit{Fuente}: C\'{a}lculos de los autores basado en \citet{Arm12}}\\
B15: \multicolumn{5}{l}{\citet{INEGI13}}\\
B16: \end{tabular}
B17: \end{table}
B18: \end{center}

Sheet iodT
G1: scale | H1: 100
B2: \begin{center}
B3: \begin{table}
B4: [htbp] \centering
B5: \caption{Inversi\'{o}n por or\'{i}gin y destino}
B6: \label{iodT}
B7: \begin{tabular} | D7: {lcc}
B8: \multicolumn {3}{l}{}\\
B9: \hline\hline \\
B10: Total | C10: & | D10: Por or\'{i}gin | E10: & | F10: Por destino | G10: \\
B11: AgPec | C11: & | D11: =SUM([1]SAM!$U13:$W13) -> 0 | E11: & | F11: =+[1]SAM!$E$97 -> 857.8103472 | G11: \\
B12: Petr\'{o}leo | C12: & | D12: =SUM([1]SAM!$U14:$W14) -> 0 | E12: & | F12: =+[1]SAM!$F$96 -> 4217.629213 | G12: \\
B13: Industria | C13: & | D13: =SUM([1]SAM!$U15:$W15) -> 64350.58692 | E13: & | F13: =+[1]SAM!$G$97 -> 4349.157455 | G13: \\
B14: Servicios | C14: & | D14: =SUM([1]SAM!$U16:$W16) -> 591.9124826 | E14: & | F14: =+[1]SAM!$H$96+[1]SAM!$H$97 -> 11096.91163 | G14: \\
B15: \\
B16: Total | C16: & | D16: =SUM(D11:D14) -> 64942.4994 | E16: & | F16: =SUM(F11:F14) -> 20521.50864 | G16: \\
B17: \\
B18: \hline \\
B19: \multicolumn{3}{l}{\textit{Fuente}: C\'{a}lculos de los autores}\\
B20: \multicolumn{3}{l}{basado en \citet{Arm12}, \citet{INEGI13}}\\
B21: \end{tabular}
B22: \end{table}
B23: \end{center}

Sheet aiT
B2: \begin{center}
B3: \begin{table} | C3: [htbp] \centering
B4: \caption{Estructura de ahorros$^{1}$} | F4: \label{aiT}
B5: \begin{tabular}{lcccc}
B6: \\
B7: \hline \\
C8: & | D8: Armenta$^{2}$ | E8: & | F8: \% PIB | G8: & | H8: Autores | I8: & | J8: \% PIB | K8: \\
B9: Empresas | C9: & | D9: =SUM([1]SAM_aida!$H$44:$K$44) -> -2.273736754e-12 | E9: & | F9: 0 | G9: & | H9: 0 | I9: & | J9: 0 | K9: \\
B10: Hogares | C10: & | D10: =+[1]SAM_aida!$E59*[1]!PIB_scale -> 98071.46524 | E10: & | F10: =SUM([1]SAM_aida!$O$44:$S$45)/[1]SAM_aida!$C$57*100 -> 57.55975704 | G10: & | H10: =+SUM([1]SAM!$Q$42:$U$42) -> 28186.55746 | I10: & | J10: =+H10/[1]!PIB*100 -> 16.54315448 | K10: \\
B11: Gob Local | C11: & | D11: =+[1]SAM_aida!$E60 -> -1744.224 | E11: & | F11: =[1]SAM_aida!$T$44/[1]SAM_aida!$C$57*100 -> -12.8255321 | G11: & | H11: =+[1]SAM!$V$42 -> -5820.36675 | I11: & | J11: =+H11/[1]!PIB*100 -> -3.416069039 | K11: \\
B12: Gob Federal | C12: & | E12: & | G12: & | H12: =+[1]SAM!$W$42 -> 53165.49029 | I12: & | J12: =+H12/[1]!PIB*100 -> 31.20370127 | K12: \\
B13: Externos | C13: & | D13: =+[1]SAM_aida!$E61 -> -2603.938771 | E13: & | F13: =+[1]SAM_aida!$Y$44/[1]SAM_aida!$C$57*100 -> -19.14573161 | G13: & | H13: =+[1]SAM!AA$42 -> -32494.23474 | I13: & | J13: =+H13/[1]!PIB*100 -> -19.07140117 | K13: \\
B14: Externos-resto de M\'{e}xico | C14: & | D14: =+[1]SAM_aida!$E62 -> -1841.9441 | E14: & | F14: =+[1]SAM_aida!$Z$44/[1]SAM_aida!$C$57*100 -> -13.54408217 | G14: & | H14: =+[1]SAM!$AB$42 -> -22515.7449 | I14: & | J14: =+H14/[1]!PIB*100 -> -13.21486126 | K14: \\
B15: Total$^{3}$ | C15: & | D15: =SUM(D9:D14) -> 91881.35837 | E15: & | F15: =SUM(F9:F14) -> 12.04441117 | G15: & | H15: =SUM(H9:H14) -> 20521.70135 | I15: & | J15: =+H15/[1]!PIB*100 -> 12.04452428 | K15: \\
B16: \\
B17: \hline \\
B18: \multicolumn{5}{l}{\textit{Fuente}: 1. Porcentajes 2. \citet{Arm12}. 3. Ahorro e inversi\'{o}n.} \\
B19: \end{tabular}
B20: \end{table}
B21: \end{center}

Sheet ayT
B2: \begin{center}
B3: \begin{table} | C3: [htbp] \centering
B4: \caption{Ahorros e ingresos$^{1}$ (consistentes con Gini = | G4: =+[3]Sheet1!$B$7 -> 0.4908537946 | H4: )} | I4: \label{ayT}
B5: \begin{tabular}{lccccc}
B6: \\
B7: \hline \hline \\
C8: & | D8: \multicolumn{2}{c}{Tasa de ahorro} | G8: & | H8: \multicolumn{3}{c}{Relaci\'{o}n de autores/Armenta$^{2}$} | M8: \\
C9: & | D9: Autores | E9: & | F9: Armenta$^{2}$ | G9: & | H9: Ingresos | I9: & | J9: Ahorros | K9: & | L9: Pagos a capital | M9: \\
B10: M\'{a}s Pobre (H1) | C10: & | D10: =+[1]!sh_1*100 -> 8.79529 | E10: & | F10: =100*[1]SAM_aida!O44/[1]SAM_aida!O50 -> 11.52124567 | G10: & | H10: =[1]SAM!$AC28/([1]SAM_aida!$AA29*[1]!PIB_scale)*100 -> 97.01116787 | I10: & | J10: =[1]SAM!$Q42/([1]SAM_aida!$O44*[1]!PIB_scale)*100 -> 74.05808182 | K10: & | L10: =+[1]SAM!$O28/([1]SAM_aida!$N29*[1]!PIB_scale)*100 -> 0 | M10: \\
B11: Menos Pobre (H2) | C11: & | D11: =+[1]!sh_2*100 -> 13.82117 | E11: & | F11: =100*[1]SAM_aida!P44/[1]SAM_aida!P50 -> 42.51097965 | G11: & | H11: =[1]SAM!$AC29/([1]SAM_aida!$AA30*[1]!PIB_scale)*100 -> 66.70898218 | I11: & | J11: =+[1]SAM!R$42/([1]SAM_aida!P$44*[1]!PIB_scale)*100 -> 21.68842475 | K11: & | L11: =+[1]SAM!$O29/([1]SAM_aida!$N30*[1]!PIB_scale)*100 -> 9.051155049 | M11: \\
B12: Mediano (H3) | C12: & | D12: =+[1]!sh_3*100 -> 17.59058 | E12: & | F12: =100*[1]SAM_aida!Q44/[1]SAM_aida!Q50 -> 45.05926208 | G12: & | H12: =[1]SAM!$AC30/([1]SAM_aida!$AA31*[1]!PIB_scale)*100 -> 66.66803131 | I12: & | J12: =+[1]SAM!S42/([1]SAM_aida!Q$44*[1]!PIB_scale)*100 -> 26.02637691 | K12: & | L12: =+[1]SAM!$O30/([1]SAM_aida!$N31*[1]!PIB_scale)*100 -> 30.13661928 | M12: \\
B13: Menos rico (H4) | C13: & | D13: =+[1]!sh_4*100 -> 18.84705 | E13: & | F13: =100*[1]SAM_aida!R44/[1]SAM_aida!R50 -> 57.39476096 | G13: & | H13: =[1]SAM!$AC31/([1]SAM_aida!$AA32*[1]!PIB_scale)*100 -> 52.49992643 | I13: & | J13: =+[1]SAM!T$42/([1]SAM_aida!R$44*[1]!PIB_scale)*100 -> 17.23970484 | K13: & | L13: =+[1]SAM!$O31/([1]SAM_aida!$N32*[1]!PIB_scale)*100 -> 46.8240326 | M13: \\
B14: M\'{a}s rico (H5) | C14: & | D14: =+[1]!sh_5*100 -> 36.688924 | E14: & | F14: =100*[1]SAM_aida!S44/[1]SAM_aida!S50 -> 64.20649946 | G14: & | H14: =[1]SAM!$AC32/([1]SAM_aida!$AA33*[1]!PIB_scale)*100 -> 56.53592199 | I14: & | J14: =+[1]SAM!U42/([1]SAM_aida!S$44*[1]!PIB_scale)*100 -> 32.30579712 | K14: & | L14: =+[1]SAM!$O32/([1]SAM_aida!$N33*[1]!PIB_scale)*100 -> 54.40863242 | M14: \\
B15: Total | C15: & | D15: =100*SUM([1]SAM!$Q$42:$U$42)/SUM([1]SAM!$Q$48:$U$48) -> 28.71228313 | E15: & | F15: =100*+SUM([1]SAM_aida!$O$44:$S$44)/SUM([1]SAM_aida!$O$50:$S$50) -> 58.3571511 | G15: & | H15: =+SUM([1]SAM!$Q$48:$U$48)/SUM([1]SAM_aida!$O$50:$S$50)*100/[1]!PIB_scale -> 58.41518108 | I15: & | J15: =SUM([1]SAM!$Q$42:$U$42)/([1]!PIB_scale*SUM([1]SAM_aida!$O$44:$S$44))*100 -> 28.74083444 | K15: & | L15: =+[1]SAM!$O27/([1]SAM_aida!$N28*[1]!PIB_scale)*100 -> 46.80106527 | M15: \\
B16: \\
B17: \hline \\
B18: \multicolumn{6}{l}{\textit{Fuente}: C\'{a}lculos de los autores. Nota 1. Porcentajes. 2. \citet{Arm12}} \\
B19: \end{tabular}
B20: \end{table}
B21: \end{center}

Sheet diT
B2: \begin{center}
B3: \begin{table} | C3: [htbp] \centering
B4: \caption{Distribuci\'{o}n del ingreso por funci\'{o}n: Tabasco 2003$^{1}$)} | H4: \label{diT}
B5: \begin{tabular}{lccc}
B6: \\ hline \\
C7: & | D7: \multicolumn{e}{l}{Mano de obra} \\
C8: & | D8: Calificada | E8: & | F8: No-calificada | G8: & | H8: Capital | I8: \\
B9: M\'{a]s Pobre (H1) | C9: & | D9: =+[1]!phi_11*100 -> 2.773399472 | E9: & | F9: =+[1]!phi_21*100 -> 25.96952885 | G9: & | H9: =+[1]!phi_31*100 -> 0 | I9: \\
B10: Menos Pobre (H2) | C10: & | D10: =+[1]!phi_12*100 -> 11.25230567 | E10: & | F10: =+[1]!phi_22*100 -> 22.86424271 | G10: & | H10: =+[1]!phi_32*100 -> 1.142113653 | I10: \\
B11: Mediano (H3) | C11: & | D11: =+[1]!phi_13*100 -> 19.19961838 | E11: & | F11: =+[1]!phi_23*100 -> 17.7468312 | G11: & | H11: =+[1]!phi_33*100 -> 5.846307487 | I11: \\
B12: Menos rico (H4) | C12: & | D12: =+[1]!phi_14*100 -> 21.08776871 | E12: & | F12: =+[1]!phi_24*100 -> 15.78225126 | G12: & | H12: =+[1]!phi_34*100 -> 16.05312898 | I12: \\
B13: M\'{a]s rico (H5) | C13: & | D13: =+[1]!phi_15*100 -> 45.68690777 | E13: & | F13: =+[1]!phi_25*100 -> 17.63714597 | G13: & | H13: =+[1]!phi_35*100 -> 76.95844988 | I13: \\ | J13: =+D13+F13+H13 -> 140.2825036
B14: Total | C14: & | D14: =SUM(D9:D13) -> 100 | E14: & | F14: =SUM(F9:F13) -> 100 | G14: & | H14: =SUM(H9:H13) -> 100 | I14: \\
B15: \\ hline \\
B16: \multicolumn{4}{l}{\textit{Fuente}: C\'{a}lculos de los autores. Nota 1. Porcentajes.} \\
B17: \end{tabular}
B18: \end{table}
B19: \end{center}

Sheet cn2T
H1: 1
B2: \begin{center}
B3: \begin{table} | C3: [htbp] \centering
B4: \caption{Tabasco: Cuentas nacionales 2003$^{1}$)} | F4: \label{cn2T}
B5: \begin{tabular}{lccc}
B6: \\ hline \\
C7: & | D7: Armenta$^{2}$ | E7: & | F7: INEGI$^{3}$ | G7: & | H7: Autores | I7: \\
B8: Total | C8: & | D8: 100 | E8: & | F8: 100 | G8: & | H8: 100 | I8: \\
B9: AgPec | C9: & | D9: 2.443933942 | E9: & | F9: =+[1]INEGI!$C51*100 -> 2.479722036 | G9: & | H9: 2.48 | I9: \\
B10: Petr\'{o}leo | C10: & | D10: 52.72561197 | E10: & | F10: =+[1]INEGI!$C52*100 -> 43.79746687 | G10: & | H10: 43.8 | I10: \\
B11: Industria | C11: & | D11: 3.692984752 | E11: & | F11: =+[1]INEGI!$C53*100 -> 13.35587093 | G11: & | H11: 13.36 | I11: \\
B12: Servicios | C12: & | D12: 41.13746933 | E12: & | F12: =+[1]INEGI!$C54*100 -> 40.36694017 | G12: & | H12: 40.37 | I12: \\
B13: \\ hline \\
B14: \multicolumn{4}{l}{\textit{Fuente}: 1. porcentajes 2. \citet{Arm12}} \\
B15: \multicolumn{4}{l}{3. \citet{INEGI13} } \\
B16: \end{tabular}
B17: \end{table}
B18: \end{center}
